Capital or Revenue,Directorate,SERCOP High Level Category,SERCOP Detailed Category,Transaction Number,Date,Service Area,Expenses Type,Amount,Supplier Name
Revenue,Resources,Central Services,Support Services,5105628589,05.04.2017,Human Resources,Consultants Fees,401.99,B&D ROPER LTD,2,,
Revenue,Resources,Central Services,Support Services,5105628589,05.04.2017,Human Resources,Consultants Fees,436.45,B&D ROPER LTD,3,,
Revenue,Resources,Central Services,Support Services,5105628589,05.04.2017,Human Resources,Consultants Fees,"4,780.00",B&D ROPER LTD,4,,
Revenue,Adult Services,Adult Social Care,Central Codes (to be reallocated),5105629433,13.04.2017,Gouldings Resource Centre,Consumable Cleaning Materials,180.00,A & M APPLIANCE CARE,5,,
Revenue,Childrens Services,Children's & Education Services,Other Education and Community Budget,5105629438,21.04.2017,Complaints (Children & Families),Professional Services,503.00,REDACTED PERSONAL DATA,6,,
Revenue,Childrens Services,Children's & Education Services,Other Education and Community Budget,5105629439,21.04.2017,Complaints (Children & Families),Professional Services,914.25,REDACTED PERSONAL DATA,7,,
Revenue,Childrens Services,Children's & Education Services,Management & Support Services,5105629025,12.04.2017,Special Educational Needs Transport,Taxis - Contract Hire,"1,280.00",AK TAXIS,8,,
Revenue,Childrens Services,Children's & Education Services,Other Education and Community Budget,5105629434,13.04.2017,Home to School Transport,Taxis - Contract Hire,449.19,MICK'S TAXI,9,,
Revenue,Childrens Services,Children's & Education Services,Other Education and Community Budget,5105630260,19.04.2017,Home to School Transport,Taxis - Contract Hire,919.31,MICK'S TAXI,10,,
Revenue,Place,Cultural and Related Services,Recreation and Sport,5105630911,26.04.2017,Ryde Concessions,Property Services - Day to day Maintenance,300.00,REDACTED PERSONAL DATA,11,,
Revenue,Childrens Services,Children's & Education Services,Management & Support Services,5105629432,13.04.2017,Pre 16 Independ. & Non-Maint. Special Schls & Independ. Specialist Provision,Transport of Clients,920.00,CLARES CABS,12,,
Revenue,Place,Environmental & Regulatory Services,Service Management and Support Services,5105630231,19.04.2017,Environment officers,Payment to Private Contractors,"1,147.50",REDACTED PERSONAL DATA,13,,
Revenue,Resources,Central Services,Support Services,5105628398,05.04.2017,Litigation Costs,Legal Fees - Other Parties,350.00,REDACTED PERSONAL DATA,14,,
Revenue,Place,Cultural and Related Services,Culture and Heritage,5105630809,26.04.2017,Dinosaur Isle Museum (Sandown Geology),Stock Purchases,350.00,REDACTED PERSONAL DATA,15,,
Revenue,Place,Housing Services,Homelessness,5105629171,12.04.2017,Homelessness,Client Expenses,650.00,DS VAN SERVICES,16,,
Revenue,Place,Housing Services,Homelessness,5105630478,21.04.2017,Homelessness,Client Expenses,650.00,DS VAN SERVICES,17,,
Revenue,Childrens Services,Children's & Education Services,Management & Support Services,5105629428,13.04.2017,Special Educational Needs Transport,Taxis - Contract Hire,700.00,HAYLES TAXIS,18,,
Revenue,Childrens Services,Children's & Education Services,Management & Support Services,5105628593,05.04.2017,Special Educational Needs Transport,Taxis - Contract Hire,260.00,HAYLES TAXIS,19,,
Capital,Adult Services,Capital,Capital,5105629112,12.04.2017,S106 Capital Projects,External Design and Supervision Fees,"5,360.00",ISLAND HIGHWAY & TRANSPORT,20,,
Capital,Place,Capital,Capital,5105631196,28.04.2017,Bus Infrastructure,External Design and Supervision Fees,400.00,ISLAND HIGHWAY & TRANSPORT,21,,
Capital,Place,Capital,Capital,5105630802,26.04.2017,Bus Infrastructure,External Design and Supervision Fees,940.00,ISLAND HIGHWAY & TRANSPORT,22,,
Revenue,Place,Cultural and Related Services,Open Spaces,5105630800,26.04.2017,Open space lettings,Payment to Private Contractors,595.00,ISLAND HIGHWAY & TRANSPORT,23,,
Revenue,Resources,Central Services,Support Services,5105629087,12.04.2017,ICT Contracts,Computer Maintenance,300.00,REDACTED PERSONAL DATA,24,,
Revenue,Childrens Services,Children's & Education Services,Other Education and Community Budget,5105630746,26.04.2017,Core Programmes,Training,"2,090.00",REDACTED PERSONAL DATA,25,,
Revenue,Place,Cultural and Related Services,Recreation and Sport,5105630831,26.04.2017,Play Development,Grants to External Bodies,250.00,REDACTED PERSONAL DATA,26,,
Revenue,Childrens Services,Children's & Education Services,Family Support Services,5105629027,12.04.2017,Short Breaks,Charges from Independent Providers,274.00,REDACTED PERSONAL DATA,27,,
Revenue,Place,Environmental & Regulatory Services,Service Management and Support Services,5105628557,07.04.2017,Environment officers,Payment to Private Contractors,30.00,JOHN MARSH DRIVING INSTRUCTOR,28,,
Revenue,Adult Services,Adult Social Care,Central Codes (to be reallocated),5105631194,28.04.2017,Community Outreach,Training,30.00,JOHN MARSH DRIVING INSTRUCTOR,29,,
Revenue,Childrens Services,Children's & Education Services,Children Looked After,5105629028,12.04.2017,Adoption Support Fund,Charges from Independent Providers,303.60,REDACTED PERSONAL DATA,30,,
Revenue,Childrens Services,Children's & Education Services,Children Looked After,5105629029,07.04.2017,Adoption Support Fund,Charges from Independent Providers,200.00,REDACTED PERSONAL DATA,31,,
Revenue,Place,Cultural and Related Services,Culture and Heritage,5105630898,26.04.2017,Dinosaur Isle Museum (Sandown Geology),Heritage Acquisitions,650.00,REDACTED PERSONAL DATA,32,,
Revenue,Childrens Services,Children's & Education Services,Other Education and Community Budget,5105630781,26.04.2017,I W College - Home to College Transport,Transport of Clients,874.00,REDACTED PERSONAL DATA,33,,
Revenue,Childrens Services,Children's & Education Services,Other Education and Community Budget,5105629436,13.04.2017,Complaints (Children & Families),Professional Services,325.20,REDACTED PERSONAL DATA,34,,
Revenue,Place,Housing Services,Homelessness,5105630908,26.04.2017,Homelessness,Client Expenses,180.00,LEE ATKINS TRANSPORT,35,,
Capital,Place,Capital,Capital,5105629209,12.04.2017,Rights Of Way Capital Programme,Payment to Contractors - Capital,750.00,REDACTED PERSONAL DATA,36,,
Revenue,Place,Housing Services,Homelessness,5105630555,21.04.2017,Leaseholds by LA,Accommodation Costs - Leaseholder Payments,695.89,REDACTED PERSONAL DATA,37,,
Revenue,Place,Housing Services,Homelessness,5105630555,21.04.2017,Leaseholds by LA,Accommodation Costs - Leaseholder Payments,695.89,REDACTED PERSONAL DATA,38,,
Revenue,Place,Housing Services,Homelessness,5105630555,21.04.2017,Leaseholds by LA,Accommodation Costs - Leaseholder Payments,695.89,REDACTED PERSONAL DATA,39,,
Revenue,Place,Housing Services,Homelessness,5105630555,21.04.2017,Leaseholds by LA,Accommodation Costs - Leaseholder Payments,695.89,REDACTED PERSONAL DATA,40,,
Revenue,Place,Housing Services,Homelessness,5105630555,21.04.2017,Leaseholds by LA,Accommodation Costs - Leaseholder Payments,695.89,REDACTED PERSONAL DATA,41,,
Revenue,Place,Central Services,Support Services,5105630266,19.04.2017,Ratings / Property Savings,Professional Services,"1,809.26",PRINCIPAL SURVEYORS LTD,42,,
Revenue,Place,Central Services,Support Services,5105628409,05.04.2017,17 Fairlee Road,Minor Works,"1,623.18",REDACTED PERSONAL DATA,43,,
Revenue,Childrens Services,Children's & Education Services,Support Service & Management Costs,5105628288,05.04.2017,Childrens Centres Maintenance,Minor Works,281.18,REDACTED PERSONAL DATA,44,,
Revenue,Childrens Services,Children's & Education Services,Support Service & Management Costs,5105629211,21.04.2017,Childrens Centres Maintenance,Minor Works,165.00,REDACTED PERSONAL DATA,45,,
Revenue,Place,Cultural and Related Services,Culture and Heritage,5105628780,07.04.2017,Medina Theatre,Payment to Private Contractors,60.00,REDACTED PERSONAL DATA,46,,
Revenue,Childrens Services,Children's & Education Services,Safeguarding Children/Young Peoples Svs,5105628513,05.04.2017,LSCB (Local Safeguarding Childrens Board),Training,500.00,REDACTED PERSONAL DATA,47,,
Revenue,Childrens Services,Children's & Education Services,Safeguarding Children/Young Peoples Svs,5105628513,05.04.2017,LSCB (Local Safeguarding Childrens Board),Training,265.74,REDACTED PERSONAL DATA,48,,
Revenue,Childrens Services,Children's & Education Services,Children Looked After,5105628556,07.04.2017,Leaving Care Costs,Accommodation Costs - Service Users,297.60,NUMBER5NEWPORT,49,,
Revenue,Childrens Services,Children's & Education Services,Children Looked After,5105628555,07.04.2017,Leaving Care Costs,Accommodation Costs - Service Users,144.00,NUMBER5NEWPORT,50,,
Revenue,Childrens Services,Children's & Education Services,Children Looked After,5105631169,28.04.2017,Support for Looked After Children,Support Children,120.00,NUMBER5NEWPORT,52,,
Revenue,Childrens Services,Children's & Education Services,Children Looked After,5105631169,28.04.2017,Support for Looked After Children,Support Children,343.00,NUMBER5NEWPORT,53,,
Revenue,Childrens Services,Children's & Education Services,Children Looked After,5105631169,28.04.2017,Support for Looked After Children,Support Children,45.00,NUMBER5NEWPORT,54,,
Revenue,Childrens Services,Children's & Education Services,Children Looked After,5105631169,28.04.2017,Support for Looked After Children,Support Children,162.00,NUMBER5NEWPORT,55,,
Revenue,Childrens Services,Children's & Education Services,Children Looked After,5105631169,28.04.2017,Support for Looked After Children,Support Children,30.00,NUMBER5NEWPORT,56,,
Revenue,Childrens Services,Children's & Education Services,Children Looked After,5105628555,07.04.2017,Leaving Care Costs,Charges from Independent Providers,"1,071.45",NUMBER5NEWPORT,57,,
Revenue,Childrens Services,Children's & Education Services,Children Looked After,5105628556,07.04.2017,Leaving Care Costs,Charges from Independent Providers,"2,878.66",NUMBER5NEWPORT,58,,
Revenue,Adult Services,Adult Social Care,Central Codes (to be reallocated),5105628474,07.04.2017,Gouldings Resource Centre,Property Services - Day to day Maintenance,750.00,WIGHT HEATING LTD,59,,
Revenue,Place,Fire & Rescue Services,Fire fighting and Rescue Operations,5105628475,07.04.2017,Business Support  - Fire,Property Services - Day to day Maintenance,65.00,WIGHT HEATING LTD,60,,
Capital,Resources,Capital,Capital,5105628690,05.04.2017,Management of Asbestos,Payment to Contractors - Capital,"5,112.38",WIGHT HEATING LTD,61,,
Capital,Resources,Capital,Capital,5105630547,21.04.2017,Management of Asbestos,Payment to Contractors - Capital,"12,136.71",WIGHT HEATING LTD,62,,
Revenue,Adult Services,Adult Social Care,Central Codes (to be reallocated),5105628473,07.04.2017,Adelaide Resource Centre,Property Services - Day to day Maintenance,264.62,WIGHT HEATING LTD,63,,
Revenue,Place,Cultural and Related Services,Recreation and Sport,5105628471,07.04.2017,The Heights,Property Services - Day to day Maintenance,"1,056.82",WIGHT HEATING LTD,64,,
Revenue,Place,Cultural and Related Services,Recreation and Sport,5105628472,07.04.2017,The Heights,Property Services - Day to day Maintenance,"1,056.00",WIGHT HEATING LTD,65,,
Revenue,Place,Cultural and Related Services,Recreation and Sport,5105630519,21.04.2017,The Heights,Property Services - Day to day Maintenance,"-1,056.00",WIGHT HEATING LTD,66,,
Revenue,Place,Housing Services,Homelessness,5105630572,21.04.2017,Leaseholds by LA,Accommodation Costs - Leaseholder Payments,866.67,2K PROPERTY,67,,
Revenue,Childrens Services,Children's & Education Services,Children Looked After,5105628700,05.04.2017,Purchased Fostering,Charges from Independent Providers,"4,114.50",5 FOSTERING,68,,
Revenue,Childrens Services,Children's & Education Services,Children Looked After,5105630315,21.04.2017,Special Guardianship Order Costs,Support Children,168.39,REDACTED PERSONAL DATA,79,,
Revenue,Childrens Services,Children's & Education Services,Children Looked After,5105628829,07.04.2017,Special Guardianship Order Costs,Support Children,168.39,REDACTED PERSONAL DATA,80,,
Revenue,Childrens Services,Children's & Education Services,Children Looked After,5105629268,13.04.2017,Special Guardianship Order Costs,Support Children,168.39,REDACTED PERSONAL DATA,81,,
Revenue,Childrens Services,Children's & Education Services,Children Looked After,5105631001,28.04.2017,Special Guardianship Order Costs,Support Children,168.39,REDACTED PERSONAL DATA,82,,
Revenue,Childrens Services,Children's & Education Services,Children Looked After,5105629327,13.04.2017,Leaving Care Costs,Support Children,120.89,REDACTED PERSONAL DATA,89,,
Revenue,Childrens Services,Children's & Education Services,Children Looked After,5105629327,13.04.2017,Leaving Care Costs,Support Children,68.50,REDACTED PERSONAL DATA,90,,
Revenue,Childrens Services,Children's & Education Services,Children Looked After,5105628889,07.04.2017,Leaving Care Costs,Support Children,68.50,REDACTED PERSONAL DATA,91,,
Revenue,Childrens Services,Children's & Education Services,Children Looked After,5105631058,28.04.2017,Leaving Care Costs,Support Children,120.89,REDACTED PERSONAL DATA,92,,
Revenue,Childrens Services,Children's & Education Services,Children Looked After,5105631058,28.04.2017,Leaving Care Costs,Support Children,68.50,REDACTED PERSONAL DATA,93,,
Revenue,Childrens Services,Children's & Education Services,Children Looked After,5105630373,21.04.2017,Leaving Care Costs,Support Children,120.89,REDACTED PERSONAL DATA,94,,
Revenue,Childrens Services,Children's & Education Services,Children Looked After,5105630373,21.04.2017,Leaving Care Costs,Support Children,68.50,REDACTED PERSONAL DATA,95,,
Revenue,Childrens Services,Children's & Education Services,Children Looked After,5105628889,07.04.2017,Leaving Care Costs,Support Children,120.89,REDACTED PERSONAL DATA,96,,
Revenue,Place,Housing Services,Homelessness,5105630567,21.04.2017,Leaseholds by LA,Accommodation Costs - Leaseholder Payments,510.25,REDACTED PERSONAL DATA,98,,
Revenue,Place,Housing Services,Homelessness,5105630567,21.04.2017,Leaseholds by LA,Accommodation Costs - Leaseholder Payments,510.25,REDACTED PERSONAL DATA,99,,
Revenue,Place,Housing Services,Homelessness,5105630567,21.04.2017,Leaseholds by LA,Accommodation Costs - Leaseholder Payments,510.25,REDACTED PERSONAL DATA,100,,
Revenue,Place,Housing Services,Homelessness,5105630567,21.04.2017,Leaseholds by LA,Accommodation Costs - Leaseholder Payments,510.25,REDACTED PERSONAL DATA,101,,
Revenue,Place,Housing Services,Homelessness,5105630567,21.04.2017,Leaseholds by LA,Accommodation Costs - Leaseholder Payments,510.25,REDACTED PERSONAL DATA,102,,
Revenue,Place,Housing Services,Homelessness,5105630567,21.04.2017,Leaseholds by LA,Accommodation Costs - Leaseholder Payments,510.25,REDACTED PERSONAL DATA,103,,
Revenue,Childrens Services,Children's & Education Services,Children Looked After,5105629253,13.04.2017,Adoption Costs,Support Children,225.83,REDACTED PERSONAL DATA,107,,
Revenue,Childrens Services,Children's & Education Services,Children Looked After,5105630986,28.04.2017,Adoption Costs,Support Children,225.83,REDACTED PERSONAL DATA,108,,
Revenue,Childrens Services,Children's & Education Services,Children Looked After,5105630300,21.04.2017,Adoption Costs,Support Children,225.83,REDACTED PERSONAL DATA,109,,
Revenue,Childrens Services,Children's & Education Services,Children Looked After,5105628814,07.04.2017,Adoption Costs,Support Children,225.83,REDACTED PERSONAL DATA,110,,
Revenue,Childrens Services,Children's & Education Services,Children Looked After,5105631030,28.04.2017,In-house Fostering,Boarding Out Allowances,500.00,REDACTED PERSONAL DATA,116,,
Revenue,Childrens Services,Children's & Education Services,Children Looked After,5105630345,21.04.2017,In-house Fostering,Boarding Out Allowances,500.00,REDACTED PERSONAL DATA,117,,
Revenue,Childrens Services,Children's & Education Services,Children Looked After,5105628861,07.04.2017,In-house Fostering,Boarding Out Allowances,500.00,REDACTED PERSONAL DATA,118,,
Revenue,Childrens Services,Children's & Education Services,Children Looked After,5105629299,13.04.2017,In-house Fostering,Boarding Out Allowances,500.00,REDACTED PERSONAL DATA,119,,
Revenue,Place,Housing Services,Homelessness,5105630569,21.04.2017,Leaseholds by LA,Accommodation Costs - Leaseholder Payments,780.00,REDACTED PERSONAL DATA,120,,
Revenue,Place,Housing Services,Homelessness,5105630558,21.04.2017,Leaseholds by LA,Accommodation Costs - Leaseholder Payments,649.83,REDACTED PERSONAL DATA,127,,
Revenue,Place,Housing Services,Homelessness,5105630558,21.04.2017,Leaseholds by LA,Accommodation Costs - Leaseholder Payments,789.01,REDACTED PERSONAL DATA,128,,
Revenue,Place,Housing Services,Homelessness,5105630558,21.04.2017,Leaseholds by LA,Accommodation Costs - Leaseholder Payments,835.08,REDACTED PERSONAL DATA,129,,
Revenue,Place,Housing Services,Homelessness,5105630558,21.04.2017,Leaseholds by LA,Accommodation Costs - Leaseholder Payments,700.00,REDACTED PERSONAL DATA,130,,
Revenue,Place,Highways and Transport Services,Transport Planning Policy and Strategy,5105628515,05.04.2017,Sustainable Travel Transition Year LSTF,Grants to External Bodies,"1,992.90",A TO THERE SOLUTIONS LTD,132,,
Revenue,Place,Highways and Transport Services,Transport Planning Policy and Strategy,5105628515,05.04.2017,Sustainable Travel Transition Year LSTF,Grants to External Bodies,"2,716.30",A TO THERE SOLUTIONS LTD,133,,
Revenue,Childrens Services,Children's & Education Services,Safeguarding Children/Young Peoples Svs,5105628492,05.04.2017,Court Work & Consultancy Services,Professional Services,465.00,AA GLOBAL LANGUAGE SERVICES LTD,137,,
Revenue,Childrens Services,Children's & Education Services,Safeguarding Children/Young Peoples Svs,5105629152,12.04.2017,Court Work & Consultancy Services,Legal Fees - Other Parties,168.00,AA GLOBAL LANGUAGE SERVICES LTD,138,,
Revenue,Adult Services,Adult Social Care,Support - Memory /Cognition-older people (65+),5105630157,19.04.2017,Memory & Cognition Residential 65+,Charges from Independent Providers,"3,200.12",ABBERDALE LIMITED,139,,
Revenue,Place,Housing Services,Homelessness,5105630776,26.04.2017,Homelessness Prevention,Payment to Private Contractors,361.77,ABBOTTS FLOORING (IOW) LTD,140,,
Revenue,Resources,Central Services,Support Services,5105630780,26.04.2017,ICT Contracts,Consultants Fees,"8,400.00",ABSOFT LIMITED,144,,
Revenue,Adult Services,Adult Social Care,Support - Memory /Cognition-older people (65+),5105629593,19.04.2017,Memory & Cognition Residential 65+,Charges from Independent Providers,"1,905.96",ACACIA CARE HOME,145,,
Revenue,Adult Services,Adult Social Care,Mental Health Support-older people (65+),5105629187,12.04.2017,Mental Health Residential 65+,Charges from Independent Providers,80.02,ACACIA CARE HOME,146,,
Revenue,Adult Services,Adult Social Care,Physical Support - older people (65+),5105630874,26.04.2017,Physical Support Residential 65+,Charges from Independent Providers,974.85,ACACIA CARE HOME,147,,
Revenue,Adult Services,Adult Social Care,Social Support - Support for Carer,5105629593,19.04.2017,Carers Residential,Charges from Independent Providers,"1,905.96",ACACIA CARE HOME,148,,
Revenue,Adult Services,Adult Social Care,Physical Support - older people (65+),5105629593,19.04.2017,Physical Support Residential 65+,Charges from Independent Providers,"1,905.96",ACACIA CARE HOME,149,,
Revenue,Adult Services,Adult Social Care,Physical Support - older people (65+),5105629593,19.04.2017,Physical Support Residential 65+,Charges from Independent Providers,136.14,ACACIA CARE HOME,150,,
Revenue,Adult Services,Adult Social Care,Physical Support - older people (65+),5105629593,19.04.2017,Physical Support Residential 65+,Charges from Independent Providers,"1,819.72",ACACIA CARE HOME,151,,
Revenue,Adult Services,Adult Social Care,Physical Support - older people (65+),5105630874,26.04.2017,Physical Support Residential 65+,Charges from Independent Providers,"1,429.47",ACACIA CARE HOME,152,,
Revenue,Adult Services,Adult Social Care,Physical Support - older people (65+),5105629593,19.04.2017,Physical Support Residential 65+,Charges from Independent Providers,"1,819.72",ACACIA CARE HOME,153,,
Revenue,Adult Services,Adult Social Care,Physical Support - older people (65+),5105629593,19.04.2017,Physical Support Residential 65+,Charges from Independent Providers,"1,819.72",ACACIA CARE HOME,154,,
Revenue,Adult Services,Adult Social Care,Physical Support - older people (65+),5105629593,19.04.2017,Physical Support Residential 65+,Charges from Independent Providers,"1,819.72",ACACIA CARE HOME,155,,
Revenue,Adult Services,Adult Social Care,Physical Support - older people (65+),5105629427,13.04.2017,Physical Support Residential 65+,Charges from Independent Providers,"1,089.12",ACACIA CARE HOME,156,,
Revenue,Adult Services,Adult Social Care,Learning Disab Supp (to be reallocated),5105630918,26.04.2017,Saxonbury,Interview & recruitment expenses,6.00,ACCESS PERSONAL CHECKING SERVICES LTD,157,,
Revenue,Place,Cultural and Related Services,Recreation and Sport,5105630918,26.04.2017,Medina Leisure Centre,Interview & recruitment expenses,6.00,ACCESS PERSONAL CHECKING SERVICES LTD,158,,
Revenue,Place,Cultural and Related Services,Recreation and Sport,5105630918,26.04.2017,Medina Leisure Centre,Interview & recruitment expenses,12.00,ACCESS PERSONAL CHECKING SERVICES LTD,159,,
Revenue,Childrens Services,Children's & Education Services,Children Looked After,5105630918,26.04.2017,Adoption Costs,Interview & recruitment expenses,36.00,ACCESS PERSONAL CHECKING SERVICES LTD,160,,
Revenue,Childrens Services,Children's & Education Services,Safeguarding Children/Young Peoples Svs,5105630918,26.04.2017,Children In Need 2,Interview & recruitment expenses,6.00,ACCESS PERSONAL CHECKING SERVICES LTD,161,,
Revenue,Childrens Services,Children's & Education Services,Children Looked After,5105630918,26.04.2017,Adoption Costs,Interview & recruitment expenses,264.00,ACCESS PERSONAL CHECKING SERVICES LTD,162,,
Revenue,Childrens Services,Children's & Education Services,Safeguarding Children/Young Peoples Svs,5105630918,26.04.2017,Children In Need 2,Interview & recruitment expenses,44.00,ACCESS PERSONAL CHECKING SERVICES LTD,163,,
Revenue,Adult Services,Adult Social Care,Learning Disab Supp (to be reallocated),5105630918,26.04.2017,Saxonbury,Interview & recruitment expenses,44.00,ACCESS PERSONAL CHECKING SERVICES LTD,164,,
Revenue,Adult Services,Adult Social Care,Central Codes (to be reallocated),5105630918,26.04.2017,Gouldings Resource Centre,Interview & recruitment expenses,44.00,ACCESS PERSONAL CHECKING SERVICES LTD,165,,
Revenue,Place,Cultural and Related Services,Recreation and Sport,5105630918,26.04.2017,Medina Leisure Centre,Interview & recruitment expenses,44.00,ACCESS PERSONAL CHECKING SERVICES LTD,166,,
Revenue,Place,Cultural and Related Services,Recreation and Sport,5105630918,26.04.2017,Medina Leisure Centre,Interview & recruitment expenses,88.00,ACCESS PERSONAL CHECKING SERVICES LTD,167,,
Revenue,#N/A,#N/A,#N/A,5105630918,26.04.2017,#N/A,Recruitment Advertising,396.00,ACCESS PERSONAL CHECKING SERVICES LTD,168,,
Revenue,#N/A,#N/A,#N/A,5105630918,26.04.2017,#N/A,Recruitment Advertising,25.00,ACCESS PERSONAL CHECKING SERVICES LTD,169,,
Revenue,#N/A,#N/A,#N/A,5105630918,26.04.2017,#N/A,Recruitment Advertising,90.00,ACCESS PERSONAL CHECKING SERVICES LTD,170,,
Revenue,#N/A,#N/A,#N/A,5105630918,26.04.2017,#N/A,Recruitment Advertising,8.00,ACCESS PERSONAL CHECKING SERVICES LTD,171,,
Revenue,Resources,Central Services,Support Services,5105630918,26.04.2017,Legal Services Section,Interview & recruitment expenses,6.00,ACCESS PERSONAL CHECKING SERVICES LTD,172,,
Revenue,Adult Services,Adult Social Care,Learning Disab Supp (to be reallocated),5105630918,26.04.2017,31 Carter Avenue,Interview & recruitment expenses,6.00,ACCESS PERSONAL CHECKING SERVICES LTD,173,,
Revenue,Adult Services,Adult Social Care,Assistive Equipment & Technology,5105630918,26.04.2017,Wightcare,Interview & recruitment expenses,12.00,ACCESS PERSONAL CHECKING SERVICES LTD,174,,
Revenue,Adult Services,Adult Social Care,Central Codes (to be reallocated),5105630918,26.04.2017,Community Outreach,Interview & recruitment expenses,24.00,ACCESS PERSONAL CHECKING SERVICES LTD,175,,
Revenue,Childrens Services,Children's & Education Services,Other Education and Community Budget,5105630918,26.04.2017,Personal & Community Development Learning,Interview & recruitment expenses,12.00,ACCESS PERSONAL CHECKING SERVICES LTD,176,,
Revenue,Childrens Services,Children's & Education Services,Other Education and Community Budget,5105630918,26.04.2017,Education Welfare Service,Interview & recruitment expenses,30.00,ACCESS PERSONAL CHECKING SERVICES LTD,177,,
Revenue,Childrens Services,Children's & Education Services,Children Looked After,5105630918,26.04.2017,Beaulieu House,Interview & recruitment expenses,24.00,ACCESS PERSONAL CHECKING SERVICES LTD,178,,
Revenue,Childrens Services,Children's & Education Services,Children Looked After,5105630918,26.04.2017,Beaulieu House,Interview & recruitment expenses,176.00,ACCESS PERSONAL CHECKING SERVICES LTD,179,,
Revenue,Childrens Services,Children's & Education Services,Management & Support Services,5105630918,26.04.2017,Pupil Premium Managed Centrally,Interview & recruitment expenses,44.00,ACCESS PERSONAL CHECKING SERVICES LTD,180,,
Revenue,Place,Highways and Transport Services,Traffic Management and Road Safety,5105630918,26.04.2017,School Crossing Patrols,Interview & recruitment expenses,44.00,ACCESS PERSONAL CHECKING SERVICES LTD,181,,
Revenue,Adult Services,Adult Social Care,Assistive Equipment & Technology,5105630918,26.04.2017,Wightcare,Interview & recruitment expenses,88.00,ACCESS PERSONAL CHECKING SERVICES LTD,182,,
Revenue,Adult Services,Adult Social Care,Central Codes (to be reallocated),5105630918,26.04.2017,Community Outreach,Interview & recruitment expenses,176.00,ACCESS PERSONAL CHECKING SERVICES LTD,183,,
Revenue,Adult Services,Adult Social Care,Learning Disab Supp (to be reallocated),5105630918,26.04.2017,31 Carter Avenue,Interview & recruitment expenses,44.00,ACCESS PERSONAL CHECKING SERVICES LTD,184,,
Revenue,Childrens Services,Children's & Education Services,Other Education and Community Budget,5105630918,26.04.2017,Personal & Community Development Learning,Interview & recruitment expenses,88.00,ACCESS PERSONAL CHECKING SERVICES LTD,185,,
Revenue,Childrens Services,Children's & Education Services,Management & Support Services,5105630918,26.04.2017,Pupil Premium Managed Centrally,Interview & recruitment expenses,6.00,ACCESS PERSONAL CHECKING SERVICES LTD,186,,
Revenue,Place,Highways and Transport Services,Traffic Management and Road Safety,5105630918,26.04.2017,School Crossing Patrols,Interview & recruitment expenses,6.00,ACCESS PERSONAL CHECKING SERVICES LTD,187,,
Revenue,Place,Environmental & Regulatory Services,Regulatory Services,5105630918,26.04.2017,Trading Standards,Interview & recruitment expenses,6.00,ACCESS PERSONAL CHECKING SERVICES LTD,188,,
Revenue,Place,Cultural and Related Services,Culture and Heritage,5105630918,26.04.2017,Medina Theatre,Recruitment Advertising,25.00,ACCESS PERSONAL CHECKING SERVICES LTD,189,,
Revenue,Resources,Central Services,Support Services,5105630918,26.04.2017,Legal Services Section,Recruitment Advertising,26.00,ACCESS PERSONAL CHECKING SERVICES LTD,190,,
Revenue,Place,Environmental & Regulatory Services,Regulatory Services,5105630918,26.04.2017,Trading Standards,Recruitment Advertising,26.00,ACCESS PERSONAL CHECKING SERVICES LTD,191,,
Revenue,Place,Cultural and Related Services,Culture and Heritage,5105630918,26.04.2017,Medina Theatre,Recruitment Advertising,8.00,ACCESS PERSONAL CHECKING SERVICES LTD,192,,
Revenue,Adult Services,Adult Social Care,Learning Disab Supp (to be reallocated),5105630918,26.04.2017,40 Venner Avenue,Interview & recruitment expenses,12.00,ACCESS PERSONAL CHECKING SERVICES LTD,193,,
Revenue,Adult Services,Adult Social Care,Social Care Activities,5105630918,26.04.2017,Long Term Conditions,Interview & recruitment expenses,6.00,ACCESS PERSONAL CHECKING SERVICES LTD,194,,
Revenue,Adult Services,Adult Social Care,Learning Disab Supp (to be reallocated),5105630918,26.04.2017,40 Venner Avenue,Interview & recruitment expenses,88.00,ACCESS PERSONAL CHECKING SERVICES LTD,195,,
Revenue,Adult Services,Adult Social Care,Social Care Activities,5105630918,26.04.2017,Long Term Conditions,Interview & recruitment expenses,44.00,ACCESS PERSONAL CHECKING SERVICES LTD,196,,
Revenue,Resources,Central Services,Support Services,5105630918,26.04.2017,Call Centre,Recruitment Advertising,50.00,ACCESS PERSONAL CHECKING SERVICES LTD,197,,
Revenue,Resources,Central Services,Support Services,5105630918,26.04.2017,Call Centre,Recruitment Advertising,16.00,ACCESS PERSONAL CHECKING SERVICES LTD,198,,
Revenue,Place,Environmental & Regulatory Services,Regulatory Services,5105629131,12.04.2017,Licensing Services,Professional Services,102.00,ACCESS PERSONAL CHECKING SERVICES LTD,199,,
Revenue,Place,Environmental & Regulatory Services,Regulatory Services,5105629131,12.04.2017,Licensing Services,Professional Services,748.00,ACCESS PERSONAL CHECKING SERVICES LTD,200,,
Revenue,Adult Services,Adult Social Care,Central Codes (to be reallocated),5105630918,26.04.2017,Adelaide Resource Centre,Interview & recruitment expenses,24.00,ACCESS PERSONAL CHECKING SERVICES LTD,201,,
Revenue,Childrens Services,Children's & Education Services,Youth Justice,5105630918,26.04.2017,Youth Offending Team,Interview & recruitment expenses,6.00,ACCESS PERSONAL CHECKING SERVICES LTD,202,,
Revenue,Childrens Services,Children's & Education Services,Children Looked After,5105630918,26.04.2017,In-house Fostering,Interview & recruitment expenses,6.00,ACCESS PERSONAL CHECKING SERVICES LTD,203,,
Revenue,Childrens Services,Children's & Education Services,Children Looked After,5105630918,26.04.2017,In-house Fostering,Interview & recruitment expenses,54.00,ACCESS PERSONAL CHECKING SERVICES LTD,204,,
Revenue,Childrens Services,Children's & Education Services,Children Looked After,5105630918,26.04.2017,In-house Fostering,Interview & recruitment expenses,44.00,ACCESS PERSONAL CHECKING SERVICES LTD,205,,
Revenue,Childrens Services,Children's & Education Services,Children Looked After,5105630918,26.04.2017,In-house Fostering,Interview & recruitment expenses,396.00,ACCESS PERSONAL CHECKING SERVICES LTD,206,,
Revenue,Adult Services,Adult Social Care,Central Codes (to be reallocated),5105630918,26.04.2017,Adelaide Resource Centre,Interview & recruitment expenses,176.00,ACCESS PERSONAL CHECKING SERVICES LTD,207,,
Revenue,Childrens Services,Children's & Education Services,Safeguarding Children/Young Peoples Svs,5105630918,26.04.2017,ICS & Data,Recruitment Advertising,25.00,ACCESS PERSONAL CHECKING SERVICES LTD,208,,
Revenue,Childrens Services,Children's & Education Services,Safeguarding Children/Young Peoples Svs,5105630918,26.04.2017,ICS & Data,Recruitment Advertising,8.00,ACCESS PERSONAL CHECKING SERVICES LTD,209,,
Revenue,Place,Fire & Rescue Services,Fire fighting and Rescue Operations,5105630958,28.04.2017,Fire Technical Support,Vehicle Maintenance Costs,12.00,ACCLAIM LOGISTICS LTD,210,,
Capital,Adult Services,Capital,Capital,5105630792,26.04.2017,S106 Capital Projects,External Design and Supervision Fees,460.15,ACTION IN RURAL SUSSEX,211,,
Revenue,Resources,Central Services,Support Services,5105630272,21.04.2017,Litigation Costs,Legal Fees - Other Parties,400.00,"COLLEGE CHAMBERS, BARRISTERS",213,,
Revenue,Resources,Central Services,Support Services,5105628394,05.04.2017,Litigation Costs,Legal Fees - Other Parties,400.00,"COLLEGE CHAMBERS, BARRISTERS",214,,
Revenue,Place,Fire & Rescue Services,Fire fighting and Rescue Operations,5105630263,19.04.2017,Fire Technical Support,Vehicle Maintenance Costs,20.00,ADAMS MOREY LTD,215,,
Revenue,Place,Fire & Rescue Services,Fire fighting and Rescue Operations,5105630970,28.04.2017,Fire Technical Support,Vehicle Maintenance Costs,-40.00,ADAMS MOREY LTD,216,,
Revenue,Place,Fire & Rescue Services,Fire fighting and Rescue Operations,5105630969,28.04.2017,Fire Technical Support,Vehicle Maintenance Costs,40.00,ADAMS MOREY LTD,217,,
Revenue,Place,Fire & Rescue Services,Fire fighting and Rescue Operations,5105630967,28.04.2017,Fire Technical Support,Vehicle Maintenance Costs,40.00,ADAMS MOREY LTD,218,,
Revenue,Place,Fire & Rescue Services,Fire fighting and Rescue Operations,5105630968,28.04.2017,Fire Technical Support,Vehicle Maintenance Costs,20.00,ADAMS MOREY LTD,219,,
Revenue,Place,Fire & Rescue Services,Fire fighting and Rescue Operations,5105630835,26.04.2017,Fire Technical Support,Vehicle Maintenance Costs,295.90,ADAMS MOREY LTD,220,,
Revenue,Place,Fire & Rescue Services,Fire fighting and Rescue Operations,5105631205,28.04.2017,Fire Technical Support,Vehicle Maintenance Costs,491.80,ADAMS MOREY LTD,221,,
Revenue,Place,Fire & Rescue Services,Fire fighting and Rescue Operations,5105629088,12.04.2017,Fire Technical Support,Vehicle Maintenance Costs,5.90,ADAMS MOREY LTD,222,,
Revenue,Place,Fire & Rescue Services,Fire fighting and Rescue Operations,5105629088,12.04.2017,Fire Technical Support,Vehicle Maintenance Costs,2.10,ADAMS MOREY LTD,223,,
Revenue,Place,Fire & Rescue Services,Fire fighting and Rescue Operations,5105629088,12.04.2017,Fire Technical Support,Vehicle Maintenance Costs,6.00,ADAMS MOREY LTD,224,,
Revenue,Place,Fire & Rescue Services,Fire fighting and Rescue Operations,5105629088,12.04.2017,Fire Technical Support,Vehicle Maintenance Costs,17.00,ADAMS MOREY LTD,225,,
Revenue,Childrens Services,Children's & Education Services,Management & Support Services,5105628485,05.04.2017,Education Direct Payments,Charges from Independent Providers,850.00,A-DAY CONSULTANTS LTD,226,,
Revenue,Childrens Services,Children's & Education Services,Management & Support Services,5105630525,21.04.2017,Education Direct Payments,Charges from Independent Providers,775.00,A-DAY CONSULTANTS LTD,227,,
Revenue,Childrens Services,Children's & Education Services,Special Schools & Alternative Provision,5105628289,05.04.2017,Island Learning Centre,Agency staff,331.80,A-DAY CONSULTANTS LTD,228,,
Revenue,Childrens Services,Children's & Education Services,Special Schools & Alternative Provision,5105628645,05.04.2017,Island Learning Centre,Agency staff,315.00,A-DAY CONSULTANTS LTD,229,,
Revenue,Childrens Services,Children's & Education Services,Special Schools & Alternative Provision,5105628620,05.04.2017,Island Learning Centre,Agency staff,333.50,A-DAY CONSULTANTS LTD,230,,
Revenue,Childrens Services,Children's & Education Services,Special Schools & Alternative Provision,5105628622,05.04.2017,Island Learning Centre,Agency staff,820.30,A-DAY CONSULTANTS LTD,231,,
Revenue,Childrens Services,Children's & Education Services,Services for Young People,5105629173,12.04.2017,Youth- West Wight,Security of Buildings,136.11,ADT FIRE AND SECURITY PLC,232,,
Revenue,Adult Services,Adult Social Care,Commissioning & Service Delivery,5105628314,12.04.2017,Learning Disability Homes Management & Admin,Publications,64.94,AGORA BUSINESS PUBLICATIONS LLP,233,,
Revenue,Place,Central Services,Support Services,5105630861,26.04.2017,"Enterprise House, Newport",Property Services - Day to day Maintenance,87.50,AIRTEK SERVICES IOW LTD,235,,
Revenue,Place,Central Services,Support Services,5105630864,26.04.2017,"Enterprise House, Newport",Property Services - Day to day Maintenance,"1,350.00",AIRTEK SERVICES IOW LTD,236,,
Revenue,Adult Services,Adult Social Care,Learning Disability Suppt-adults (18-64),5105630130,19.04.2017,Learning Disability Residential 18-64,Charges from Independent Providers,"5,950.00",AITCH CARE HOMES (LONDON) LTD,237,,
Revenue,Place,Cultural and Related Services,Culture and Heritage,5105631158,28.04.2017,Dinosaur Isle Museum (Sandown Geology),Stock Purchases,425.25,ALLSORTED LTD,246,,
Revenue,Place,Cultural and Related Services,Culture and Heritage,5105631158,28.04.2017,Dinosaur Isle Museum (Sandown Geology),Stock Purchases,67.75,ALLSORTED LTD,247,,
Revenue,Place,Highways and Transport Services,Public Transport,5105628738,05.04.2017,Transport Fleet Administration,Vehicle Fuel Costs,"8,956.59",ALLSTAR BUSINESS SOLUTIONS LTD,248,,
Revenue,Childrens Services,Children's & Education Services,Children Looked After,5105630655,21.04.2017,Support for Looked After Children - Disabled Childrens Team,Transport of Clients,160.00,ALPHA (IOW) LTD,249,,
Revenue,Childrens Services,Children's & Education Services,Management & Support Services,5105630924,26.04.2017,Special Educational Needs Transport,Taxis - Contract Hire,180.00,ALPHA (IOW) LTD,250,,
Revenue,Childrens Services,Children's & Education Services,Management & Support Services,5105630924,26.04.2017,Special Educational Needs Transport,Taxis - Contract Hire,120.00,ALPHA (IOW) LTD,251,,
Revenue,Childrens Services,Children's & Education Services,Management & Support Services,5105630924,26.04.2017,Special Educational Needs Transport,Taxis - Contract Hire,70.00,ALPHA (IOW) LTD,252,,
Revenue,Childrens Services,Children's & Education Services,Management & Support Services,5105630924,26.04.2017,Special Educational Needs Transport,Taxis - Contract Hire,200.00,ALPHA (IOW) LTD,253,,
Revenue,Childrens Services,Children's & Education Services,Management & Support Services,5105630924,26.04.2017,Special Educational Needs Transport,Taxis - Contract Hire,280.00,ALPHA (IOW) LTD,254,,
Revenue,Childrens Services,Children's & Education Services,Management & Support Services,5105630924,26.04.2017,Special Educational Needs Transport,Taxis - Contract Hire,250.00,ALPHA (IOW) LTD,255,,
Revenue,Childrens Services,Children's & Education Services,Management & Support Services,5105630924,26.04.2017,Special Educational Needs Transport,Taxis - Contract Hire,300.00,ALPHA (IOW) LTD,256,,
Revenue,Childrens Services,Children's & Education Services,Management & Support Services,5105630924,26.04.2017,Special Educational Needs Transport,Taxis - Contract Hire,300.00,ALPHA (IOW) LTD,257,,
Revenue,Childrens Services,Children's & Education Services,Management & Support Services,5105630924,26.04.2017,Special Educational Needs Transport,Taxis - Contract Hire,320.00,ALPHA (IOW) LTD,258,,
Revenue,Childrens Services,Children's & Education Services,Management & Support Services,5105630924,26.04.2017,Special Educational Needs Transport,Taxis - Contract Hire,280.00,ALPHA (IOW) LTD,259,,
Revenue,Childrens Services,Children's & Education Services,Management & Support Services,5105630924,26.04.2017,Special Educational Needs Transport,Taxis - Contract Hire,450.00,ALPHA (IOW) LTD,260,,
Revenue,Childrens Services,Children's & Education Services,Management & Support Services,5105630924,26.04.2017,Special Educational Needs Transport,Taxis - Contract Hire,360.00,ALPHA (IOW) LTD,261,,
Revenue,Childrens Services,Children's & Education Services,Management & Support Services,5105630924,26.04.2017,Special Educational Needs Transport,Taxis - Contract Hire,400.00,ALPHA (IOW) LTD,262,,
Revenue,Childrens Services,Children's & Education Services,Management & Support Services,5105630924,26.04.2017,Special Educational Needs Transport,Taxis - Contract Hire,450.00,ALPHA (IOW) LTD,263,,
Revenue,Childrens Services,Children's & Education Services,Management & Support Services,5105630924,26.04.2017,Special Educational Needs Transport,Taxis - Contract Hire,250.00,ALPHA (IOW) LTD,264,,
Revenue,Childrens Services,Children's & Education Services,Management & Support Services,5105630924,26.04.2017,Pre 16 Independ. & Non-Maint. Special Schls & Independ. Specialist Provision,Transport of Clients,350.00,ALPHA (IOW) LTD,265,,
Revenue,Childrens Services,Children's & Education Services,Management & Support Services,5105630924,26.04.2017,Pre 16 Independ. & Non-Maint. Special Schls & Independ. Specialist Provision,Transport of Clients,350.00,ALPHA (IOW) LTD,266,,
Revenue,Childrens Services,Children's & Education Services,Management & Support Services,5105630675,26.04.2017,Pre 16 Independ. & Non-Maint. Special Schls & Independ. Specialist Provision,Transport of Clients,810.00,ALPHA (IOW) LTD,267,,
Revenue,Childrens Services,Children's & Education Services,Other Education and Community Budget,5105630924,26.04.2017,Home to School Transport,Taxis - Contract Hire,200.00,ALPHA (IOW) LTD,268,,
Revenue,Childrens Services,Children's & Education Services,Other Education and Community Budget,5105630924,26.04.2017,Home to School Transport,Taxis - Contract Hire,200.00,ALPHA (IOW) LTD,269,,
Revenue,Childrens Services,Children's & Education Services,Other Education and Community Budget,5105630924,26.04.2017,Home to School Transport,Taxis - Contract Hire,250.00,ALPHA (IOW) LTD,270,,
Revenue,Childrens Services,Children's & Education Services,Other Education and Community Budget,5105630924,26.04.2017,Home to School Transport,Taxis - Contract Hire,175.00,ALPHA (IOW) LTD,271,,
Revenue,Childrens Services,Children's & Education Services,Other Education and Community Budget,5105630924,26.04.2017,Home to School Transport,Taxis - Contract Hire,600.00,ALPHA (IOW) LTD,272,,
Revenue,Childrens Services,Children's & Education Services,Other Education and Community Budget,5105630924,26.04.2017,Home to School Transport,Taxis - Contract Hire,350.00,ALPHA (IOW) LTD,273,,
Revenue,Childrens Services,Children's & Education Services,Management & Support Services,5105630924,26.04.2017,"Speech, Language and Communication",Transport of Clients,200.00,ALPHA (IOW) LTD,274,,
Revenue,Childrens Services,Children's & Education Services,Family Support Services,5105630658,21.04.2017,S17 Disabled Children,Transport of Clients,78.00,ALPHA (IOW) LTD,275,,
Revenue,Childrens Services,Children's & Education Services,Management & Support Services,5105630924,26.04.2017,"Speech, Language and Communication",Transport of Clients,700.00,ALPHA (IOW) LTD,276,,
Revenue,Adult Services,Adult Social Care,Learning Disability Suppt-adults (18-64),5105629531,19.04.2017,Learning Disability Residential 18-64,Charges from Independent Providers,"3,836.84",ALPHAGRANGE LTD,277,,
Revenue,Resources,Central Services,Support Services,5105630644,21.04.2017,Staff Benefits,Payment to Private Contractors,243.00,REDACTED PERSONAL DATA,279,,
Revenue,Childrens Services,Children's & Education Services,Other Education and Community Budget,5105629230,12.04.2017,Home to School Transport,Taxis - Contract Hire,828.00,AMAR CABS OF NEWPORT,280,,
Revenue,Childrens Services,Children's & Education Services,Children Looked After,5105628965,07.04.2017,Children placed with Family&Friends,Boarding Out Allowances,274.81,REDACTED PERSONAL DATA,282,,
Revenue,Childrens Services,Children's & Education Services,Children Looked After,5105628965,07.04.2017,Children placed with Family&Friends,Boarding Out Allowances,234.52,REDACTED PERSONAL DATA,283,,
Revenue,Childrens Services,Children's & Education Services,Children Looked After,5105628965,07.04.2017,Children placed with Family&Friends,Boarding Out Allowances,274.81,REDACTED PERSONAL DATA,284,,
Revenue,Adult Services,Adult Social Care,Physical Support - older people (65+),5105629009,07.04.2017,Physical Support Residential 65+,Charges from Independent Providers,"7,538.84",ANCONA CARE HOME,286,,
Revenue,Adult Services,Adult Social Care,Physical Support - older people (65+),5105629009,07.04.2017,Physical Support Residential 65+,Charges from Independent Providers,"5,719.12",ANCONA CARE HOME,287,,
Revenue,Adult Services,Adult Social Care,Physical Support - older people (65+),5105629533,19.04.2017,Physical Support Residential 65+,Charges from Independent Providers,"2,240.56",ANCONA CARE HOME,288,,
Revenue,Adult Services,Adult Social Care,Physical Support - older people (65+),5105629533,19.04.2017,Physical Support Residential 65+,Charges from Independent Providers,"1,819.72",ANCONA CARE HOME,289,,
Revenue,Adult Services,Adult Social Care,Physical Support - older people (65+),5105629533,19.04.2017,Physical Support Residential 65+,Charges from Independent Providers,"1,819.72",ANCONA CARE HOME,290,,
Revenue,Adult Services,Adult Social Care,Physical Support - older people (65+),5105629533,19.04.2017,Physical Support Residential 65+,Charges from Independent Providers,"2,240.56",ANCONA CARE HOME,291,,
Revenue,Adult Services,Adult Social Care,Physical Support - older people (65+),5105629533,19.04.2017,Physical Support Residential 65+,Charges from Independent Providers,"1,905.96",ANCONA CARE HOME,292,,
Revenue,Adult Services,Adult Social Care,Physical Support - older people (65+),5105629533,19.04.2017,Physical Support Residential 65+,Charges from Independent Providers,"1,819.72",ANCONA CARE HOME,293,,
Revenue,Adult Services,Adult Social Care,Physical Support - older people (65+),5105629533,19.04.2017,Physical Support Residential 65+,Charges from Independent Providers,"1,905.96",ANCONA CARE HOME,294,,
Revenue,Adult Services,Adult Social Care,Physical Support - older people (65+),5105629533,19.04.2017,Physical Support Residential 65+,Charges from Independent Providers,"1,905.96",ANCONA CARE HOME,295,,
Revenue,Adult Services,Adult Social Care,Physical Support - older people (65+),5105629243,13.04.2017,Physical Support Residential 65+,Charges from Independent Providers,"1,360.34",ANCONA CARE HOME,296,,
Revenue,Adult Services,Adult Social Care,Commissioning & Service Delivery,5105628591,05.04.2017,Adult Social Care Market Development,Agency staff,"8,836.45",ANNE BUTLER CONSULTING LTD,298,,
Revenue,Place,Central Services,Support Services,5105628633,05.04.2017,Print Unit,Printing Costs,31.25,ANTALIS MCNAUGHTON,301,,
Revenue,Place,Central Services,Support Services,5105628633,05.04.2017,Print Unit,Printing Costs,33.93,ANTALIS MCNAUGHTON,302,,
Revenue,Place,Central Services,Support Services,5105628633,05.04.2017,Print Unit,Printing Costs,112.50,ANTALIS MCNAUGHTON,303,,
Revenue,Place,Highways and Transport Services,Parking Services,5105628684,05.04.2017,Car Park Permits,Printing Costs,750.00,APPROVED MULTI SERVICES LTD,305,,
Revenue,Place,Environmental & Regulatory Services,Service Management and Support Services,5105629073,12.04.2017,Environment officers,Operational Equipment,26.13,ARCO LTD,306,,
Revenue,Place,Environmental & Regulatory Services,Service Management and Support Services,5105629105,12.04.2017,Environment officers,Operational Equipment,12.21,ARCO LTD,307,,
Revenue,Place,Environmental & Regulatory Services,Service Management and Support Services,5105629024,07.04.2017,Environment officers,Operational Equipment,4.82,ARCO LTD,308,,
Revenue,Place,Environmental & Regulatory Services,Regulatory Services,5105630255,28.04.2017,Trading Standards,Operational Equipment,6.51,ARCO LTD,309,,
Revenue,Place,Environmental & Regulatory Services,Service Management and Support Services,5105630197,19.04.2017,Environment officers,Operational Equipment,70.58,ARCO LTD,310,,
Revenue,Place,Environmental & Regulatory Services,Service Management and Support Services,5105630254,28.04.2017,Environment officers,Operational Equipment,10.74,ARCO LTD,311,,
Revenue,Place,Environmental & Regulatory Services,Service Management and Support Services,5105630951,28.04.2017,Environment officers,Operational Equipment,3.47,ARCO LTD,312,,
Revenue,Place,Environmental & Regulatory Services,Service Management and Support Services,5105630934,26.04.2017,Environment officers,Operational Equipment,18.27,ARCO LTD,313,,
Revenue,Place,Highways and Transport Services,Traffic Management and Road Safety,5105631163,28.04.2017,Road Safety,Operational Equipment,"1,299.87",ARGOS BUSINESS SOLUTIONS LTD,314,,
Revenue,Place,Highways and Transport Services,Traffic Management and Road Safety,5105631163,28.04.2017,Road Safety,Operational Equipment,162.47,ARGOS BUSINESS SOLUTIONS LTD,315,,
Revenue,Place,Highways and Transport Services,Traffic Management and Road Safety,5105630956,28.04.2017,Road Safety,Operational Equipment,866.58,ARGOS BUSINESS SOLUTIONS LTD,316,,
Revenue,Place,Highways and Transport Services,Traffic Management and Road Safety,5105630956,28.04.2017,Road Safety,Operational Equipment,103.32,ARGOS BUSINESS SOLUTIONS LTD,317,,
Revenue,Place,Highways and Transport Services,Traffic Management and Road Safety,5105630956,28.04.2017,Road Safety,Operational Equipment,49.99,ARGOS BUSINESS SOLUTIONS LTD,318,,
Revenue,Adult Services,Adult Social Care,Learning Disab Supp (to be reallocated),5105628564,07.04.2017,Overbrook,Maintenance of Operational Equipment,99.20,ARJO MED AB LTD,319,,
Revenue,Adult Services,Adult Social Care,Learning Disab Supp (to be reallocated),5105628565,07.04.2017,The Laurels,Maintenance of Operational Equipment,74.00,ARJO MED AB LTD,320,,
Revenue,Adult Services,Adult Social Care,Learning Disab Supp (to be reallocated),5105628755,05.04.2017,Overbrook,Maintenance of Operational Equipment,-99.20,ARJO MED AB LTD,321,,
Revenue,Adult Services,Adult Social Care,Central Codes (to be reallocated),5105629156,12.04.2017,Adelaide Resource Centre,Property Services - Planned Maintenance,693.80,ARJO MED AB LTD,322,,
Revenue,Place,Cultural and Related Services,Recreation and Sport,5105630822,26.04.2017,Medina Leisure Centre,Stock Purchases,333.16,KELLOGGS ASA AWARDS SCHEME,324,,
Revenue,Place,Cultural and Related Services,Culture and Heritage,5105629440,21.04.2017,Dinosaur Isle Museum (Sandown Geology),Stock Purchases,973.03,ASHWOOD GIFTS LTD,325,,
Revenue,Place,Cultural and Related Services,Library Service,5105629124,12.04.2017,Schools Library Service,Purchase of Books,38.66,ASKEWS LIBRARY SERVICES LTD,326,,
Revenue,Place,Cultural and Related Services,Library Service,5105629123,12.04.2017,Schools Library Service,Purchase of Books,331.57,ASKEWS LIBRARY SERVICES LTD,327,,
Revenue,Place,Planning services,Planning Policy,5105628403,26.04.2017,Development Control,Consultants Fees,"2,131.06",ASPINALL VERDI LTD,328,,
Revenue,Childrens Services,Children's & Education Services,Management & Support Services,5105628987,07.04.2017,Specialist Service Business Admin,Minor Works,216.00,ASSA ABLOY ENTRANCE SYSTEMS LTD,329,,
Revenue,Place,Planning services,Economic Development,5105630927,26.04.2017,Economic Development,Publications,140.00,ASSOC OF CHIEF ESTATES SURVEYORS,330,,
Revenue,Place,Fire & Rescue Services,Fire fighting and Rescue Operations,5105629443,13.04.2017,Fire Technical Support,Vehicle Maintenance Costs,243.63,ATS EUROMASTER LTD,331,,
Revenue,Place,Fire & Rescue Services,Fire fighting and Rescue Operations,5105629443,13.04.2017,Fire Technical Support,Vehicle Maintenance Costs,"1,185.88",ATS EUROMASTER LTD,332,,
Revenue,Place,Fire & Rescue Services,Fire fighting and Rescue Operations,5105628588,05.04.2017,Fire Technical Support,Vehicle Maintenance Costs,592.94,ATS EUROMASTER LTD,333,,
Revenue,Place,Fire & Rescue Services,Fire fighting and Rescue Operations,5105628588,05.04.2017,Fire Technical Support,Vehicle Maintenance Costs,121.82,ATS EUROMASTER LTD,334,,
Revenue,Place,Fire & Rescue Services,Fire fighting and Rescue Operations,5105628588,05.04.2017,Fire Technical Support,Vehicle Maintenance Costs,121.82,ATS EUROMASTER LTD,335,,
Revenue,Place,Fire & Rescue Services,Fire fighting and Rescue Operations,5105628588,05.04.2017,Fire Technical Support,Vehicle Maintenance Costs,243.63,ATS EUROMASTER LTD,336,,
Revenue,Place,Fire & Rescue Services,Fire fighting and Rescue Operations,5105629443,13.04.2017,Fire Technical Support,Vehicle Maintenance Costs,67.15,ATS EUROMASTER LTD,337,,
Revenue,Place,Cultural and Related Services,Culture and Heritage,5105630755,26.04.2017,Dinosaur Isle Museum (Sandown Geology),Stock Purchases,954.24,AURORA WORLD UK LTD,338,,
Revenue,Adult Services,Adult Social Care,Support - Memory /Cognition-older people (65+),5105631226,28.04.2017,Memory & Cognition Residential 65+,Charges from Independent Providers,"2,794.57",AUTUMN HOUSE CARE LTD,339,,
Revenue,Adult Services,Adult Social Care,Support - Memory /Cognition-older people (65+),5105630704,26.04.2017,Memory & Cognition Residential 65+,Charges from Independent Providers,"2,240.56",AUTUMN HOUSE CARE LTD,340,,
Revenue,Adult Services,Adult Social Care,Support - Memory /Cognition-older people (65+),5105629511,19.04.2017,Memory & Cognition Residential 65+,Charges from Independent Providers,"1,905.96",AUTUMN HOUSE CARE LTD,341,,
Revenue,Adult Services,Adult Social Care,Support - Memory /Cognition-older people (65+),5105629511,19.04.2017,Memory & Cognition Residential 65+,Charges from Independent Providers,"1,905.96",AUTUMN HOUSE CARE LTD,342,,
Revenue,Adult Services,Adult Social Care,Mental Health Support-older people (65+),5105629511,19.04.2017,Mental Health Residential 65+,Charges from Independent Providers,"2,240.56",AUTUMN HOUSE CARE LTD,343,,
Revenue,Adult Services,Adult Social Care,Support - Memory /Cognition-older people (65+),5105629511,19.04.2017,Memory & Cognition Residential 65+,Charges from Independent Providers,"2,240.56",AUTUMN HOUSE CARE LTD,344,,
Revenue,Adult Services,Adult Social Care,Support - Memory /Cognition-older people (65+),5105629511,19.04.2017,Memory & Cognition Residential 65+,Charges from Independent Providers,"2,240.56",AUTUMN HOUSE CARE LTD,345,,
Revenue,Adult Services,Adult Social Care,Support - Memory /Cognition-older people (65+),5105629511,19.04.2017,Memory & Cognition Residential 65+,Charges from Independent Providers,"2,240.56",AUTUMN HOUSE CARE LTD,346,,
Revenue,Adult Services,Adult Social Care,Support - Memory /Cognition-older people (65+),5105629511,19.04.2017,Memory & Cognition Residential 65+,Charges from Independent Providers,"2,240.56",AUTUMN HOUSE CARE LTD,347,,
Revenue,Adult Services,Adult Social Care,Support - Memory /Cognition-older people (65+),5105629511,19.04.2017,Memory & Cognition Residential 65+,Charges from Independent Providers,"2,240.56",AUTUMN HOUSE CARE LTD,348,,
Revenue,Adult Services,Adult Social Care,Support - Memory /Cognition-older people (65+),5105629511,19.04.2017,Memory & Cognition Residential 65+,Charges from Independent Providers,"2,240.56",AUTUMN HOUSE CARE LTD,349,,
Revenue,Adult Services,Adult Social Care,Support - Memory /Cognition-older people (65+),5105629511,19.04.2017,Memory & Cognition Residential 65+,Charges from Independent Providers,"2,240.56",AUTUMN HOUSE CARE LTD,350,,
Revenue,Adult Services,Adult Social Care,Support - Memory /Cognition-older people (65+),5105629511,19.04.2017,Memory & Cognition Residential 65+,Charges from Independent Providers,"2,240.56",AUTUMN HOUSE CARE LTD,351,,
Revenue,Adult Services,Adult Social Care,Support - Memory /Cognition-older people (65+),5105629511,19.04.2017,Memory & Cognition Residential 65+,Charges from Independent Providers,"2,240.56",AUTUMN HOUSE CARE LTD,352,,
Revenue,Adult Services,Adult Social Care,Support - Memory /Cognition-older people (65+),5105629511,19.04.2017,Memory & Cognition Residential 65+,Charges from Independent Providers,"2,240.56",AUTUMN HOUSE CARE LTD,353,,
Revenue,Adult Services,Adult Social Care,Support - Memory /Cognition-older people (65+),5105629511,19.04.2017,Memory & Cognition Residential 65+,Charges from Independent Providers,"1,905.96",AUTUMN HOUSE CARE LTD,354,,
Revenue,Adult Services,Adult Social Care,Support - Memory /Cognition-older people (65+),5105629511,19.04.2017,Memory & Cognition Residential 65+,Charges from Independent Providers,"2,240.56",AUTUMN HOUSE CARE LTD,355,,
Revenue,Adult Services,Adult Social Care,Support - Memory /Cognition-older people (65+),5105629511,19.04.2017,Memory & Cognition Residential 65+,Charges from Independent Providers,"2,240.56",AUTUMN HOUSE CARE LTD,356,,
Revenue,Adult Services,Adult Social Care,Support - Memory /Cognition-older people (65+),5105629511,19.04.2017,Memory & Cognition Residential 65+,Charges from Independent Providers,"2,240.56",AUTUMN HOUSE CARE LTD,357,,
Revenue,Adult Services,Adult Social Care,Physical Support - older people (65+),5105630217,19.04.2017,Physical Support Residential 65+,Charges from Independent Providers,"1,200.30",AUTUMN HOUSE CARE LTD,358,,
Revenue,Adult Services,Adult Social Care,Physical Support - older people (65+),5105629511,19.04.2017,Physical Support Residential 65+,Charges from Independent Providers,"1,905.96",AUTUMN HOUSE CARE LTD,359,,
Revenue,Adult Services,Adult Social Care,Physical Support - older people (65+),5105629511,19.04.2017,Physical Support Residential 65+,Charges from Independent Providers,"2,240.56",AUTUMN HOUSE CARE LTD,360,,
Revenue,Adult Services,Adult Social Care,Physical Support - older people (65+),5105629511,19.04.2017,Physical Support Residential 65+,Charges from Independent Providers,"2,240.56",AUTUMN HOUSE CARE LTD,361,,
Revenue,Adult Services,Adult Social Care,Physical Support - older people (65+),5105629511,19.04.2017,Physical Support Residential 65+,Charges from Independent Providers,"2,240.56",AUTUMN HOUSE CARE LTD,362,,
Revenue,Adult Services,Adult Social Care,Physical Support - older people (65+),5105629511,19.04.2017,Physical Support Residential 65+,Charges from Independent Providers,"2,240.56",AUTUMN HOUSE CARE LTD,363,,
Revenue,Adult Services,Adult Social Care,Physical Support - older people (65+),5105629511,19.04.2017,Physical Support Residential 65+,Charges from Independent Providers,"1,905.96",AUTUMN HOUSE CARE LTD,364,,
Revenue,Adult Services,Adult Social Care,Physical Support - older people (65+),5105629511,19.04.2017,Physical Support Residential 65+,Charges from Independent Providers,"1,905.96",AUTUMN HOUSE CARE LTD,365,,
Revenue,Adult Services,Adult Social Care,Physical Support - older people (65+),5105629511,19.04.2017,Physical Support Residential 65+,Charges from Independent Providers,"2,240.56",AUTUMN HOUSE CARE LTD,366,,
Revenue,Adult Services,Adult Social Care,Physical Support - older people (65+),5105629511,19.04.2017,Physical Support Residential 65+,Charges from Independent Providers,"1,905.96",AUTUMN HOUSE CARE LTD,367,,
Revenue,Adult Services,Adult Social Care,Physical Support - older people (65+),5105630139,19.04.2017,Physical Support Residential 65+,Charges from Independent Providers,"2,240.56",AVON PARK RESIDENTIAL HOME,368,,
Revenue,Place,Cultural and Related Services,Service Management and Support Services,5105628724,05.04.2017,Duke of Edingburgh Award,General Materials,163.88,AWARD SCHEME LTD,369,,
Revenue,Place,Cultural and Related Services,Service Management and Support Services,5105628724,05.04.2017,Duke of Edingburgh Award,General Materials,6.25,AWARD SCHEME LTD,370,,
Revenue,Childrens Services,Children's & Education Services,Children Looked After,5105628822,07.04.2017,Leaving Care Costs,Accommodation Costs - Service Users,50.00,REDACTED PERSONAL DATA,371,,
Revenue,Childrens Services,Children's & Education Services,Children Looked After,5105628284,05.04.2017,Leaving Care Costs,Accommodation Costs - Service Users,500.00,REDACTED PERSONAL DATA,372,,
Revenue,Childrens Services,Children's & Education Services,Children Looked After,5105629261,13.04.2017,Leaving Care Costs,Accommodation Costs - Service Users,50.00,REDACTED PERSONAL DATA,373,,
Revenue,Childrens Services,Children's & Education Services,Children Looked After,5105630308,21.04.2017,Leaving Care Costs,Accommodation Costs - Service Users,50.00,REDACTED PERSONAL DATA,374,,
Revenue,Childrens Services,Children's & Education Services,Children Looked After,5105630994,28.04.2017,Leaving Care Costs,Accommodation Costs - Service Users,50.00,REDACTED PERSONAL DATA,375,,
Revenue,Childrens Services,Children's & Education Services,Children Looked After,5105630994,28.04.2017,In-house Fostering,Boarding Out Allowances,234.52,REDACTED PERSONAL DATA,376,,
Revenue,Childrens Services,Children's & Education Services,Children Looked After,5105630308,21.04.2017,In-house Fostering,Boarding Out Allowances,234.52,REDACTED PERSONAL DATA,377,,
Revenue,Childrens Services,Children's & Education Services,Children Looked After,5105628822,07.04.2017,In-house Fostering,Boarding Out Allowances,234.52,REDACTED PERSONAL DATA,378,,
Revenue,Childrens Services,Children's & Education Services,Children Looked After,5105629261,13.04.2017,In-house Fostering,Boarding Out Allowances,234.52,REDACTED PERSONAL DATA,379,,
Revenue,Place,Housing Services,Homelessness,5105630556,21.04.2017,Leaseholds by LA,Accommodation Costs - Leaseholder Payments,815.49,REDACTED PERSONAL DATA,386,,
Revenue,Resources,Central Services,Support Services,5105630631,21.04.2017,Staff Benefits,Payment to Private Contractors,100.00,REDACTED PERSONAL DATA,387,,
Revenue,Resources,Central Services,Support Services,5105630631,21.04.2017,Staff Benefits,Payment to Private Contractors,100.00,REDACTED PERSONAL DATA,388,,
Revenue,Place,Housing Services,Homelessness,5105630560,21.04.2017,Leaseholds by LA,Accommodation Costs - Leaseholder Payments,866.67,REDACTED PERSONAL DATA,389,,
Revenue,Place,Housing Services,Homelessness,5105630560,21.04.2017,Leaseholds by LA,Accommodation Costs - Leaseholder Payments,888.33,REDACTED PERSONAL DATA,390,,
Revenue,Place,Housing Services,Homelessness,5105630560,21.04.2017,Leaseholds by LA,Accommodation Costs - Leaseholder Payments,799.50,REDACTED PERSONAL DATA,391,,
Revenue,Adult Services,Adult Social Care,Physical Support - older people (65+),5105630116,19.04.2017,Physical Support Residential 65+,Charges from Independent Providers,"1,836.80",B&M INVESTMENTS LTD,396,,
Revenue,Adult Services,Adult Social Care,Physical Support - older people (65+),5105630116,19.04.2017,Physical Support Residential 65+,Charges from Independent Providers,160.16,B&M INVESTMENTS LTD,397,,
Revenue,Place,Cultural and Related Services,Recreation and Sport,5105628546,21.04.2017,Medina Leisure Centre,Stationery,396.00,SUPPLIES TEAM LTD,398,,
Revenue,Resources,Central Services,Support Services,5105628625,05.04.2017,County Hall Central Mail Room,Stationery,3.90,SUPPLIES TEAM LTD,399,,
Revenue,Childrens Services,Children's & Education Services,Other Education and Community Budget,5105628654,05.04.2017,SEND Independent Advice & Support,Stationery,18.52,SUPPLIES TEAM LTD,400,,
Revenue,Childrens Services,Children's & Education Services,Other Education and Community Budget,5105628654,05.04.2017,SEND Independent Advice & Support,Stationery,5.48,SUPPLIES TEAM LTD,401,,
Revenue,Childrens Services,Children's & Education Services,Other Education and Community Budget,5105628654,05.04.2017,SEND Independent Advice & Support,Stationery,3.95,SUPPLIES TEAM LTD,402,,
Revenue,Childrens Services,Children's & Education Services,Other Education and Community Budget,5105628654,05.04.2017,SEND Independent Advice & Support,Stationery,0.30,SUPPLIES TEAM LTD,403,,
Revenue,Childrens Services,Children's & Education Services,Other Education and Community Budget,5105628654,05.04.2017,SEND Independent Advice & Support,Stationery,1.28,SUPPLIES TEAM LTD,404,,
Revenue,Place,Fire & Rescue Services,Fire fighting and Rescue Operations,5105628745,05.04.2017,Business Support  - Fire,Stationery,0.71,SUPPLIES TEAM LTD,405,,
Revenue,Place,Fire & Rescue Services,Fire fighting and Rescue Operations,5105628745,05.04.2017,Business Support  - Fire,Stationery,0.84,SUPPLIES TEAM LTD,406,,
Revenue,Place,Fire & Rescue Services,Fire fighting and Rescue Operations,5105628745,05.04.2017,Business Support  - Fire,Stationery,29.32,SUPPLIES TEAM LTD,407,,
Revenue,Place,Fire & Rescue Services,Fire fighting and Rescue Operations,5105628745,05.04.2017,Business Support  - Fire,Stationery,0.39,SUPPLIES TEAM LTD,408,,
Revenue,Place,Cultural and Related Services,Service Management and Support Services,5105628651,05.04.2017,Leisure Management & Admin,Stationery,1.55,SUPPLIES TEAM LTD,409,,
Revenue,Adult Services,Adult Social Care,Commissioning & Service Delivery,5105628651,05.04.2017,Head of Adult Social Care,Stationery,27.78,SUPPLIES TEAM LTD,410,,
Revenue,Place,Cultural and Related Services,Service Management and Support Services,5105628651,05.04.2017,Leisure Management & Admin,Stationery,18.52,SUPPLIES TEAM LTD,411,,
Revenue,Place,Cultural and Related Services,Recreation and Sport,5105628753,07.04.2017,Medina Leisure Centre,Stationery,26.37,SUPPLIES TEAM LTD,412,,
Revenue,Place,Cultural and Related Services,Recreation and Sport,5105628753,07.04.2017,Medina Leisure Centre,Stationery,1.30,SUPPLIES TEAM LTD,413,,
Revenue,Place,Cultural and Related Services,Recreation and Sport,5105628753,07.04.2017,Medina Leisure Centre,Stationery,2.20,SUPPLIES TEAM LTD,414,,
Revenue,Place,Cultural and Related Services,Recreation and Sport,5105628753,07.04.2017,Medina Leisure Centre,Stationery,18.28,SUPPLIES TEAM LTD,415,,
Revenue,Place,Cultural and Related Services,Recreation and Sport,5105628753,07.04.2017,Medina Leisure Centre,Stationery,1.96,SUPPLIES TEAM LTD,416,,
Revenue,Place,Highways and Transport Services,Management and Support Services,5105628759,05.04.2017,Highways PFI Project,Stationery,7.92,SUPPLIES TEAM LTD,417,,
Revenue,Place,Highways and Transport Services,Management and Support Services,5105628759,05.04.2017,Highways PFI Project,Stationery,18.52,SUPPLIES TEAM LTD,418,,
Revenue,Place,Highways and Transport Services,Management and Support Services,5105628759,05.04.2017,Highways PFI Project,Stationery,1.86,SUPPLIES TEAM LTD,419,,
Revenue,Place,Highways and Transport Services,Management and Support Services,5105628759,05.04.2017,Highways PFI Project,Stationery,1.55,SUPPLIES TEAM LTD,420,,
Revenue,Place,Highways and Transport Services,Management and Support Services,5105628759,05.04.2017,Highways PFI Project,Stationery,1.76,SUPPLIES TEAM LTD,421,,
Revenue,Resources,Central Services,Support Services,5105628761,05.04.2017,Pension Administration,Stationery,2.08,SUPPLIES TEAM LTD,422,,
Revenue,Childrens Services,Children's & Education Services,Other Education and Community Budget,5105628654,05.04.2017,SEND Independent Advice & Support,Stationery,19.43,SUPPLIES TEAM LTD,423,,
Revenue,Adult Services,Adult Social Care,Central Codes (to be reallocated),5105628748,05.04.2017,Gouldings Resource Centre,Stationery,18.52,SUPPLIES TEAM LTD,424,,
Revenue,Adult Services,Adult Social Care,Central Codes (to be reallocated),5105628748,05.04.2017,Gouldings Resource Centre,Stationery,2.60,SUPPLIES TEAM LTD,425,,
Revenue,Adult Services,Adult Social Care,Central Codes (to be reallocated),5105628748,05.04.2017,Gouldings Resource Centre,Stationery,1.12,SUPPLIES TEAM LTD,426,,
Revenue,Adult Services,Adult Social Care,Central Codes (to be reallocated),5105628748,05.04.2017,Gouldings Resource Centre,Stationery,17.34,SUPPLIES TEAM LTD,427,,
Revenue,Childrens Services,Children's & Education Services,Other Education and Community Budget,5105630288,26.04.2017,Pupil Resources Business Support Team,Stationery,18.52,SUPPLIES TEAM LTD,428,,
Revenue,Adult Services,Adult Social Care,Commissioning & Service Delivery,5105630287,26.04.2017,Head of Adult Social Care,Stationery,-37.04,SUPPLIES TEAM LTD,429,,
Revenue,Place,Cultural and Related Services,Recreation and Sport,5105630481,21.04.2017,Medina Leisure Centre,Stationery,-396.00,SUPPLIES TEAM LTD,430,,
Revenue,Childrens Services,Children's & Education Services,Management & Support Services,5105630518,21.04.2017,Pre-school Special Educational Needs,Stationery,-34.19,SUPPLIES TEAM LTD,431,,
Revenue,Resources,Housing Services,Housing Benefits Administration,5105630204,19.04.2017,Housing Benefit,Stationery,1.23,SUPPLIES TEAM LTD,432,,
Revenue,Resources,Housing Services,Housing Benefits Administration,5105630204,19.04.2017,Housing Benefit,Stationery,0.19,SUPPLIES TEAM LTD,433,,
Revenue,Resources,Housing Services,Housing Benefits Administration,5105630204,19.04.2017,Housing Benefit,Stationery,0.71,SUPPLIES TEAM LTD,434,,
Revenue,Resources,Housing Services,Housing Benefits Administration,5105630204,19.04.2017,Housing Benefit,Stationery,4.37,SUPPLIES TEAM LTD,435,,
Revenue,Resources,Housing Services,Housing Benefits Administration,5105630204,19.04.2017,Housing Benefit,Stationery,0.57,SUPPLIES TEAM LTD,436,,
Revenue,Resources,Central Services,Support Services,5105630204,19.04.2017,Business Support Shared Service Centre Team,Stationery,0.53,SUPPLIES TEAM LTD,437,,
Revenue,Resources,Central Services,Support Services,5105630204,19.04.2017,Business Support Shared Service Centre Team,Stationery,0.57,SUPPLIES TEAM LTD,438,,
Revenue,Childrens Services,Children's & Education Services,Other Education and Community Budget,5105630508,21.04.2017,Pupil Resources Business Support Team,Stationery,1.80,SUPPLIES TEAM LTD,439,,
Revenue,Childrens Services,Children's & Education Services,Other Education and Community Budget,5105630508,21.04.2017,Pupil Resources Business Support Team,Stationery,0.50,SUPPLIES TEAM LTD,440,,
Revenue,Childrens Services,Children's & Education Services,Other Education and Community Budget,5105630508,21.04.2017,Pupil Resources Business Support Team,Stationery,0.34,SUPPLIES TEAM LTD,441,,
Revenue,Place,Central Services,Support Services,5105630508,21.04.2017,Strategic Assets Team,Stationery,2.46,SUPPLIES TEAM LTD,442,,
Revenue,Place,Central Services,Support Services,5105630508,21.04.2017,Strategic Assets Team,Stationery,1.61,SUPPLIES TEAM LTD,443,,
Revenue,Childrens Services,Children's & Education Services,Other Education and Community Budget,5105630508,21.04.2017,Pupil Resources Business Support Team,Stationery,25.71,SUPPLIES TEAM LTD,444,,
Revenue,Place,Cultural and Related Services,Service Management and Support Services,5105630508,21.04.2017,Leisure Management & Admin,Stationery,8.57,SUPPLIES TEAM LTD,445,,
Revenue,Place,Cultural and Related Services,Service Management and Support Services,5105630508,21.04.2017,Leisure Management & Admin,Stationery,43.92,SUPPLIES TEAM LTD,446,,
Revenue,Resources,Central Services,Support Services,5105630521,21.04.2017,Payroll,Stationery,1.17,SUPPLIES TEAM LTD,447,,
Revenue,Place,Cultural and Related Services,Recreation and Sport,5105630887,26.04.2017,Medina Leisure Centre,Stationery,-1.45,SUPPLIES TEAM LTD,448,,
Revenue,Childrens Services,Children's & Education Services,Other Education and Community Budget,5105630720,26.04.2017,Learning & Development Running Costs,Stationery,4.92,SUPPLIES TEAM LTD,449,,
Revenue,Place,Cultural and Related Services,Service Management and Support Services,5105631198,28.04.2017,Leisure Management & Admin,Stationery,0.81,SUPPLIES TEAM LTD,450,,
Revenue,Place,Cultural and Related Services,Service Management and Support Services,5105631198,28.04.2017,Leisure Management & Admin,Stationery,0.24,SUPPLIES TEAM LTD,451,,
Revenue,Place,Cultural and Related Services,Service Management and Support Services,5105631198,28.04.2017,Leisure Management & Admin,Stationery,0.24,SUPPLIES TEAM LTD,452,,
Revenue,Place,Cultural and Related Services,Service Management and Support Services,5105631198,28.04.2017,Leisure Management & Admin,Stationery,17.14,SUPPLIES TEAM LTD,453,,
Revenue,Adult Services,Adult Social Care,Commissioning & Service Delivery,5105631198,28.04.2017,Head of Adult Social Care,Stationery,25.71,SUPPLIES TEAM LTD,454,,
Revenue,Childrens Services,Children's & Education Services,Other Education and Community Budget,5105630837,26.04.2017,Learning & Development Running Costs,Stationery,38.82,SUPPLIES TEAM LTD,455,,
Revenue,Place,Fire & Rescue Services,Fire fighting and Rescue Operations,5105630739,26.04.2017,Business Support  - Fire,Stationery,109.92,SUPPLIES TEAM LTD,456,,
Revenue,Adult Services,Adult Social Care,Assistive Equipment & Technology,5105630797,26.04.2017,S75 Integrated Community Equipment Store,Stationery,12.56,SUPPLIES TEAM LTD,457,,
Revenue,Childrens Services,Children's & Education Services,Other Education and Community Budget,5105628725,05.04.2017,Learning & Development Running Costs,Stationery,55.56,SUPPLIES TEAM LTD,458,,
Revenue,Childrens Services,Children's & Education Services,Other Education and Community Budget,5105628725,05.04.2017,Learning & Development Running Costs,Stationery,10.12,SUPPLIES TEAM LTD,459,,
Revenue,Adult Services,Adult Social Care,Commissioning & Service Delivery,5105628544,21.04.2017,Head of Adult Social Care,Stationery,37.04,SUPPLIES TEAM LTD,460,,
Revenue,Childrens Services,Children's & Education Services,Management & Support Services,5105628618,19.04.2017,Pre-school Special Educational Needs,Stationery,34.19,SUPPLIES TEAM LTD,461,,
Revenue,Childrens Services,Children's & Education Services,Management & Support Services,5105628548,07.04.2017,Pre-school Special Educational Needs,Stationery,-23.82,SUPPLIES TEAM LTD,462,,
Revenue,Childrens Services,Children's & Education Services,Management & Support Services,5105628548,07.04.2017,Pre-school Special Educational Needs,Stationery,-13.20,SUPPLIES TEAM LTD,463,,
Revenue,Childrens Services,Children's & Education Services,Management & Support Services,5105628548,07.04.2017,Pre-school Special Educational Needs,Stationery,-2.82,SUPPLIES TEAM LTD,464,,
Revenue,Place,Cultural and Related Services,Service Management and Support Services,5105628487,05.04.2017,Leisure Management & Admin,Stationery,0.05,SUPPLIES TEAM LTD,465,,
Revenue,Adult Services,Adult Social Care,Commissioning & Service Delivery,5105628777,12.04.2017,Learning Disability Homes Management & Admin,Stationery,1.83,SUPPLIES TEAM LTD,466,,
Revenue,Adult Services,Adult Social Care,Commissioning & Service Delivery,5105628777,12.04.2017,Learning Disability Homes Management & Admin,Stationery,14.42,SUPPLIES TEAM LTD,467,,
Revenue,Adult Services,Adult Social Care,Commissioning & Service Delivery,5105628777,12.04.2017,Learning Disability Homes Management & Admin,Stationery,3.01,SUPPLIES TEAM LTD,468,,
Revenue,Adult Services,Adult Social Care,Commissioning & Service Delivery,5105628777,12.04.2017,Learning Disability Homes Management & Admin,Stationery,6.32,SUPPLIES TEAM LTD,469,,
Revenue,Adult Services,Adult Social Care,Commissioning & Service Delivery,5105628777,12.04.2017,Learning Disability Homes Management & Admin,Stationery,0.20,SUPPLIES TEAM LTD,470,,
Revenue,Childrens Services,Children's & Education Services,Children Looked After,5105628732,05.04.2017,Beaulieu House,Stationery,1.86,SUPPLIES TEAM LTD,471,,
Revenue,Childrens Services,Children's & Education Services,Children Looked After,5105628732,05.04.2017,Beaulieu House,Stationery,0.60,SUPPLIES TEAM LTD,472,,
Revenue,Childrens Services,Children's & Education Services,Other Education and Community Budget,5105628651,05.04.2017,Admissions/Student Finance,Stationery,7.21,SUPPLIES TEAM LTD,473,,
Revenue,Resources,Central Services,Support Services,5105628651,05.04.2017,Legal Services Section,Stationery,2.00,SUPPLIES TEAM LTD,474,,
Revenue,Childrens Services,Children's & Education Services,Safeguarding Children/Young Peoples Svs,5105628651,05.04.2017,Children's office costs,Stationery,18.52,SUPPLIES TEAM LTD,475,,
Revenue,Childrens Services,Children's & Education Services,Safeguarding Children/Young Peoples Svs,5105628651,05.04.2017,Children's office costs,Stationery,18.52,SUPPLIES TEAM LTD,476,,
Revenue,Childrens Services,Children's & Education Services,Safeguarding Children/Young Peoples Svs,5105628651,05.04.2017,Children's office costs,Stationery,37.04,SUPPLIES TEAM LTD,477,,
Revenue,Childrens Services,Children's & Education Services,Safeguarding Children/Young Peoples Svs,5105628651,05.04.2017,Children's office costs,Stationery,3.96,SUPPLIES TEAM LTD,478,,
Revenue,Resources,Central Services,Support Services,5105628651,05.04.2017,Legal Services Section,Stationery,3.96,SUPPLIES TEAM LTD,479,,
Revenue,Resources,Central Services,Support Services,5105628651,05.04.2017,Legal Services Section,Stationery,27.78,SUPPLIES TEAM LTD,480,,
Revenue,Resources,Central Services,Support Services,5105628761,05.04.2017,Human Resources,Stationery,1.86,SUPPLIES TEAM LTD,481,,
Revenue,Resources,Central Services,Support Services,5105628761,05.04.2017,Human Resources,Stationery,0.45,SUPPLIES TEAM LTD,482,,
Revenue,Adult Services,Adult Social Care,Central Codes (to be reallocated),5105628748,05.04.2017,Community Outreach,Stationery,18.52,SUPPLIES TEAM LTD,483,,
Revenue,Adult Services,Adult Social Care,Central Codes (to be reallocated),5105628748,05.04.2017,Community Outreach,Stationery,3.72,SUPPLIES TEAM LTD,484,,
Revenue,Adult Services,Adult Social Care,Central Codes (to be reallocated),5105628748,05.04.2017,Community Outreach,Stationery,2.60,SUPPLIES TEAM LTD,485,,
Revenue,Adult Services,Adult Social Care,Central Codes (to be reallocated),5105628748,05.04.2017,Community Outreach,Stationery,1.00,SUPPLIES TEAM LTD,486,,
Revenue,Adult Services,Adult Social Care,Commissioning & Service Delivery,5105629193,12.04.2017,Learning Disability Homes Management & Admin,Stationery,1.44,SUPPLIES TEAM LTD,487,,
Revenue,Place,Fire & Rescue Services,Fire fighting and Rescue Operations,5105629085,19.04.2017,Fire Technical Support,Stationery,0.95,SUPPLIES TEAM LTD,488,,
Revenue,Place,Fire & Rescue Services,Fire fighting and Rescue Operations,5105629085,19.04.2017,Fire Technical Support,Stationery,7.92,SUPPLIES TEAM LTD,489,,
Revenue,Place,Fire & Rescue Services,Fire fighting and Rescue Operations,5105629085,19.04.2017,Fire Technical Support,Stationery,0.64,SUPPLIES TEAM LTD,490,,
Revenue,Adult Services,Adult Social Care,Central Codes (to be reallocated),5105629083,19.04.2017,Community Outreach,Stationery,27.78,SUPPLIES TEAM LTD,491,,
Revenue,Adult Services,Adult Social Care,Central Codes (to be reallocated),5105629083,19.04.2017,Community Outreach,Stationery,0.65,SUPPLIES TEAM LTD,492,,
Revenue,Adult Services,Adult Social Care,Central Codes (to be reallocated),5105629083,19.04.2017,Community Outreach,Stationery,2.60,SUPPLIES TEAM LTD,493,,
Revenue,Adult Services,Adult Social Care,Central Codes (to be reallocated),5105629083,19.04.2017,Community Outreach,Stationery,12.20,SUPPLIES TEAM LTD,494,,
Revenue,Adult Services,Adult Social Care,Central Codes (to be reallocated),5105629083,19.04.2017,Community Outreach,Stationery,0.20,SUPPLIES TEAM LTD,495,,
Revenue,Adult Services,Adult Social Care,Central Codes (to be reallocated),5105629083,19.04.2017,Community Outreach,Stationery,39.30,SUPPLIES TEAM LTD,496,,
Revenue,Resources,Central Services,Support Services,5105629451,19.04.2017,Legal Services Section,Stationery,32.61,SUPPLIES TEAM LTD,497,,
Revenue,Childrens Services,Children's & Education Services,Safeguarding Children/Young Peoples Svs,5105630288,26.04.2017,Children's office costs,Stationery,18.52,SUPPLIES TEAM LTD,498,,
Revenue,Childrens Services,Children's & Education Services,Safeguarding Children/Young Peoples Svs,5105630508,21.04.2017,Children's office costs,Stationery,1.23,SUPPLIES TEAM LTD,499,,
Revenue,Childrens Services,Children's & Education Services,Safeguarding Children/Young Peoples Svs,5105630508,21.04.2017,Children's office costs,Stationery,1.00,SUPPLIES TEAM LTD,500,,
Revenue,Childrens Services,Children's & Education Services,Safeguarding Children/Young Peoples Svs,5105630508,21.04.2017,Children's office costs,Stationery,1.23,SUPPLIES TEAM LTD,501,,
Revenue,Childrens Services,Children's & Education Services,Safeguarding Children/Young Peoples Svs,5105630508,21.04.2017,Children's office costs,Stationery,1.80,SUPPLIES TEAM LTD,502,,
Revenue,Childrens Services,Children's & Education Services,Safeguarding Children/Young Peoples Svs,5105630508,21.04.2017,Children's office costs,Stationery,0.19,SUPPLIES TEAM LTD,503,,
Revenue,Childrens Services,Children's & Education Services,Safeguarding Children/Young Peoples Svs,5105630508,21.04.2017,Children's office costs,Stationery,3.22,SUPPLIES TEAM LTD,504,,
Revenue,Childrens Services,Children's & Education Services,Safeguarding Children/Young Peoples Svs,5105630508,21.04.2017,Children's office costs,Stationery,6.32,SUPPLIES TEAM LTD,505,,
Revenue,Childrens Services,Children's & Education Services,Safeguarding Children/Young Peoples Svs,5105630508,21.04.2017,Children's office costs,Stationery,2.38,SUPPLIES TEAM LTD,506,,
Revenue,Resources,Central Services,Support Services,5105630508,21.04.2017,Legal Services Section,Stationery,0.54,SUPPLIES TEAM LTD,507,,
Revenue,Childrens Services,Children's & Education Services,Safeguarding Children/Young Peoples Svs,5105630508,21.04.2017,Children's office costs,Stationery,34.28,SUPPLIES TEAM LTD,508,,
Revenue,Childrens Services,Children's & Education Services,Safeguarding Children/Young Peoples Svs,5105630508,21.04.2017,Children's office costs,Stationery,25.71,SUPPLIES TEAM LTD,509,,
Revenue,Childrens Services,Children's & Education Services,Safeguarding Children/Young Peoples Svs,5105630508,21.04.2017,Children's office costs,Stationery,0.42,SUPPLIES TEAM LTD,510,,
Revenue,Childrens Services,Children's & Education Services,Other Education and Community Budget,5105630720,26.04.2017,Statutory Assessment and Review Team,Stationery,2.58,SUPPLIES TEAM LTD,511,,
Revenue,Resources,Central Services,Support Services,5105630737,26.04.2017,Legal Services Section,Stationery,3.60,SUPPLIES TEAM LTD,512,,
Revenue,Adult Services,Adult Social Care,Assistive Equipment & Technology,5105631201,28.04.2017,Wightcare,Stationery,1.38,SUPPLIES TEAM LTD,513,,
Revenue,Adult Services,Adult Social Care,Assistive Equipment & Technology,5105631201,28.04.2017,Wightcare,Stationery,17.14,SUPPLIES TEAM LTD,514,,
Revenue,Adult Services,Adult Social Care,Assistive Equipment & Technology,5105631201,28.04.2017,Wightcare,Stationery,12.52,SUPPLIES TEAM LTD,515,,
Revenue,Adult Services,Adult Social Care,Assistive Equipment & Technology,5105631201,28.04.2017,Wightcare,Stationery,0.57,SUPPLIES TEAM LTD,516,,
Revenue,Adult Services,Adult Social Care,Assistive Equipment & Technology,5105631201,28.04.2017,Wightcare,Stationery,2.04,SUPPLIES TEAM LTD,517,,
Revenue,Childrens Services,Children's & Education Services,Safeguarding Children/Young Peoples Svs,5105631198,28.04.2017,Children's office costs,Stationery,1.41,SUPPLIES TEAM LTD,518,,
Revenue,Childrens Services,Children's & Education Services,Safeguarding Children/Young Peoples Svs,5105631198,28.04.2017,Children's office costs,Stationery,2.84,SUPPLIES TEAM LTD,519,,
Revenue,Childrens Services,Children's & Education Services,Safeguarding Children/Young Peoples Svs,5105631198,28.04.2017,Children's office costs,Stationery,0.40,SUPPLIES TEAM LTD,520,,
Revenue,Childrens Services,Children's & Education Services,Safeguarding Children/Young Peoples Svs,5105631198,28.04.2017,Children's office costs,Stationery,0.17,SUPPLIES TEAM LTD,521,,
Revenue,Childrens Services,Children's & Education Services,Safeguarding Children/Young Peoples Svs,5105631198,28.04.2017,Children's office costs,Stationery,6.44,SUPPLIES TEAM LTD,522,,
Revenue,Childrens Services,Children's & Education Services,Safeguarding Children/Young Peoples Svs,5105631198,28.04.2017,Children's office costs,Stationery,0.57,SUPPLIES TEAM LTD,523,,
Revenue,Childrens Services,Children's & Education Services,Safeguarding Children/Young Peoples Svs,5105631197,28.04.2017,Children's office costs,Stationery,27.66,SUPPLIES TEAM LTD,524,,
Revenue,Childrens Services,Children's & Education Services,Safeguarding Children/Young Peoples Svs,5105631198,28.04.2017,Children's office costs,Stationery,1.06,SUPPLIES TEAM LTD,525,,
Revenue,Resources,Central Services,Support Services,5105631198,28.04.2017,Legal Services Section,Stationery,2.46,SUPPLIES TEAM LTD,526,,
Revenue,Childrens Services,Children's & Education Services,Safeguarding Children/Young Peoples Svs,5105631198,28.04.2017,Children's office costs,Stationery,25.71,SUPPLIES TEAM LTD,527,,
Revenue,Resources,Central Services,Support Services,5105631198,28.04.2017,Legal Services Section,Stationery,34.28,SUPPLIES TEAM LTD,528,,
Revenue,Place,Cultural and Related Services,Culture and Heritage,5105630794,26.04.2017,Museums & Collections Management,Marketing Costs,18.12,SUPPLIES TEAM LTD,529,,
Revenue,Place,Cultural and Related Services,Culture and Heritage,5105630794,26.04.2017,Museums & Collections Management,Marketing Costs,2.69,SUPPLIES TEAM LTD,530,,
Revenue,Place,Cultural and Related Services,Culture and Heritage,5105630794,26.04.2017,Museums & Collections Management,Marketing Costs,13.66,SUPPLIES TEAM LTD,531,,
Revenue,Childrens Services,Children's & Education Services,Children Looked After,5105628732,05.04.2017,Beaulieu House,Stationery,22.06,SUPPLIES TEAM LTD,532,,
Revenue,Childrens Services,Children's & Education Services,Children Looked After,5105628732,05.04.2017,Beaulieu House,Stationery,22.06,SUPPLIES TEAM LTD,533,,
Revenue,Childrens Services,Children's & Education Services,Children Looked After,5105628732,05.04.2017,Beaulieu House,Stationery,3.80,SUPPLIES TEAM LTD,534,,
Revenue,Childrens Services,Children's & Education Services,Children Looked After,5105628732,05.04.2017,Beaulieu House,Stationery,0.84,SUPPLIES TEAM LTD,535,,
Revenue,Childrens Services,Children's & Education Services,Children Looked After,5105628732,05.04.2017,Beaulieu House,Stationery,17.65,SUPPLIES TEAM LTD,536,,
Revenue,Childrens Services,Children's & Education Services,Children Looked After,5105628732,05.04.2017,Beaulieu House,Stationery,3.61,SUPPLIES TEAM LTD,537,,
Revenue,Childrens Services,Children's & Education Services,Children Looked After,5105628732,05.04.2017,Beaulieu House,Stationery,0.50,SUPPLIES TEAM LTD,538,,
Revenue,Childrens Services,Children's & Education Services,Children Looked After,5105628732,05.04.2017,Beaulieu House,Stationery,2.50,SUPPLIES TEAM LTD,539,,
Revenue,Childrens Services,Children's & Education Services,Children Looked After,5105628732,05.04.2017,Beaulieu House,Stationery,3.96,SUPPLIES TEAM LTD,540,,
Revenue,Childrens Services,Children's & Education Services,Children Looked After,5105628732,05.04.2017,Beaulieu House,Stationery,18.52,SUPPLIES TEAM LTD,541,,
Revenue,Childrens Services,Children's & Education Services,Children Looked After,5105628732,05.04.2017,Beaulieu House,Stationery,2.60,SUPPLIES TEAM LTD,542,,
Revenue,Childrens Services,Children's & Education Services,Children Looked After,5105628416,12.04.2017,Beaulieu House,Stationery,2.00,SUPPLIES TEAM LTD,543,,
Revenue,Adult Services,Adult Social Care,Commissioning & Service Delivery,5105628415,12.04.2017,Learning Disability Homes Management & Admin,Stationery,0.40,SUPPLIES TEAM LTD,544,,
Revenue,Childrens Services,Children's & Education Services,Safeguarding Children/Young Peoples Svs,5105628414,05.04.2017,Children's office costs,Stationery,0.80,SUPPLIES TEAM LTD,545,,
Revenue,Childrens Services,Children's & Education Services,Safeguarding Children/Young Peoples Svs,5105628626,05.04.2017,Children's office costs,Stationery,-0.80,SUPPLIES TEAM LTD,546,,
Revenue,Childrens Services,Children's & Education Services,Safeguarding Children/Young Peoples Svs,5105628775,12.04.2017,LSCB (Local Safeguarding Childrens Board),Stationery,0.46,SUPPLIES TEAM LTD,547,,
Revenue,Adult Services,Adult Social Care,Commissioning & Service Delivery,5105628777,12.04.2017,Learning Disability Homes Management & Admin,Stationery,2.60,SUPPLIES TEAM LTD,548,,
Revenue,Adult Services,Adult Social Care,Commissioning & Service Delivery,5105628777,12.04.2017,Learning Disability Homes Management & Admin,Stationery,3.25,SUPPLIES TEAM LTD,549,,
Revenue,Adult Services,Adult Social Care,Commissioning & Service Delivery,5105628777,12.04.2017,Learning Disability Homes Management & Admin,Stationery,3.72,SUPPLIES TEAM LTD,550,,
Revenue,Adult Services,Adult Social Care,Commissioning & Service Delivery,5105628777,12.04.2017,Learning Disability Homes Management & Admin,Stationery,0.45,SUPPLIES TEAM LTD,551,,
Revenue,Adult Services,Adult Social Care,Commissioning & Service Delivery,5105628777,12.04.2017,Learning Disability Homes Management & Admin,Stationery,1.59,SUPPLIES TEAM LTD,552,,
Revenue,Adult Services,Adult Social Care,Commissioning & Service Delivery,5105628777,12.04.2017,Learning Disability Homes Management & Admin,Stationery,37.04,SUPPLIES TEAM LTD,553,,
Revenue,Adult Services,Adult Social Care,Commissioning & Service Delivery,5105628777,12.04.2017,Learning Disability Homes Management & Admin,Stationery,0.71,SUPPLIES TEAM LTD,554,,
Revenue,Adult Services,Adult Social Care,Commissioning & Service Delivery,5105628777,12.04.2017,Learning Disability Homes Management & Admin,Stationery,0.50,SUPPLIES TEAM LTD,555,,
Revenue,Adult Services,Adult Social Care,Commissioning & Service Delivery,5105628777,12.04.2017,Learning Disability Homes Management & Admin,Stationery,0.94,SUPPLIES TEAM LTD,556,,
Revenue,Adult Services,Adult Social Care,Commissioning & Service Delivery,5105628777,12.04.2017,Learning Disability Homes Management & Admin,Stationery,0.55,SUPPLIES TEAM LTD,557,,
Revenue,Adult Services,Adult Social Care,Commissioning & Service Delivery,5105628777,12.04.2017,Learning Disability Homes Management & Admin,Stationery,19.65,SUPPLIES TEAM LTD,558,,
Revenue,Adult Services,Adult Social Care,Commissioning & Service Delivery,5105628777,12.04.2017,Learning Disability Homes Management & Admin,Stationery,5.53,SUPPLIES TEAM LTD,559,,
Revenue,Adult Services,Adult Social Care,Commissioning & Service Delivery,5105628777,12.04.2017,Learning Disability Homes Management & Admin,Stationery,0.30,SUPPLIES TEAM LTD,560,,
Revenue,Adult Services,Adult Social Care,Commissioning & Service Delivery,5105628777,12.04.2017,Learning Disability Homes Management & Admin,Stationery,0.78,SUPPLIES TEAM LTD,561,,
Revenue,Adult Services,Adult Social Care,Commissioning & Service Delivery,5105628777,12.04.2017,Learning Disability Homes Management & Admin,Stationery,8.43,SUPPLIES TEAM LTD,562,,
Revenue,Adult Services,Adult Social Care,Commissioning & Service Delivery,5105628777,12.04.2017,Learning Disability Homes Management & Admin,Stationery,1.34,SUPPLIES TEAM LTD,563,,
Revenue,Adult Services,Adult Social Care,Commissioning & Service Delivery,5105628777,12.04.2017,Learning Disability Homes Management & Admin,Stationery,3.08,SUPPLIES TEAM LTD,564,,
Revenue,Adult Services,Adult Social Care,Commissioning & Service Delivery,5105628777,12.04.2017,Learning Disability Homes Management & Admin,Stationery,3.80,SUPPLIES TEAM LTD,565,,
Revenue,Adult Services,Adult Social Care,Commissioning & Service Delivery,5105628777,12.04.2017,Learning Disability Homes Management & Admin,Stationery,15.96,SUPPLIES TEAM LTD,566,,
Revenue,Adult Services,Adult Social Care,Commissioning & Service Delivery,5105628777,12.04.2017,Learning Disability Homes Management & Admin,Stationery,2.19,SUPPLIES TEAM LTD,567,,
Revenue,Place,Cultural and Related Services,Library Service,5105631202,28.04.2017,Public Libraries Central,Stationery,1.80,SUPPLIES TEAM LTD,568,,
Revenue,Place,Cultural and Related Services,Library Service,5105631202,28.04.2017,Public Libraries Central,Stationery,6.26,SUPPLIES TEAM LTD,569,,
Revenue,Place,Cultural and Related Services,Library Service,5105631202,28.04.2017,Public Libraries Central,Stationery,2.46,SUPPLIES TEAM LTD,570,,
Revenue,Adult Services,Adult Social Care,Commissioning & Service Delivery,5105631201,28.04.2017,Adult Social Care Enterprise House,Stationery,68.56,SUPPLIES TEAM LTD,571,,
Revenue,Adult Services,Adult Social Care,Commissioning & Service Delivery,5105631201,28.04.2017,Adult Social Care Enterprise House,Stationery,1.00,SUPPLIES TEAM LTD,572,,
Revenue,Adult Services,Adult Social Care,Commissioning & Service Delivery,5105631201,28.04.2017,Adult Social Care Enterprise House,Stationery,2.96,SUPPLIES TEAM LTD,573,,
Revenue,Adult Services,Adult Social Care,Commissioning & Service Delivery,5105631201,28.04.2017,Adult Social Care Enterprise House,Stationery,7.00,SUPPLIES TEAM LTD,574,,
Revenue,Adult Services,Adult Social Care,Commissioning & Service Delivery,5105631201,28.04.2017,Adult Social Care Enterprise House,Stationery,3.08,SUPPLIES TEAM LTD,575,,
Revenue,Adult Services,Adult Social Care,Commissioning & Service Delivery,5105631201,28.04.2017,Adult Social Care Enterprise House,Stationery,6.26,SUPPLIES TEAM LTD,576,,
Revenue,Resources,Central Services,Support Services,5105628760,05.04.2017,ICT CCR,Stationery,46.30,SUPPLIES TEAM LTD,577,,
Revenue,Resources,Central Services,Support Services,5105628760,05.04.2017,ICT CCR,Stationery,3.61,SUPPLIES TEAM LTD,578,,
Revenue,Resources,Central Services,Support Services,5105628760,05.04.2017,ICT CCR,Stationery,3.72,SUPPLIES TEAM LTD,579,,
Revenue,Childrens Services,Children's & Education Services,Special Schools & Alternative Provision,5105628639,05.04.2017,Island Learning Centre,Stationery,2.50,SUPPLIES TEAM LTD,580,,
Revenue,Place,Cultural and Related Services,Library Service,5105628722,13.04.2017,Sandown Library,Stationery,9.26,SUPPLIES TEAM LTD,581,,
Revenue,Place,Cultural and Related Services,Library Service,5105628722,13.04.2017,Sandown Library,Stationery,1.08,SUPPLIES TEAM LTD,582,,
Revenue,Resources,Central Services,Corporate and Democratic Core,5105628651,05.04.2017,Cabinet Support,Stationery,9.26,SUPPLIES TEAM LTD,583,,
Revenue,Resources,Central Services,Support Services,5105628761,05.04.2017,Call Centre,Stationery,7.60,SUPPLIES TEAM LTD,584,,
Revenue,Resources,Central Services,Support Services,5105628761,05.04.2017,Call Centre,Stationery,2.60,SUPPLIES TEAM LTD,585,,
Revenue,Resources,Central Services,Support Services,5105628761,05.04.2017,Call Centre,Stationery,18.52,SUPPLIES TEAM LTD,586,,
Revenue,Resources,Central Services,Support Services,5105628761,05.04.2017,Call Centre,Stationery,1.86,SUPPLIES TEAM LTD,587,,
Revenue,Resources,Central Services,Support Services,5105628761,05.04.2017,Call Centre,Stationery,5.62,SUPPLIES TEAM LTD,588,,
Revenue,Childrens Services,Children's & Education Services,Special Schools & Alternative Provision,5105628778,12.04.2017,Island Learning Centre,Stationery,1.59,SUPPLIES TEAM LTD,589,,
Revenue,Childrens Services,Children's & Education Services,Special Schools & Alternative Provision,5105628778,12.04.2017,Island Learning Centre,Stationery,1.59,SUPPLIES TEAM LTD,590,,
Revenue,Childrens Services,Children's & Education Services,Special Schools & Alternative Provision,5105628778,12.04.2017,Island Learning Centre,Stationery,3.76,SUPPLIES TEAM LTD,591,,
Revenue,Childrens Services,Children's & Education Services,Special Schools & Alternative Provision,5105628778,12.04.2017,Island Learning Centre,Stationery,3.07,SUPPLIES TEAM LTD,592,,
Revenue,Resources,Central Services,Support Services,5105629165,12.04.2017,Organisational Change Team,Stationery,1.37,SUPPLIES TEAM LTD,593,,
Revenue,Resources,Central Services,Support Services,5105629192,12.04.2017,Organisational Change Team,Stationery,5.62,SUPPLIES TEAM LTD,594,,
Revenue,Childrens Services,Children's & Education Services,Family Support Services,5105629081,12.04.2017,Disabled Childrens Intervention Team,Stationery,2.55,SUPPLIES TEAM LTD,595,,
Revenue,Childrens Services,Children's & Education Services,Family Support Services,5105629081,12.04.2017,Disabled Childrens Intervention Team,Stationery,9.26,SUPPLIES TEAM LTD,596,,
Revenue,Childrens Services,Children's & Education Services,Family Support Services,5105629081,12.04.2017,Disabled Childrens Intervention Team,Stationery,0.18,SUPPLIES TEAM LTD,597,,
Revenue,Childrens Services,Children's & Education Services,Family Support Services,5105629081,12.04.2017,Disabled Childrens Intervention Team,Stationery,1.30,SUPPLIES TEAM LTD,598,,
Revenue,Childrens Services,Children's & Education Services,Family Support Services,5105629084,19.04.2017,Disabled Childrens Intervention Team,Stationery,0.46,SUPPLIES TEAM LTD,599,,
Revenue,Childrens Services,Children's & Education Services,Family Support Services,5105629081,12.04.2017,Disabled Childrens Intervention Team,Stationery,0.65,SUPPLIES TEAM LTD,600,,
Revenue,Childrens Services,Children's & Education Services,Family Support Services,5105629081,12.04.2017,Disabled Childrens Intervention Team,Stationery,1.59,SUPPLIES TEAM LTD,601,,
Revenue,Childrens Services,Children's & Education Services,Family Support Services,5105629081,12.04.2017,Disabled Childrens Intervention Team,Stationery,3.76,SUPPLIES TEAM LTD,602,,
Revenue,Childrens Services,Children's & Education Services,Family Support Services,5105629081,12.04.2017,Disabled Childrens Intervention Team,Stationery,6.02,SUPPLIES TEAM LTD,603,,
Revenue,Childrens Services,Children's & Education Services,Family Support Services,5105629081,12.04.2017,Disabled Childrens Intervention Team,Stationery,2.81,SUPPLIES TEAM LTD,604,,
Revenue,Adult Services,Adult Social Care,Learning Disability Suppt-adults (18-64),5105629083,19.04.2017,No-Barriers,Stationery,18.52,SUPPLIES TEAM LTD,605,,
Revenue,Adult Services,Adult Social Care,Learning Disability Suppt-adults (18-64),5105629083,19.04.2017,No-Barriers,Stationery,1.30,SUPPLIES TEAM LTD,606,,
Revenue,Adult Services,Adult Social Care,Learning Disability Suppt-adults (18-64),5105629083,19.04.2017,No-Barriers,Stationery,1.86,SUPPLIES TEAM LTD,607,,
Revenue,Resources,Central Services,Support Services,5105630265,19.04.2017,Call Centre,Stationery,0.46,SUPPLIES TEAM LTD,608,,
Revenue,Resources,Parking Services,Off Street Parking,5105630204,19.04.2017,Parking Services,Stationery,0.71,SUPPLIES TEAM LTD,609,,
Revenue,Resources,Parking Services,Off Street Parking,5105630204,19.04.2017,Parking Services,Stationery,0.19,SUPPLIES TEAM LTD,610,,
Revenue,Resources,Central Services,Support Services,5105630204,19.04.2017,Organisational Change Team,Stationery,5.30,SUPPLIES TEAM LTD,611,,
Revenue,Resources,Central Services,Support Services,5105630204,19.04.2017,Organisational Change Team,Stationery,6.72,SUPPLIES TEAM LTD,612,,
Revenue,Resources,Central Services,Support Services,5105630204,19.04.2017,Organisational Change Team,Stationery,6.44,SUPPLIES TEAM LTD,613,,
Revenue,Resources,Central Services,Support Services,5105630204,19.04.2017,Organisational Change Team,Stationery,91.50,SUPPLIES TEAM LTD,614,,
Revenue,Resources,Central Services,Support Services,5105630204,19.04.2017,Organisational Change Team,Stationery,12.33,SUPPLIES TEAM LTD,615,,
Revenue,Resources,Central Services,Support Services,5105630204,19.04.2017,Organisational Change Team,Stationery,31.30,SUPPLIES TEAM LTD,616,,
Revenue,Resources,Central Services,Support Services,5105630204,19.04.2017,Organisational Change Team,Stationery,9.88,SUPPLIES TEAM LTD,617,,
Revenue,Resources,Central Services,Support Services,5105630204,19.04.2017,Organisational Change Team,Stationery,3.84,SUPPLIES TEAM LTD,618,,
Revenue,Resources,Central Services,Support Services,5105630204,19.04.2017,Organisational Change Team,Stationery,17.14,SUPPLIES TEAM LTD,619,,
Revenue,Childrens Services,Children's & Education Services,Safeguarding Children/Young Peoples Svs,5105630508,21.04.2017,Early Help Team,Stationery,1.61,SUPPLIES TEAM LTD,620,,
Revenue,Childrens Services,Children's & Education Services,Safeguarding Children/Young Peoples Svs,5105630508,21.04.2017,Early Help Team,Stationery,1.23,SUPPLIES TEAM LTD,621,,
Revenue,Adult Services,Adult Social Care,Commissioning & Service Delivery,5105630653,21.04.2017,Adult Social Care Enterprise House,Stationery,6.15,SUPPLIES TEAM LTD,622,,
Revenue,Adult Services,Adult Social Care,Commissioning & Service Delivery,5105630653,21.04.2017,Adult Social Care Enterprise House,Stationery,9.00,SUPPLIES TEAM LTD,623,,
Revenue,Adult Services,Adult Social Care,Commissioning & Service Delivery,5105630653,21.04.2017,Adult Social Care Enterprise House,Stationery,1.00,SUPPLIES TEAM LTD,624,,
Revenue,Adult Services,Adult Social Care,Commissioning & Service Delivery,5105630653,21.04.2017,Adult Social Care Enterprise House,Stationery,13.40,SUPPLIES TEAM LTD,625,,
Revenue,Adult Services,Adult Social Care,Commissioning & Service Delivery,5105630653,21.04.2017,Adult Social Care Enterprise House,Stationery,1.65,SUPPLIES TEAM LTD,626,,
Revenue,Adult Services,Adult Social Care,Commissioning & Service Delivery,5105630653,21.04.2017,Adult Social Care Enterprise House,Stationery,16.08,SUPPLIES TEAM LTD,627,,
Revenue,Resources,Central Services,Support Services,5105631198,28.04.2017,Help Centres Shared Service Centre,Stationery,0.17,SUPPLIES TEAM LTD,628,,
Revenue,Resources,Central Services,Support Services,5105631198,28.04.2017,Help Centres Shared Service Centre,Stationery,25.71,SUPPLIES TEAM LTD,629,,
Revenue,Place,Planning services,Management & Support Services,5105630836,26.04.2017,Planning Management,Stationery,114.62,SUPPLIES TEAM LTD,630,,
Revenue,Place,Planning services,Management & Support Services,5105631190,28.04.2017,Planning Management,Stationery,6.57,SUPPLIES TEAM LTD,631,,
Revenue,Resources,Central Services,Support Services,5105629437,21.04.2017,Payments Social Care Team,Stationery,294.63,SUPPLIES TEAM LTD,632,,
Revenue,Place,Environmental & Regulatory Services,"Cemetery, Cremation & Mortuary Services",5105629205,12.04.2017,Crematorium,Stationery,0.96,SUPPLIES TEAM LTD,633,,
Revenue,Adult Services,Adult Social Care,Central Codes (to be reallocated),5105629083,19.04.2017,Adelaide Resource Centre,Stationery,18.52,SUPPLIES TEAM LTD,634,,
Revenue,Adult Services,Adult Social Care,Central Codes (to be reallocated),5105629201,12.04.2017,Adelaide Resource Centre,Stationery,2.88,SUPPLIES TEAM LTD,635,,
Revenue,Adult Services,Adult Social Care,Central Codes (to be reallocated),5105629083,19.04.2017,Adelaide Resource Centre,Stationery,2.04,SUPPLIES TEAM LTD,636,,
Revenue,Adult Services,Adult Social Care,Central Codes (to be reallocated),5105629083,19.04.2017,Adelaide Resource Centre,Stationery,3.36,SUPPLIES TEAM LTD,637,,
Revenue,Adult Services,Adult Social Care,Central Codes (to be reallocated),5105629083,19.04.2017,Adelaide Resource Centre,Stationery,0.36,SUPPLIES TEAM LTD,638,,
Revenue,Adult Services,Adult Social Care,Central Codes (to be reallocated),5105629083,19.04.2017,Adelaide Resource Centre,Stationery,0.24,SUPPLIES TEAM LTD,639,,
Revenue,Adult Services,Adult Social Care,Central Codes (to be reallocated),5105629083,19.04.2017,Adelaide Resource Centre,Stationery,0.65,SUPPLIES TEAM LTD,640,,
Revenue,Adult Services,Adult Social Care,Central Codes (to be reallocated),5105629083,19.04.2017,Adelaide Resource Centre,Stationery,1.30,SUPPLIES TEAM LTD,641,,
Revenue,Place,Planning services,Management & Support Services,5105629223,12.04.2017,Planning Management,Stationery,32.04,SUPPLIES TEAM LTD,642,,
Revenue,Place,Planning services,Management & Support Services,5105629223,12.04.2017,Planning Management,Stationery,11.16,SUPPLIES TEAM LTD,643,,
Revenue,Place,Planning services,Management & Support Services,5105629223,12.04.2017,Planning Management,Stationery,32.04,SUPPLIES TEAM LTD,644,,
Revenue,Place,Planning services,Management & Support Services,5105629223,12.04.2017,Planning Management,Stationery,42.85,SUPPLIES TEAM LTD,645,,
Revenue,Place,Planning services,Management & Support Services,5105629223,12.04.2017,Planning Management,Stationery,1.60,SUPPLIES TEAM LTD,646,,
Revenue,Place,Planning services,Management & Support Services,5105629223,12.04.2017,Planning Management,Stationery,2.46,SUPPLIES TEAM LTD,647,,
Revenue,Place,Planning services,Management & Support Services,5105629223,12.04.2017,Planning Management,Stationery,1.61,SUPPLIES TEAM LTD,648,,
Revenue,Place,Planning services,Management & Support Services,5105629223,12.04.2017,Planning Management,Stationery,1.08,SUPPLIES TEAM LTD,649,,
Revenue,Place,Planning services,Management & Support Services,5105629223,12.04.2017,Planning Management,Stationery,0.19,SUPPLIES TEAM LTD,650,,
Revenue,Place,Planning services,Management & Support Services,5105629223,12.04.2017,Planning Management,Stationery,42.85,SUPPLIES TEAM LTD,651,,
Revenue,Place,Planning services,Management & Support Services,5105629223,12.04.2017,Planning Management,Stationery,3.22,SUPPLIES TEAM LTD,652,,
Revenue,Place,Planning services,Management & Support Services,5105629223,12.04.2017,Planning Management,Stationery,4.30,SUPPLIES TEAM LTD,653,,
Revenue,Place,Planning services,Management & Support Services,5105629223,12.04.2017,Planning Management,Stationery,1.70,SUPPLIES TEAM LTD,654,,
Revenue,Place,Planning services,Management & Support Services,5105629223,12.04.2017,Planning Management,Stationery,2.65,SUPPLIES TEAM LTD,655,,
Revenue,Place,Planning services,Management & Support Services,5105629223,12.04.2017,Planning Management,Stationery,114.62,SUPPLIES TEAM LTD,656,,
Revenue,Place,Cultural and Related Services,Library Service,5105629200,12.04.2017,Library HQ,Stationery,77.51,SUPPLIES TEAM LTD,657,,
Revenue,Resources,Central Services,Support Services,5105630474,21.04.2017,Payments Social Care Team,Stationery,-294.63,SUPPLIES TEAM LTD,658,,
Revenue,Resources,Central Services,Support Services,5105630475,21.04.2017,Payments Social Care Team,Stationery,-294.63,SUPPLIES TEAM LTD,659,,
Revenue,Resources,Housing Services,Housing Benefits Administration,5105630204,19.04.2017,Benefit Reviews & Overpayments,Stationery,1.23,SUPPLIES TEAM LTD,660,,
Revenue,Resources,Housing Services,Housing Benefits Administration,5105630204,19.04.2017,Benefit Reviews & Overpayments,Stationery,0.19,SUPPLIES TEAM LTD,661,,
Revenue,Resources,Housing Services,Housing Benefits Administration,5105630204,19.04.2017,Benefit Reviews & Overpayments,Stationery,0.71,SUPPLIES TEAM LTD,662,,
Revenue,Resources,Central Services,Central Services to the Public,5105630204,19.04.2017,Council Tax,Stationery,1.23,SUPPLIES TEAM LTD,663,,
Revenue,Childrens Services,Children's & Education Services,Youth Justice,5105630508,21.04.2017,Youth Offending Team,Stationery,25.71,SUPPLIES TEAM LTD,664,,
Revenue,Place,Cultural and Related Services,Recreation and Sport,5105630723,26.04.2017,The Heights,Stationery,34.28,SUPPLIES TEAM LTD,665,,
Revenue,Place,Cultural and Related Services,Recreation and Sport,5105630723,26.04.2017,The Heights,Stationery,0.68,SUPPLIES TEAM LTD,666,,
Revenue,Place,Cultural and Related Services,Recreation and Sport,5105630723,26.04.2017,The Heights,Stationery,6.76,SUPPLIES TEAM LTD,667,,
Revenue,Place,Cultural and Related Services,Recreation and Sport,5105630723,26.04.2017,The Heights,Stationery,1.23,SUPPLIES TEAM LTD,668,,
Revenue,Resources,Central Services,Support Services,5105631198,28.04.2017,Help Centres Shared Service Centre,Stationery,0.53,SUPPLIES TEAM LTD,669,,
Revenue,Place,Environmental & Regulatory Services,"Cemetery, Cremation & Mortuary Services",5105628727,05.04.2017,Crematorium,Stationery,18.52,SUPPLIES TEAM LTD,670,,
Revenue,Place,Environmental & Regulatory Services,"Cemetery, Cremation & Mortuary Services",5105628727,05.04.2017,Crematorium,Stationery,1.30,SUPPLIES TEAM LTD,671,,
Revenue,Childrens Services,Children's & Education Services,Management & Support Services,5105628763,05.04.2017,Specialist Service Business Admin,Stationery,34.40,SUPPLIES TEAM LTD,672,,
Revenue,Place,Environmental & Regulatory Services,"Cemetery, Cremation & Mortuary Services",5105628727,05.04.2017,Crematorium,Stationery,12.41,SUPPLIES TEAM LTD,673,,
Revenue,Place,Environmental & Regulatory Services,"Cemetery, Cremation & Mortuary Services",5105628727,05.04.2017,Crematorium,Stationery,3.96,SUPPLIES TEAM LTD,674,,
Revenue,Place,Environmental & Regulatory Services,Regulatory Services,5105628361,12.04.2017,Licensing Services,Stationery,13.28,SUPPLIES TEAM LTD,675,,
Revenue,Childrens Services,Children's & Education Services,Management & Support Services,5105628296,12.04.2017,Specialist Service Business Admin,Stationery,92.60,SUPPLIES TEAM LTD,676,,
Revenue,Place,Environmental & Regulatory Services,Regulatory Services,5105628775,12.04.2017,Licensing Services,Stationery,0.46,SUPPLIES TEAM LTD,677,,
Revenue,Place,Cultural and Related Services,Culture and Heritage,5105628722,13.04.2017,Heritage Education Service,Stationery,16.33,SUPPLIES TEAM LTD,678,,
Revenue,Place,Environmental & Regulatory Services,"Cemetery, Cremation & Mortuary Services",5105628727,05.04.2017,Crematorium,Stationery,5.53,SUPPLIES TEAM LTD,679,,
Revenue,Place,Environmental & Regulatory Services,"Cemetery, Cremation & Mortuary Services",5105628727,05.04.2017,Crematorium,Stationery,2.60,SUPPLIES TEAM LTD,680,,
Revenue,Place,Environmental & Regulatory Services,"Cemetery, Cremation & Mortuary Services",5105628727,05.04.2017,Crematorium,Stationery,0.73,SUPPLIES TEAM LTD,681,,
Revenue,Place,Environmental & Regulatory Services,"Cemetery, Cremation & Mortuary Services",5105628727,05.04.2017,Crematorium,Stationery,0.45,SUPPLIES TEAM LTD,682,,
Revenue,Resources,Central Services,Support Services,5105628761,05.04.2017,Payments Social Care Team,Stationery,0.42,SUPPLIES TEAM LTD,683,,
Revenue,Place,Cultural and Related Services,Recreation and Sport,5105628762,05.04.2017,The Heights,Stationery,4.30,SUPPLIES TEAM LTD,684,,
Revenue,Place,Cultural and Related Services,Recreation and Sport,5105628762,05.04.2017,The Heights,Stationery,2.20,SUPPLIES TEAM LTD,685,,
Revenue,Place,Cultural and Related Services,Recreation and Sport,5105628762,05.04.2017,The Heights,Stationery,1.08,SUPPLIES TEAM LTD,686,,
Revenue,Place,Cultural and Related Services,Recreation and Sport,5105628762,05.04.2017,The Heights,Stationery,0.42,SUPPLIES TEAM LTD,687,,
Revenue,Place,Cultural and Related Services,Recreation and Sport,5105628762,05.04.2017,The Heights,Stationery,0.71,SUPPLIES TEAM LTD,688,,
Revenue,Resources,Central Services,Support Services,5105628629,21.04.2017,Payments Social Care Team,Stationery,294.63,SUPPLIES TEAM LTD,689,,
Revenue,Adult Services,Adult Social Care,Commissioning & Service Delivery,5105630112,19.04.2017,FNC IWC funded clients,Charges from Independent Providers,625.24,BARCHESTER HEALTHCARE,690,,
Revenue,Adult Services,Adult Social Care,Physical Support - older people (65+),5105630112,19.04.2017,Physical Support Nursing 65+,Charges from Independent Providers,"2,822.96",BARCHESTER HEALTHCARE,691,,
Revenue,Childrens Services,Children's & Education Services,Family Support Services,5105628490,05.04.2017,Strengthening Families,Payment to Private Contractors,"10,000.00",BARNARDO'S,692,,
Revenue,Childrens Services,Children's & Education Services,Children Looked After,5105628417,12.04.2017,Adoption Support Fund,Charges from Independent Providers,420.00,BARNARDO'S,693,,
Revenue,Childrens Services,Children's & Education Services,Children Looked After,5105629172,12.04.2017,Adoption Support Fund,Charges from Independent Providers,120.00,BARNARDO'S,694,,
Revenue,Place,Cultural and Related Services,Recreation and Sport,5105628672,05.04.2017,Play Development,Hire of General Equipment,40.00,BARTON PRIMARY & EARLY YEARS,696,,
Revenue,Resources,Central Services,Support Services,5105630614,21.04.2017,Staff Benefits,Payment to Private Contractors,40.00,BARTON PRIMARY & EARLY YEARS,698,,
Revenue,Childrens Services,Children's & Education Services,Other Education and Community Budget,5105630214,19.04.2017,Complaints (Children & Families),Professional Services,838.90,BAS BOOKS LTD,699,,
Revenue,Adult Services,Adult Social Care,Learning Disab Supp (to be reallocated),5105628986,07.04.2017,Plean Dene,Operational Equipment,31.35,LAKE CLEANING & CATERING SUPPLIES,700,,
Revenue,Childrens Services,Children's & Education Services,Children Looked After,5105631162,28.04.2017,Beaulieu House,General Materials,72.68,LAKE CLEANING & CATERING SUPPLIES,701,,
Revenue,Childrens Services,Children's & Education Services,Children Looked After,5105628610,05.04.2017,Beaulieu House,General Materials,22.56,LAKE CLEANING & CATERING SUPPLIES,702,,
Revenue,Childrens Services,Children's & Education Services,Children Looked After,5105628612,05.04.2017,Beaulieu House,General Materials,64.44,LAKE CLEANING & CATERING SUPPLIES,703,,
Revenue,Childrens Services,Children's & Education Services,Children Looked After,5105628614,05.04.2017,Beaulieu House,General Materials,80.66,LAKE CLEANING & CATERING SUPPLIES,704,,
Revenue,Place,Cultural and Related Services,Recreation and Sport,5105630862,26.04.2017,Westridge Squash Courts,Consumable Cleaning Materials,60.68,LAKE CLEANING & CATERING SUPPLIES,705,,
Revenue,Place,Cultural and Related Services,Recreation and Sport,5105630858,26.04.2017,The Heights,Consumable Cleaning Materials,103.36,LAKE CLEANING & CATERING SUPPLIES,706,,
Revenue,Place,Cultural and Related Services,Recreation and Sport,5105630859,26.04.2017,The Heights,Consumable Cleaning Materials,142.56,LAKE CLEANING & CATERING SUPPLIES,707,,
Revenue,Adult Services,Adult Social Care,Support - Memory /Cognition-older people (65+),5105629679,19.04.2017,Memory & Cognition Nursing 65+,Charges from Independent Providers,"2,269.40",BEAUMONT LODGE LTD,708,,
Revenue,Adult Services,Adult Social Care,Learning Disability Suppt-adults (18-64),5105629980,19.04.2017,Learning Disability Residential 18-64,Charges from Independent Providers,"16,584.68",BEECHWOOD COLLEGE,709,,
Capital,Place,Capital,Capital,5105628418,07.04.2017,Rights Of Way Capital Programme,Payment to Contractors - Capital,351.00,BEMBRIDGE PARISH COUNCIL,710,,
Revenue,Place,Environmental & Regulatory Services,Regulatory Services,5105630541,21.04.2017,Environmental Health - Business Regulation Protection,Clothing & Laundry,7.56,BERENDSEN,718,,
Revenue,Place,Environmental & Regulatory Services,Regulatory Services,5105630542,21.04.2017,Environmental Health - Business Regulation Protection,Clothing & Laundry,5.04,BERENDSEN,719,,
Revenue,Place,Environmental & Regulatory Services,Regulatory Services,5105630539,26.04.2017,Environmental Health - Business Regulation Protection,Clothing & Laundry,3.52,BERENDSEN,720,,
Revenue,Place,Environmental & Regulatory Services,Regulatory Services,5105630533,21.04.2017,Environmental Health - Business Regulation Protection,Clothing & Laundry,7.56,BERENDSEN,721,,
Revenue,Place,Environmental & Regulatory Services,Regulatory Services,5105630490,26.04.2017,Environmental Health - Business Regulation Protection,Clothing & Laundry,19.12,BERENDSEN,722,,
Revenue,Resources,Central Services,Support Services,5105630598,21.04.2017,Staff Benefits,Payment to Private Contractors,243.00,BERRY HILL CHILDCARE LIMITED,723,,
Revenue,Place,Housing Services,Homelessness,5105630961,28.04.2017,B&B Properties,Accommodation Costs - Bed & Breakfast,"7,966.50",BERTRAM LODGE,724,,
Revenue,Adult Services,Adult Social Care,Learning Disab Supp (to be reallocated),5105629167,12.04.2017,Plean Dene,Operational Equipment,21.31,BETA PAK LTD,727,,
Revenue,Adult Services,Adult Social Care,Learning Disab Supp (to be reallocated),5105629167,12.04.2017,Plean Dene,Operational Equipment,45.96,BETA PAK LTD,728,,
Revenue,Adult Services,Adult Social Care,Learning Disab Supp (to be reallocated),5105630724,26.04.2017,Saxonbury,Operational Equipment,208.42,BETA PAK LTD,729,,
Revenue,Adult Services,Adult Social Care,Learning Disab Supp (to be reallocated),5105629089,12.04.2017,40 Venner Avenue,Operational Equipment,393.02,BETA PAK LTD,730,,
Revenue,Adult Services,Adult Social Care,Learning Disab Supp (to be reallocated),5105630277,21.04.2017,Seagulls,Operational Equipment,93.74,BETA PAK LTD,731,,
Revenue,Place,Cultural and Related Services,Culture and Heritage,5105629090,12.04.2017,Dinosaur Isle Museum (Sandown Geology),Operational Equipment,37.17,BETA PAK LTD,732,,
Revenue,Adult Services,Adult Social Care,Central Codes (to be reallocated),5105630731,26.04.2017,Adelaide Resource Centre,Consumable Cleaning Materials,45.29,BETA PAK LTD,733,,
Revenue,Adult Services,Adult Social Care,Central Codes (to be reallocated),5105630680,26.04.2017,Adelaide Resource Centre,Consumable Cleaning Materials,465.50,BETA PAK LTD,734,,
Revenue,Adult Services,Adult Social Care,Central Codes (to be reallocated),5105629111,12.04.2017,Adelaide Resource Centre,Consumable Cleaning Materials,30.91,BETA PAK LTD,735,,
Revenue,Adult Services,Adult Social Care,Central Codes (to be reallocated),5105630511,21.04.2017,Adelaide Resource Centre,Consumable Cleaning Materials,30.91,BETA PAK LTD,736,,
Revenue,Adult Services,Adult Social Care,Central Codes (to be reallocated),5105630477,21.04.2017,Adelaide Resource Centre,Consumable Cleaning Materials,-30.91,BETA PAK LTD,737,,
Revenue,Adult Services,Adult Social Care,Central Codes (to be reallocated),5105630888,26.04.2017,Gouldings Resource Centre,Catering Purchases,97.30,3663 (BFS GROUP LTD),738,,
Revenue,Adult Services,Adult Social Care,Central Codes (to be reallocated),5105630686,21.04.2017,Gouldings Resource Centre,Catering Purchases,33.69,3663 (BFS GROUP LTD),739,,
Revenue,Adult Services,Adult Social Care,Central Codes (to be reallocated),5105630686,21.04.2017,Gouldings Resource Centre,Catering Purchases,32.48,3663 (BFS GROUP LTD),740,,
Revenue,Adult Services,Adult Social Care,Central Codes (to be reallocated),5105629067,12.04.2017,Gouldings Resource Centre,Catering Purchases,437.82,3663 (BFS GROUP LTD),741,,
Revenue,Adult Services,Adult Social Care,Central Codes (to be reallocated),5105629067,12.04.2017,Gouldings Resource Centre,Catering Purchases,62.44,3663 (BFS GROUP LTD),742,,
Revenue,Adult Services,Adult Social Care,Central Codes (to be reallocated),5105629066,12.04.2017,Gouldings Resource Centre,Catering Purchases,80.58,3663 (BFS GROUP LTD),743,,
Revenue,Adult Services,Adult Social Care,Central Codes (to be reallocated),5105630498,26.04.2017,Gouldings Resource Centre,Catering Purchases,218.80,3663 (BFS GROUP LTD),744,,
Revenue,Adult Services,Adult Social Care,Central Codes (to be reallocated),5105630498,26.04.2017,Gouldings Resource Centre,Catering Purchases,11.43,3663 (BFS GROUP LTD),745,,
Revenue,Adult Services,Adult Social Care,Central Codes (to be reallocated),5105629066,12.04.2017,Gouldings Resource Centre,Catering Purchases,361.07,3663 (BFS GROUP LTD),746,,
Revenue,Adult Services,Adult Social Care,Central Codes (to be reallocated),5105628734,05.04.2017,Adelaide Resource Centre,Catering Purchases,97.04,3663 (BFS GROUP LTD),747,,
Revenue,Adult Services,Adult Social Care,Central Codes (to be reallocated),5105628717,05.04.2017,Adelaide Resource Centre,Catering Purchases,365.53,3663 (BFS GROUP LTD),748,,
Revenue,Adult Services,Adult Social Care,Central Codes (to be reallocated),5105628717,05.04.2017,Adelaide Resource Centre,Catering Purchases,20.55,3663 (BFS GROUP LTD),749,,
Revenue,Adult Services,Adult Social Care,Central Codes (to be reallocated),5105628734,05.04.2017,Adelaide Resource Centre,Catering Purchases,6.70,3663 (BFS GROUP LTD),750,,
Revenue,Place,Cultural and Related Services,Recreation and Sport,5105630249,21.04.2017,The Heights,Stock Purchases,60.39,3663 (BFS GROUP LTD),751,,
Revenue,Place,Cultural and Related Services,Recreation and Sport,5105630249,21.04.2017,The Heights,Stock Purchases,82.70,3663 (BFS GROUP LTD),752,,
Revenue,Place,Cultural and Related Services,Recreation and Sport,5105630250,21.04.2017,The Heights,Stock Purchases,237.94,3663 (BFS GROUP LTD),753,,
Revenue,Place,Cultural and Related Services,Recreation and Sport,5105631209,28.04.2017,The Heights,Stock Purchases,11.76,3663 (BFS GROUP LTD),754,,
Revenue,Place,Cultural and Related Services,Recreation and Sport,5105631214,28.04.2017,The Heights,Stock Purchases,287.34,3663 (BFS GROUP LTD),755,,
Revenue,Place,Cultural and Related Services,Recreation and Sport,5105631217,28.04.2017,The Heights,Stock Purchases,59.92,3663 (BFS GROUP LTD),756,,
Revenue,Place,Cultural and Related Services,Recreation and Sport,5105631217,28.04.2017,The Heights,Stock Purchases,24.10,3663 (BFS GROUP LTD),757,,
Revenue,Place,Cultural and Related Services,Recreation and Sport,5105631214,28.04.2017,The Heights,Stock Purchases,94.92,3663 (BFS GROUP LTD),758,,
Revenue,Place,Cultural and Related Services,Recreation and Sport,5105631215,28.04.2017,The Heights,Stock Purchases,125.91,3663 (BFS GROUP LTD),759,,
Revenue,Place,Cultural and Related Services,Recreation and Sport,5105631209,28.04.2017,The Heights,Stock Purchases,51.96,3663 (BFS GROUP LTD),760,,
Revenue,Adult Services,Adult Social Care,Central Codes (to be reallocated),5105628525,05.04.2017,Gouldings Resource Centre,"Refuse Collection, Disposal and Recycling Costs",370.30,BIFFA WASTE SERVICES LTD,761,,
Revenue,Public Health,Public Health,Discretionary,5105628652,05.04.2017,British Lung Foundation,Printing Costs,50.00,BILTMORE PRINTERS,768,,
Revenue,Place,Cultural and Related Services,Recreation and Sport,5105628355,07.04.2017,Wellbeing,Operational Equipment,47.80,BISHOP SPORTS & LEISURE LTD,770,,
Revenue,Place,Cultural and Related Services,Recreation and Sport,5105628355,07.04.2017,Wellbeing,Operational Equipment,8.00,BISHOP SPORTS & LEISURE LTD,771,,
Revenue,Place,Cultural and Related Services,Recreation and Sport,5105628355,07.04.2017,Wellbeing,Operational Equipment,624.75,BISHOP SPORTS & LEISURE LTD,772,,
Revenue,Place,Cultural and Related Services,Recreation and Sport,5105628530,07.04.2017,Wellbeing,Operational Equipment,29.75,BISHOP SPORTS & LEISURE LTD,773,,
Revenue,Place,Cultural and Related Services,Recreation and Sport,5105628530,07.04.2017,Wellbeing,Operational Equipment,10.00,BISHOP SPORTS & LEISURE LTD,774,,
Revenue,Place,Housing Services,Housing Strategy,5105628419,07.04.2017,Downside Community & Learning Centre,Operational Equipment,13.80,BISHOP SPORTS & LEISURE LTD,775,,
Revenue,Place,Housing Services,Housing Strategy,5105628419,07.04.2017,Downside Community & Learning Centre,Operational Equipment,12.85,BISHOP SPORTS & LEISURE LTD,776,,
Revenue,Place,Housing Services,Housing Strategy,5105628419,07.04.2017,Downside Community & Learning Centre,Operational Equipment,11.24,BISHOP SPORTS & LEISURE LTD,777,,
Revenue,Adult Services,Adult Social Care,Physical Support - older people (65+),5105630788,26.04.2017,Physical Support Residential 65+,Charges from Independent Providers,462.07,BLANCHWORTH CARE LTD,778,,
Revenue,Place,Cultural and Related Services,Open Spaces,5105628768,07.04.2017,Fort Victoria,General Materials,361.80,BLINDS BY ELEGANCE,779,,
Revenue,Adult Services,Adult Social Care,Social Care Activities,5105628520,05.04.2017,Local Safeguarding Adults Board,Conference Expenses,500.00,BLUE APPLE THEATRE,780,,
Revenue,Adult Services,Adult Social Care,Learning Disab Supp (to be reallocated),5105630775,26.04.2017,Plean Dene,Catering Purchases,19.28,BOOKER CASH & CARRY LTD,781,,
Revenue,Adult Services,Adult Social Care,Learning Disab Supp (to be reallocated),5105630818,26.04.2017,Plean Dene,Catering Purchases,17.96,BOOKER CASH & CARRY LTD,782,,
Revenue,Adult Services,Adult Social Care,Learning Disab Supp (to be reallocated),5105628741,05.04.2017,Plean Dene,Catering Purchases,3.73,BOOKER CASH & CARRY LTD,783,,
Revenue,Adult Services,Adult Social Care,Learning Disab Supp (to be reallocated),5105628581,05.04.2017,Plean Dene,Catering Purchases,173.80,BOOKER CASH & CARRY LTD,784,,
Revenue,Adult Services,Adult Social Care,Learning Disab Supp (to be reallocated),5105628581,05.04.2017,Plean Dene,Catering Purchases,33.70,BOOKER CASH & CARRY LTD,785,,
Revenue,Adult Services,Adult Social Care,Learning Disab Supp (to be reallocated),5105630233,19.04.2017,Plean Dene,Catering Purchases,17.23,BOOKER CASH & CARRY LTD,786,,
Revenue,Adult Services,Adult Social Care,Learning Disab Supp (to be reallocated),5105630543,21.04.2017,Plean Dene,Catering Purchases,193.76,BOOKER CASH & CARRY LTD,787,,
Revenue,Adult Services,Adult Social Care,Learning Disab Supp (to be reallocated),5105630543,21.04.2017,Plean Dene,Catering Purchases,11.11,BOOKER CASH & CARRY LTD,788,,
Revenue,Adult Services,Adult Social Care,Learning Disab Supp (to be reallocated),5105630734,26.04.2017,Plean Dene,Catering Purchases,4.03,BOOKER CASH & CARRY LTD,789,,
Revenue,Adult Services,Adult Social Care,Learning Disab Supp (to be reallocated),5105629074,19.04.2017,Overbrook,Catering Purchases,36.45,BOOKER CASH & CARRY LTD,790,,
Revenue,Adult Services,Adult Social Care,Learning Disab Supp (to be reallocated),5105629074,19.04.2017,Overbrook,Catering Purchases,116.86,BOOKER CASH & CARRY LTD,791,,
Revenue,Childrens Services,Children's & Education Services,Safeguarding Children/Young Peoples Svs,5105629174,12.04.2017,Children In Need 1,Professional Services,483.44,BOSTICO INTERNATIONAL,792,,
Revenue,Adult Services,Adult Social Care,Social Care Activities,5105630523,26.04.2017,Long Term Conditions,Professional Services,294.29,BOSTICO INTERNATIONAL,793,,
Revenue,Place,Housing Services,Homelessness,5105630584,21.04.2017,Leaseholds by LA,Accommodation Costs - Leaseholder Payments,746.81,BRAMBLE LETTINGS,795,,
Revenue,Place,Housing Services,Homelessness,5105630584,21.04.2017,Leaseholds by LA,Accommodation Costs - Leaseholder Payments,746.81,BRAMBLE LETTINGS,796,,
Revenue,Place,Housing Services,Homelessness,5105630584,21.04.2017,Leaseholds by LA,Accommodation Costs - Leaseholder Payments,588.38,BRAMBLE LETTINGS,797,,
Revenue,Place,Housing Services,Homelessness,5105630584,21.04.2017,Leaseholds by LA,Accommodation Costs - Leaseholder Payments,746.81,BRAMBLE LETTINGS,798,,
Revenue,Place,Housing Services,Homelessness,5105630584,21.04.2017,Leaseholds by LA,Accommodation Costs - Leaseholder Payments,746.81,BRAMBLE LETTINGS,799,,
Revenue,Place,Housing Services,Homelessness,5105630584,21.04.2017,Leaseholds by LA,Accommodation Costs - Leaseholder Payments,746.81,BRAMBLE LETTINGS,800,,
Revenue,Place,Housing Services,Homelessness,5105630584,21.04.2017,Leaseholds by LA,Accommodation Costs - Leaseholder Payments,746.81,BRAMBLE LETTINGS,801,,
Revenue,Place,Housing Services,Homelessness,5105630584,21.04.2017,Leaseholds by LA,Accommodation Costs - Leaseholder Payments,588.38,BRAMBLE LETTINGS,802,,
Revenue,Place,Housing Services,Homelessness,5105630584,21.04.2017,Leaseholds by LA,Accommodation Costs - Leaseholder Payments,588.38,BRAMBLE LETTINGS,803,,
Revenue,Place,Housing Services,Homelessness,5105630584,21.04.2017,Leaseholds by LA,Accommodation Costs - Leaseholder Payments,588.38,BRAMBLE LETTINGS,804,,
Revenue,Place,Housing Services,Homelessness,5105630584,21.04.2017,Leaseholds by LA,Accommodation Costs - Leaseholder Payments,588.38,BRAMBLE LETTINGS,805,,
Revenue,Place,Housing Services,Homelessness,5105630584,21.04.2017,Leaseholds by LA,Accommodation Costs - Leaseholder Payments,588.38,BRAMBLE LETTINGS,806,,
Revenue,Place,Housing Services,Homelessness,5105630584,21.04.2017,Leaseholds by LA,Accommodation Costs - Leaseholder Payments,746.81,BRAMBLE LETTINGS,807,,
Revenue,Place,Housing Services,Homelessness,5105630584,21.04.2017,Leaseholds by LA,Accommodation Costs - Leaseholder Payments,769.43,BRAMBLE LETTINGS,808,,
Revenue,Place,Housing Services,Homelessness,5105630584,21.04.2017,Leaseholds by LA,Accommodation Costs - Leaseholder Payments,746.81,BRAMBLE LETTINGS,809,,
Revenue,Place,Housing Services,Homelessness,5105630584,21.04.2017,Leaseholds by LA,Accommodation Costs - Leaseholder Payments,746.81,BRAMBLE LETTINGS,810,,
Revenue,Place,Housing Services,Homelessness,5105630584,21.04.2017,Leaseholds by LA,Accommodation Costs - Leaseholder Payments,746.81,BRAMBLE LETTINGS,811,,
Revenue,Place,Housing Services,Homelessness,5105630584,21.04.2017,Leaseholds by LA,Accommodation Costs - Leaseholder Payments,746.81,BRAMBLE LETTINGS,812,,
Revenue,Place,Housing Services,Homelessness,5105630584,21.04.2017,Leaseholds by LA,Accommodation Costs - Leaseholder Payments,746.81,BRAMBLE LETTINGS,813,,
Revenue,Place,Housing Services,Homelessness,5105630584,21.04.2017,Leaseholds by LA,Accommodation Costs - Leaseholder Payments,746.81,BRAMBLE LETTINGS,814,,
Revenue,Place,Housing Services,Homelessness,5105630584,21.04.2017,Leaseholds by LA,Accommodation Costs - Leaseholder Payments,746.81,BRAMBLE LETTINGS,815,,
Revenue,Place,Housing Services,Homelessness,5105630584,21.04.2017,Leaseholds by LA,Accommodation Costs - Leaseholder Payments,746.81,BRAMBLE LETTINGS,816,,
Revenue,Place,Housing Services,Homelessness,5105630584,21.04.2017,Leaseholds by LA,Accommodation Costs - Leaseholder Payments,281.66,BRAMBLE LETTINGS,817,,
Revenue,Place,Housing Services,Homelessness,5105630584,21.04.2017,Leaseholds by LA,Accommodation Costs - Leaseholder Payments,216.66,BRAMBLE LETTINGS,818,,
Revenue,Adult Services,Adult Social Care,Learning Disab Supp (to be reallocated),5105629210,21.04.2017,Plean Dene,Grounds Maintenance,391.66,BRIGHSTONE LANDSCAPING LTD,824,,
Revenue,Adult Services,Adult Social Care,Learning Disab Supp (to be reallocated),5105629210,21.04.2017,Saxonbury,Grounds Maintenance,48.00,BRIGHSTONE LANDSCAPING LTD,825,,
Revenue,Adult Services,Adult Social Care,Learning Disab Supp (to be reallocated),5105629210,21.04.2017,Westminster House,Grounds Maintenance,48.00,BRIGHSTONE LANDSCAPING LTD,826,,
Revenue,Place,Cultural and Related Services,Open Spaces,5105631199,28.04.2017,Play Areas Health & Safety work,Payment to Private Contractors,545.00,BRIGHSTONE LANDSCAPING LTD,827,,
Revenue,Adult Services,Adult Social Care,Learning Disab Supp (to be reallocated),5105629210,21.04.2017,Seagulls,Grounds Maintenance,48.00,BRIGHSTONE LANDSCAPING LTD,828,,
Revenue,Adult Services,Adult Social Care,Learning Disab Supp (to be reallocated),5105629210,21.04.2017,40 Venner Avenue,Grounds Maintenance,48.00,BRIGHSTONE LANDSCAPING LTD,829,,
Revenue,Place,Environmental & Regulatory Services,(Street) Cleansing (not highways),5105631200,28.04.2017,Beach Cleaning,Beach Cleansing Contractors,129.60,BRIGHSTONE LANDSCAPING LTD,830,,
Revenue,Place,Environmental & Regulatory Services,(Street) Cleansing (not highways),5105630246,19.04.2017,Beach Cleaning,Payment to Private Contractors,75.04,BRIGHSTONE LANDSCAPING LTD,831,,
Revenue,Place,Cultural and Related Services,Open Spaces,5105630246,19.04.2017,Other Grounds Maintenance,Payment to Private Contractors,64.96,BRIGHSTONE LANDSCAPING LTD,832,,
Revenue,Adult Services,Adult Social Care,Learning Disab Supp (to be reallocated),5105629210,21.04.2017,The Laurels,Grounds Maintenance,252.00,BRIGHSTONE LANDSCAPING LTD,833,,
Revenue,Adult Services,Adult Social Care,Learning Disab Supp (to be reallocated),5105629210,21.04.2017,Overbrook,Grounds Maintenance,48.00,BRIGHSTONE LANDSCAPING LTD,834,,
Revenue,Childrens Services,Children's & Education Services,Safeguarding Children/Young Peoples Svs,5105629080,12.04.2017,LSCB (Local Safeguarding Childrens Board),Training,500.00,BRIGHTON AND HOVE CITY COUNCIL,835,,
Revenue,Place,Fire & Rescue Services,Fire fighting and Rescue Operations,5105629077,12.04.2017,Bikeability,Operational Equipment,107.70,BIG WIGHT T-SHIRT CO,836,,
Revenue,Place,Fire & Rescue Services,Fire fighting and Rescue Operations,5105629077,12.04.2017,Bikeability,Operational Equipment,233.70,BIG WIGHT T-SHIRT CO,837,,
Revenue,Place,Fire & Rescue Services,Fire fighting and Rescue Operations,5105629077,12.04.2017,Bikeability,Operational Equipment,279.65,BIG WIGHT T-SHIRT CO,838,,
Revenue,Place,Fire & Rescue Services,Fire fighting and Rescue Operations,5105629077,12.04.2017,Bikeability,Operational Equipment,122.50,BIG WIGHT T-SHIRT CO,839,,
Revenue,Childrens Services,Children's & Education Services,Other Education and Community Budget,5105628660,19.04.2017,Adult Community Learning,Licences,115.00,BRITISH COMPUTER SOCIETY,840,,
Revenue,Childrens Services,Children's & Education Services,Other Education and Community Budget,5105631191,28.04.2017,Adult Community Learning,Licences,750.00,BRITISH COMPUTER SOCIETY,841,,
Revenue,Place,Cultural and Related Services,Culture and Heritage,5105630814,26.04.2017,Dinosaur Isle Museum (Sandown Geology),Stock Purchases,"2,882.69",BRITISH FOSSILS/GIFTSTONES LIMITED,842,,
Revenue,Childrens Services,Central Services,Support Services,5105628550,05.04.2017,Youth Council,Professional Subscriptions,510.00,BRITISH YOUTH COUNCIL,843,,
Revenue,Adult Services,Adult Social Care,Learning Disability Suppt-adults (18-64),5105629501,19.04.2017,Learning Disability Residential 18-64,Charges from Independent Providers,"6,840.12",BROADHAM CARE LTD,844,,
Revenue,Place,Cultural and Related Services,Open Spaces,5105628992,07.04.2017,Public Seats  (incl.Dedicated Seats),Operational Equipment,"6,092.00",BROXAP LTD,848,,
Revenue,Place,Fire & Rescue Services,Fire fighting and Rescue Operations,5105630256,19.04.2017,Business Support  - Fire,Professional Subscriptions,"1,950.00",BUCKINGHAMSHIRE & MILTON KEYNES,849,,
Revenue,Childrens Services,Children's & Education Services,Early Years,5105629144,28.04.2017,Early Years Team,Payments to Other Local Authorities,371.00,BUCKINGHAMSHIRE COUNTY COUNCIL,850,,
Revenue,Adult Services,Adult Social Care,Support - Memory /Cognition-older people (65+),5105629551,19.04.2017,Memory & Cognition Residential 65+,Charges from Independent Providers,"1,905.96",BUCKLAND CARE LTD,851,,
Revenue,Adult Services,Adult Social Care,Support - Memory /Cognition-older people (65+),5105629551,19.04.2017,Memory & Cognition Residential 65+,Charges from Independent Providers,"1,905.96",BUCKLAND CARE LTD,852,,
Revenue,Adult Services,Adult Social Care,Sensory Support - older people (65+),5105629551,19.04.2017,Sensory Support Residential 65+,Charges from Independent Providers,"1,819.72",BUCKLAND CARE LTD,853,,
Revenue,Adult Services,Adult Social Care,Support - Memory /Cognition-older people (65+),5105629551,19.04.2017,Memory & Cognition Residential 65+,Charges from Independent Providers,"2,240.56",BUCKLAND CARE LTD,854,,
Revenue,Adult Services,Adult Social Care,Support - Memory /Cognition-older people (65+),5105629551,19.04.2017,Memory & Cognition Residential 65+,Charges from Independent Providers,"2,240.56",BUCKLAND CARE LTD,855,,
Revenue,Adult Services,Adult Social Care,Support - Memory /Cognition-older people (65+),5105629551,19.04.2017,Memory & Cognition Residential 65+,Charges from Independent Providers,"1,905.96",BUCKLAND CARE LTD,856,,
Revenue,Adult Services,Adult Social Care,Sensory Support - older people (65+),5105629459,19.04.2017,Sensory Support Residential 65+,Charges from Independent Providers,"1,494.77",BUCKLAND CARE LTD,857,,
Revenue,Adult Services,Balance Sheet,Balance Sheet,5105629551,19.04.2017,REDACTED PERSONAL DATA,Order Settlement to Bal Sht GL,"2,240.56",BUCKLAND CARE LTD,858,,
Revenue,Adult Services,Adult Social Care,Physical Support - older people (65+),5105629011,07.04.2017,Physical Support Residential 65+,Charges from Independent Providers,"3,199.29",BUCKLAND CARE LTD,859,,
Revenue,Adult Services,Adult Social Care,Physical Support - older people (65+),5105629551,19.04.2017,Physical Support Residential 65+,Charges from Independent Providers,"1,819.72",BUCKLAND CARE LTD,860,,
Revenue,Adult Services,Adult Social Care,Physical Support - older people (65+),5105629551,19.04.2017,Physical Support Residential 65+,Charges from Independent Providers,"1,905.96",BUCKLAND CARE LTD,861,,
Revenue,Adult Services,Adult Social Care,Physical Support - older people (65+),5105629551,19.04.2017,Physical Support Residential 65+,Charges from Independent Providers,"1,905.96",BUCKLAND CARE LTD,862,,
Revenue,Adult Services,Adult Social Care,Physical Support - older people (65+),5105629551,19.04.2017,Physical Support Residential 65+,Charges from Independent Providers,"2,240.56",BUCKLAND CARE LTD,863,,
Revenue,Adult Services,Adult Social Care,Physical Support - older people (65+),5105629551,19.04.2017,Physical Support Residential 65+,Charges from Independent Providers,"1,905.96",BUCKLAND CARE LTD,864,,
Revenue,Adult Services,Adult Social Care,Physical Support - older people (65+),5105629551,19.04.2017,Physical Support Residential 65+,Charges from Independent Providers,"1,905.96",BUCKLAND CARE LTD,865,,
Revenue,Adult Services,Adult Social Care,Physical Support - older people (65+),5105629551,19.04.2017,Physical Support Residential 65+,Charges from Independent Providers,"2,240.56",BUCKLAND CARE LTD,866,,
Revenue,Adult Services,Adult Social Care,Physical Support - older people (65+),5105629551,19.04.2017,Physical Support Residential 65+,Charges from Independent Providers,"1,905.96",BUCKLAND CARE LTD,867,,
Revenue,Adult Services,Adult Social Care,Physical Support - older people (65+),5105630222,19.04.2017,Physical Support Residential 65+,Charges from Independent Providers,"1,754.73",BUCKLAND CARE LTD,868,,
Revenue,Adult Services,Adult Social Care,Physical Support - older people (65+),5105630222,19.04.2017,Physical Support Residential 65+,Charges from Independent Providers,"1,819.72",BUCKLAND CARE LTD,869,,
Revenue,Adult Services,Adult Social Care,Physical Support - older people (65+),5105629551,19.04.2017,Physical Support Residential 65+,Charges from Independent Providers,"2,240.56",BUCKLAND CARE LTD,870,,
Revenue,Adult Services,Adult Social Care,Physical Support - older people (65+),5105629551,19.04.2017,Physical Support Residential 65+,Charges from Independent Providers,"2,240.56",BUCKLAND CARE LTD,871,,
Revenue,Adult Services,Adult Social Care,Physical Support - older people (65+),5105629551,19.04.2017,Physical Support Residential 65+,Charges from Independent Providers,"2,240.56",BUCKLAND CARE LTD,872,,
Revenue,Adult Services,Adult Social Care,Physical Support - older people (65+),5105629551,19.04.2017,Physical Support Residential 65+,Charges from Independent Providers,"1,819.72",BUCKLAND CARE LTD,873,,
Revenue,Adult Services,Adult Social Care,Physical Support - older people (65+),5105629011,07.04.2017,Physical Support Residential 65+,Charges from Independent Providers,"4,641.16",BUCKLAND CARE LTD,874,,
Revenue,Adult Services,Adult Social Care,Physical Support - older people (65+),5105629054,12.04.2017,Physical Support Residential 65+,Charges from Independent Providers,884.91,BUCKLAND CARE LTD,875,,
Revenue,Adult Services,Adult Social Care,Physical Support - older people (65+),5105629054,12.04.2017,Physical Support Residential 65+,Charges from Independent Providers,"2,858.94",BUCKLAND CARE LTD,876,,
Revenue,Adult Services,Adult Social Care,Commissioning & Service Delivery,5105629539,19.04.2017,"Funded Nursing Care, Registered Nursing Care Contribution",Charges from Independent Providers,620.20,BUCKLAND CARE LTD,877,,
Revenue,Adult Services,Adult Social Care,Commissioning & Service Delivery,5105629539,19.04.2017,"Funded Nursing Care, Registered Nursing Care Contribution",Charges from Independent Providers,620.20,BUCKLAND CARE LTD,878,,
Revenue,Adult Services,Adult Social Care,Commissioning & Service Delivery,5105629539,19.04.2017,"Funded Nursing Care, Registered Nursing Care Contribution",Charges from Independent Providers,620.20,BUCKLAND CARE LTD,879,,
Revenue,Adult Services,Adult Social Care,Commissioning & Service Delivery,5105629539,19.04.2017,"Funded Nursing Care, Registered Nursing Care Contribution",Charges from Independent Providers,620.20,BUCKLAND CARE LTD,880,,
Revenue,Adult Services,Adult Social Care,Commissioning & Service Delivery,5105629539,19.04.2017,"Funded Nursing Care, Registered Nursing Care Contribution",Charges from Independent Providers,620.20,BUCKLAND CARE LTD,881,,
Revenue,Adult Services,Adult Social Care,Commissioning & Service Delivery,5105629539,19.04.2017,"Funded Nursing Care, Registered Nursing Care Contribution",Charges from Independent Providers,620.20,BUCKLAND CARE LTD,882,,
Revenue,Adult Services,Adult Social Care,Commissioning & Service Delivery,5105629539,19.04.2017,"Funded Nursing Care, Registered Nursing Care Contribution",Charges from Independent Providers,620.20,BUCKLAND CARE LTD,883,,
Revenue,Adult Services,Adult Social Care,Commissioning & Service Delivery,5105629539,19.04.2017,"Funded Nursing Care, Registered Nursing Care Contribution",Charges from Independent Providers,620.20,BUCKLAND CARE LTD,884,,
Revenue,Adult Services,Adult Social Care,Commissioning & Service Delivery,5105629539,19.04.2017,"Funded Nursing Care, Registered Nursing Care Contribution",Charges from Independent Providers,620.20,BUCKLAND CARE LTD,885,,
Revenue,Adult Services,Adult Social Care,Commissioning & Service Delivery,5105629539,19.04.2017,"Funded Nursing Care, Registered Nursing Care Contribution",Charges from Independent Providers,620.20,BUCKLAND CARE LTD,886,,
Revenue,Adult Services,Adult Social Care,Commissioning & Service Delivery,5105629051,19.04.2017,"Funded Nursing Care, Registered Nursing Care Contribution",Charges from Independent Providers,133.98,BUCKLAND CARE LTD,887,,
Revenue,Adult Services,Adult Social Care,Commissioning & Service Delivery,5105628281,05.04.2017,"Funded Nursing Care, Registered Nursing Care Contribution",Charges from Independent Providers,509.45,BUCKLAND CARE LTD,888,,
Revenue,Adult Services,Adult Social Care,Commissioning & Service Delivery,5105628281,05.04.2017,FNC IWC funded clients,Charges from Independent Providers,509.45,BUCKLAND CARE LTD,889,,
Revenue,Adult Services,Adult Social Care,Commissioning & Service Delivery,5105628281,05.04.2017,FNC IWC funded clients,Charges from Independent Providers,509.45,BUCKLAND CARE LTD,890,,
Revenue,Adult Services,Adult Social Care,Commissioning & Service Delivery,5105629539,19.04.2017,FNC IWC funded clients,Charges from Independent Providers,620.20,BUCKLAND CARE LTD,891,,
Revenue,Adult Services,Adult Social Care,Commissioning & Service Delivery,5105629539,19.04.2017,FNC IWC funded clients,Charges from Independent Providers,620.20,BUCKLAND CARE LTD,892,,
Revenue,Adult Services,Adult Social Care,Commissioning & Service Delivery,5105629539,19.04.2017,FNC IWC funded clients,Charges from Independent Providers,620.20,BUCKLAND CARE LTD,893,,
Revenue,Adult Services,Adult Social Care,Commissioning & Service Delivery,5105629539,19.04.2017,FNC IWC funded clients,Charges from Independent Providers,620.20,BUCKLAND CARE LTD,894,,
Revenue,Adult Services,Adult Social Care,Commissioning & Service Delivery,5105629539,19.04.2017,FNC IWC funded clients,Charges from Independent Providers,620.20,BUCKLAND CARE LTD,895,,
Revenue,Adult Services,Adult Social Care,Commissioning & Service Delivery,5105629539,19.04.2017,FNC IWC funded clients,Charges from Independent Providers,620.20,BUCKLAND CARE LTD,896,,
Revenue,Adult Services,Adult Social Care,Commissioning & Service Delivery,5105629539,19.04.2017,FNC IWC funded clients,Regular Respite Care,620.20,BUCKLAND CARE LTD,897,,
Revenue,Adult Services,Adult Social Care,Commissioning & Service Delivery,5105629539,19.04.2017,FNC IWC funded clients,Charges from Independent Providers,620.20,BUCKLAND CARE LTD,898,,
Revenue,Adult Services,Adult Social Care,Commissioning & Service Delivery,5105629539,19.04.2017,FNC IWC funded clients,Charges from Independent Providers,620.20,BUCKLAND CARE LTD,899,,
Revenue,Adult Services,Adult Social Care,Commissioning & Service Delivery,5105629539,19.04.2017,FNC IWC funded clients,Charges from Independent Providers,620.20,BUCKLAND CARE LTD,900,,
Revenue,Adult Services,Adult Social Care,Commissioning & Service Delivery,5105629539,19.04.2017,FNC IWC funded clients,Charges from Independent Providers,620.20,BUCKLAND CARE LTD,901,,
Revenue,Adult Services,Adult Social Care,Commissioning & Service Delivery,5105629539,19.04.2017,FNC IWC funded clients,Charges from Independent Providers,620.20,BUCKLAND CARE LTD,902,,
Revenue,Adult Services,Adult Social Care,Commissioning & Service Delivery,5105629539,19.04.2017,FNC IWC funded clients,Charges from Independent Providers,620.20,BUCKLAND CARE LTD,903,,
Revenue,Adult Services,Adult Social Care,Commissioning & Service Delivery,5105629539,19.04.2017,FNC IWC funded clients,Charges from Independent Providers,620.20,BUCKLAND CARE LTD,904,,
Revenue,Adult Services,Adult Social Care,Commissioning & Service Delivery,5105629539,19.04.2017,FNC IWC funded clients,Charges from Independent Providers,620.20,BUCKLAND CARE LTD,905,,
Revenue,Adult Services,Adult Social Care,Commissioning & Service Delivery,5105629457,19.04.2017,FNC IWC funded clients,Charges from Independent Providers,"1,027.18",BUCKLAND CARE LTD,906,,
Revenue,Adult Services,Adult Social Care,Commissioning & Service Delivery,5105629457,19.04.2017,FNC IWC funded clients,Charges from Independent Providers,509.45,BUCKLAND CARE LTD,907,,
Revenue,Adult Services,Balance Sheet,Balance Sheet,5105629539,19.04.2017,REDACTED PERSONAL DATA,Order Settlement to Bal Sht GL,"2,517.48",BUCKLAND CARE LTD,908,,
Revenue,Adult Services,Adult Social Care,Physical Support - older people (65+),5105629539,19.04.2017,Physical Support Nursing 65+,Charges from Independent Providers,"2,517.48",BUCKLAND CARE LTD,909,,
Revenue,Adult Services,Adult Social Care,Physical Support - older people (65+),5105630871,26.04.2017,Physical Support Nursing 65+,Charges from Independent Providers,"2,080.52",BUCKLAND CARE LTD,910,,
Revenue,Adult Services,Adult Social Care,Support - Memory /Cognition-older people (65+),5105629539,19.04.2017,Memory & Cognition Nursing 65+,Regular Respite Care,"2,517.48",BUCKLAND CARE LTD,911,,
Revenue,Adult Services,Adult Social Care,Physical Support - adults (18-64),5105629539,19.04.2017,Physical Support Nursing 18-64,Charges from Independent Providers,"2,517.48",BUCKLAND CARE LTD,912,,
Revenue,Adult Services,Adult Social Care,Physical Support - older people (65+),5105629539,19.04.2017,Physical Support Nursing 65+,Charges from Independent Providers,"2,517.48",BUCKLAND CARE LTD,913,,
Revenue,Adult Services,Adult Social Care,Physical Support - older people (65+),5105629539,19.04.2017,Physical Support Nursing 65+,Charges from Independent Providers,"2,517.48",BUCKLAND CARE LTD,914,,
Revenue,Adult Services,Adult Social Care,Physical Support - older people (65+),5105629539,19.04.2017,Physical Support Nursing 65+,Charges from Independent Providers,"2,517.48",BUCKLAND CARE LTD,915,,
Revenue,Adult Services,Adult Social Care,Physical Support - older people (65+),5105629539,19.04.2017,Physical Support Nursing 65+,Charges from Independent Providers,"2,517.48",BUCKLAND CARE LTD,916,,
Revenue,Adult Services,Adult Social Care,Physical Support - older people (65+),5105629539,19.04.2017,Physical Support Nursing 65+,Charges from Independent Providers,"2,517.48",BUCKLAND CARE LTD,917,,
Revenue,Adult Services,Adult Social Care,Physical Support - adults (18-64),5105629539,19.04.2017,Physical Support Nursing 18-64,Charges from Independent Providers,"2,517.48",BUCKLAND CARE LTD,918,,
Revenue,Adult Services,Adult Social Care,Physical Support - older people (65+),5105629539,19.04.2017,Physical Support Nursing 65+,Charges from Independent Providers,"2,517.48",BUCKLAND CARE LTD,919,,
Revenue,Adult Services,Adult Social Care,Support - Memory /Cognition-older people (65+),5105629539,19.04.2017,Memory & Cognition Nursing 65+,Charges from Independent Providers,"2,517.48",BUCKLAND CARE LTD,920,,
Revenue,Adult Services,Adult Social Care,Support - Memory /Cognition-older people (65+),5105629539,19.04.2017,Memory & Cognition Nursing 65+,Charges from Independent Providers,"2,517.48",BUCKLAND CARE LTD,921,,
Revenue,Adult Services,Adult Social Care,Physical Support - older people (65+),5105629539,19.04.2017,Physical Support Nursing 65+,Charges from Independent Providers,"2,517.48",BUCKLAND CARE LTD,922,,
Revenue,Adult Services,Adult Social Care,Physical Support - older people (65+),5105629539,19.04.2017,Physical Support Nursing 65+,Charges from Independent Providers,"2,517.48",BUCKLAND CARE LTD,923,,
Revenue,Adult Services,Adult Social Care,Physical Support - adults (18-64),5105629457,19.04.2017,Physical Support Nursing 18-64,Charges from Independent Providers,"6,203.79",BUCKLAND CARE LTD,924,,
Revenue,Adult Services,Adult Social Care,Physical Support - older people (65+),5105628281,05.04.2017,Physical Support Nursing 65+,Charges from Independent Providers,"2,067.93",BUCKLAND CARE LTD,925,,
Revenue,Adult Services,Adult Social Care,Physical Support - older people (65+),5105628281,05.04.2017,Physical Support Nursing 65+,Charges from Independent Providers,"2,067.93",BUCKLAND CARE LTD,926,,
Revenue,Adult Services,Adult Social Care,Physical Support - older people (65+),5105629771,19.04.2017,Physical Support Nursing 65+,Charges from Independent Providers,"2,040.36",BUPA CARE HOME (BNH) LTD,927,,
Revenue,Adult Services,Adult Social Care,Mental Health Support-older people (65+),5105629997,19.04.2017,Mental Health Residential 65+,Charges from Independent Providers,"2,006.76",BUPA CARE HOMES LTD,928,,
Revenue,Place,Environmental & Regulatory Services,Service Management and Support Services,5105629132,12.04.2017,Waste Contract Management,Legal Fees - Other Parties,"1,809.50",BURGES SALMON LLP,929,,
Revenue,Place,Environmental & Regulatory Services,Service Management and Support Services,5105629132,12.04.2017,Waste Contract Management,Legal Fees - Other Parties,698.00,BURGES SALMON LLP,930,,
Revenue,Place,Environmental & Regulatory Services,Service Management and Support Services,5105630211,19.04.2017,Waste Contract Management,Legal Fees - Other Parties,"-2,507.50",BURGES SALMON LLP,931,,
Revenue,Place,Environmental & Regulatory Services,Service Management and Support Services,5105630212,19.04.2017,Waste Contract Management,Legal Fees - Other Parties,"2,507.50",BURGES SALMON LLP,932,,
Capital,Place,Capital,Capital,5105630530,21.04.2017,Cowes Floating Brdge,Payment to Contractors - Capital,"9,962.49",BURNESS CORLETT,933,,
Revenue,Place,Central Services,Support Services,5105629453,19.04.2017,"Enterprise House, Newport",Grounds Maintenance,225.00,C & J GROUND MAINTENANCE,934,,
Revenue,Place,Housing Services,Other Council Property,5105629453,19.04.2017,Shared Ownership,Grounds Maintenance,75.00,C & J GROUND MAINTENANCE,935,,
Revenue,Childrens Services,Children's & Education Services,Special Schools & Alternative Provision,5105629453,19.04.2017,Workshop Initiative Support in Education,Grounds Maintenance,55.00,C & J GROUND MAINTENANCE,936,,
Revenue,Place,Planning services,Business Support,5105629453,19.04.2017,Properties Industrial Estates,Grounds Maintenance,75.00,C & J GROUND MAINTENANCE,937,,
Revenue,Place,Planning services,Business Support,5105629453,19.04.2017,Somerton Industrial Park,Grounds Maintenance,100.00,C & J GROUND MAINTENANCE,938,,
Revenue,Childrens Services,Children's & Education Services,Children Looked After,5105630336,21.04.2017,Special Guardianship Order Costs,Support Children,161.49,REDACTED PERSONAL DATA,941,,
Revenue,Childrens Services,Children's & Education Services,Children Looked After,5105631022,28.04.2017,Special Guardianship Order Costs,Support Children,161.49,REDACTED PERSONAL DATA,942,,
Revenue,Childrens Services,Children's & Education Services,Children Looked After,5105629290,13.04.2017,Special Guardianship Order Costs,Support Children,161.49,REDACTED PERSONAL DATA,943,,
Revenue,Childrens Services,Children's & Education Services,Children Looked After,5105628852,07.04.2017,Special Guardianship Order Costs,Support Children,161.49,REDACTED PERSONAL DATA,944,,
Revenue,Childrens Services,Children's & Education Services,Children Looked After,5105631063,28.04.2017,Children placed with Family&Friends,Boarding Out Allowances,214.43,REDACTED PERSONAL DATA,945,,
Revenue,Childrens Services,Children's & Education Services,Children Looked After,5105630378,21.04.2017,Children placed with Family&Friends,Boarding Out Allowances,214.43,REDACTED PERSONAL DATA,946,,
Revenue,Childrens Services,Children's & Education Services,Children Looked After,5105628894,07.04.2017,Children placed with Family&Friends,Boarding Out Allowances,214.43,REDACTED PERSONAL DATA,947,,
Revenue,Childrens Services,Children's & Education Services,Children Looked After,5105629332,13.04.2017,Children placed with Family&Friends,Boarding Out Allowances,214.43,REDACTED PERSONAL DATA,948,,
Revenue,Adult Services,Adult Social Care,Learning Disability Suppt-adults (18-64),5105628785,07.04.2017,No-Barriers,Client Expenses,80.00,REDACTED PERSONAL DATA,949,,
Revenue,Childrens Services,Children's & Education Services,Children Looked After,5105628880,07.04.2017,Adoption Costs,Support Children,161.49,REDACTED PERSONAL DATA,956,,
Revenue,Childrens Services,Children's & Education Services,Children Looked After,5105628880,07.04.2017,Adoption Costs,Support Children,132.69,REDACTED PERSONAL DATA,957,,
Revenue,Childrens Services,Children's & Education Services,Children Looked After,5105629318,13.04.2017,Adoption Costs,Support Children,161.49,REDACTED PERSONAL DATA,958,,
Revenue,Childrens Services,Children's & Education Services,Children Looked After,5105629318,13.04.2017,Adoption Costs,Support Children,132.69,REDACTED PERSONAL DATA,959,,
Revenue,Childrens Services,Children's & Education Services,Children Looked After,5105631049,28.04.2017,Adoption Costs,Support Children,161.49,REDACTED PERSONAL DATA,960,,
Revenue,Childrens Services,Children's & Education Services,Children Looked After,5105631049,28.04.2017,Adoption Costs,Support Children,132.69,REDACTED PERSONAL DATA,961,,
Revenue,Childrens Services,Children's & Education Services,Children Looked After,5105630364,21.04.2017,Adoption Costs,Support Children,161.49,REDACTED PERSONAL DATA,962,,
Revenue,Childrens Services,Children's & Education Services,Children Looked After,5105630364,21.04.2017,Adoption Costs,Support Children,132.69,REDACTED PERSONAL DATA,963,,
Revenue,Childrens Services,Children's & Education Services,Children Looked After,5105630348,21.04.2017,Special Guardianship Order Costs,Support Children,125.79,REDACTED PERSONAL DATA,965,,
Revenue,Childrens Services,Children's & Education Services,Children Looked After,5105628864,07.04.2017,Special Guardianship Order Costs,Support Children,125.79,REDACTED PERSONAL DATA,966,,
Revenue,Childrens Services,Children's & Education Services,Children Looked After,5105629302,13.04.2017,Special Guardianship Order Costs,Support Children,125.79,REDACTED PERSONAL DATA,967,,
Revenue,Childrens Services,Children's & Education Services,Children Looked After,5105631033,28.04.2017,Special Guardianship Order Costs,Support Children,125.79,REDACTED PERSONAL DATA,968,,
Revenue,Childrens Services,Children's & Education Services,Children Looked After,5105631060,28.04.2017,In-house Fostering,Boarding Out Allowances,319.15,REDACTED PERSONAL DATA,969,,
Revenue,Childrens Services,Children's & Education Services,Children Looked After,5105631060,28.04.2017,In-house Fostering,Boarding Out Allowances,274.81,REDACTED PERSONAL DATA,970,,
Revenue,Childrens Services,Children's & Education Services,Children Looked After,5105631060,28.04.2017,In-house Fostering,Boarding Out Allowances,274.81,REDACTED PERSONAL DATA,971,,
Revenue,Childrens Services,Children's & Education Services,Children Looked After,5105630375,21.04.2017,In-house Fostering,Boarding Out Allowances,274.81,REDACTED PERSONAL DATA,972,,
Revenue,Childrens Services,Children's & Education Services,Children Looked After,5105630375,21.04.2017,In-house Fostering,Boarding Out Allowances,319.15,REDACTED PERSONAL DATA,973,,
Revenue,Childrens Services,Children's & Education Services,Children Looked After,5105630375,21.04.2017,In-house Fostering,Boarding Out Allowances,274.81,REDACTED PERSONAL DATA,974,,
Revenue,Childrens Services,Children's & Education Services,Children Looked After,5105629329,13.04.2017,In-house Fostering,Boarding Out Allowances,319.15,REDACTED PERSONAL DATA,975,,
Revenue,Childrens Services,Children's & Education Services,Children Looked After,5105628891,07.04.2017,In-house Fostering,Boarding Out Allowances,319.15,REDACTED PERSONAL DATA,976,,
Revenue,Childrens Services,Children's & Education Services,Children Looked After,5105628891,07.04.2017,In-house Fostering,Boarding Out Allowances,274.81,REDACTED PERSONAL DATA,977,,
Revenue,Childrens Services,Children's & Education Services,Children Looked After,5105629329,13.04.2017,In-house Fostering,Boarding Out Allowances,274.81,REDACTED PERSONAL DATA,978,,
Revenue,Childrens Services,Children's & Education Services,Children Looked After,5105629329,13.04.2017,In-house Fostering,Boarding Out Allowances,274.81,REDACTED PERSONAL DATA,979,,
Revenue,Childrens Services,Children's & Education Services,Children Looked After,5105628891,07.04.2017,In-house Fostering,Boarding Out Allowances,274.81,REDACTED PERSONAL DATA,980,,
Revenue,Childrens Services,Children's & Education Services,Children Looked After,5105628856,07.04.2017,Adoption Costs,Support Children,207.73,REDACTED PERSONAL DATA,985,,
Revenue,Childrens Services,Children's & Education Services,Children Looked After,5105628856,07.04.2017,Adoption Costs,Support Children,207.73,REDACTED PERSONAL DATA,986,,
Revenue,Childrens Services,Children's & Education Services,Children Looked After,5105629294,13.04.2017,Adoption Costs,Support Children,207.73,REDACTED PERSONAL DATA,987,,
Revenue,Childrens Services,Children's & Education Services,Children Looked After,5105629294,13.04.2017,Adoption Costs,Support Children,207.73,REDACTED PERSONAL DATA,988,,
Revenue,Childrens Services,Children's & Education Services,Children Looked After,5105631025,28.04.2017,Adoption Costs,Support Children,207.73,REDACTED PERSONAL DATA,989,,
Revenue,Childrens Services,Children's & Education Services,Children Looked After,5105631025,28.04.2017,Adoption Costs,Support Children,207.73,REDACTED PERSONAL DATA,990,,
Revenue,Childrens Services,Children's & Education Services,Children Looked After,5105630340,21.04.2017,Adoption Costs,Support Children,207.73,REDACTED PERSONAL DATA,991,,
Revenue,Childrens Services,Children's & Education Services,Children Looked After,5105630340,21.04.2017,Adoption Costs,Support Children,207.73,REDACTED PERSONAL DATA,992,,
Revenue,Childrens Services,Children's & Education Services,Children Looked After,5105628907,07.04.2017,Special Guardianship Order Costs,Support Children,166.96,REDACTED PERSONAL DATA,993,,
Revenue,Childrens Services,Children's & Education Services,Children Looked After,5105629346,13.04.2017,Special Guardianship Order Costs,Support Children,166.96,REDACTED PERSONAL DATA,994,,
Revenue,Childrens Services,Children's & Education Services,Children Looked After,5105630392,21.04.2017,Special Guardianship Order Costs,Support Children,166.96,REDACTED PERSONAL DATA,995,,
Revenue,Childrens Services,Children's & Education Services,Children Looked After,5105631077,28.04.2017,Special Guardianship Order Costs,Support Children,166.96,REDACTED PERSONAL DATA,996,,
Revenue,Childrens Services,Children's & Education Services,Children Looked After,5105628830,07.04.2017,Leaving Care Costs,Support Children,120.89,REDACTED PERSONAL DATA,1002,,
Revenue,Childrens Services,Children's & Education Services,Children Looked After,5105629269,13.04.2017,Leaving Care Costs,Support Children,120.89,REDACTED PERSONAL DATA,1003,,
Revenue,Childrens Services,Children's & Education Services,Children Looked After,5105629269,13.04.2017,Leaving Care Costs,Support Children,68.50,REDACTED PERSONAL DATA,1004,,
Revenue,Childrens Services,Children's & Education Services,Children Looked After,5105628830,07.04.2017,Leaving Care Costs,Support Children,68.50,REDACTED PERSONAL DATA,1005,,
Revenue,Childrens Services,Children's & Education Services,Children Looked After,5105631002,28.04.2017,Leaving Care Costs,Support Children,120.89,REDACTED PERSONAL DATA,1006,,
Revenue,Childrens Services,Children's & Education Services,Children Looked After,5105631002,28.04.2017,Leaving Care Costs,Support Children,68.50,REDACTED PERSONAL DATA,1007,,
Revenue,Childrens Services,Children's & Education Services,Children Looked After,5105630316,21.04.2017,Leaving Care Costs,Support Children,120.89,REDACTED PERSONAL DATA,1008,,
Revenue,Childrens Services,Children's & Education Services,Children Looked After,5105630316,21.04.2017,Leaving Care Costs,Support Children,68.50,REDACTED PERSONAL DATA,1009,,
Revenue,Childrens Services,Children's & Education Services,Children Looked After,5105631002,28.04.2017,In-house Fostering,Boarding Out Allowances,319.15,REDACTED PERSONAL DATA,1010,,
Revenue,Childrens Services,Children's & Education Services,Children Looked After,5105630316,21.04.2017,In-house Fostering,Boarding Out Allowances,319.15,REDACTED PERSONAL DATA,1011,,
Revenue,Childrens Services,Children's & Education Services,Children Looked After,5105628830,07.04.2017,In-house Fostering,Boarding Out Allowances,319.15,REDACTED PERSONAL DATA,1012,,
Revenue,Childrens Services,Children's & Education Services,Children Looked After,5105629269,13.04.2017,In-house Fostering,Boarding Out Allowances,319.15,REDACTED PERSONAL DATA,1013,,
Revenue,Childrens Services,Children's & Education Services,Children Looked After,5105628846,07.04.2017,Children placed with Family&Friends,Boarding Out Allowances,100.00,REDACTED PERSONAL DATA,1014,,
Revenue,Childrens Services,Children's & Education Services,Children Looked After,5105628874,07.04.2017,Special Guardianship Order Costs,Support Children,161.49,REDACTED PERSONAL DATA,1028,,
Revenue,Childrens Services,Children's & Education Services,Children Looked After,5105629312,13.04.2017,Special Guardianship Order Costs,Support Children,161.49,REDACTED PERSONAL DATA,1029,,
Revenue,Childrens Services,Children's & Education Services,Children Looked After,5105630358,21.04.2017,Special Guardianship Order Costs,Support Children,161.49,REDACTED PERSONAL DATA,1030,,
Revenue,Childrens Services,Children's & Education Services,Children Looked After,5105631043,28.04.2017,Special Guardianship Order Costs,Support Children,161.49,REDACTED PERSONAL DATA,1031,,
Revenue,Childrens Services,Children's & Education Services,Children Looked After,5105628850,07.04.2017,Adoption Costs,Support Children,168.39,REDACTED PERSONAL DATA,1032,,
Revenue,Childrens Services,Children's & Education Services,Children Looked After,5105629288,13.04.2017,Adoption Costs,Support Children,168.39,REDACTED PERSONAL DATA,1033,,
Revenue,Childrens Services,Children's & Education Services,Children Looked After,5105630334,21.04.2017,Adoption Costs,Support Children,168.39,REDACTED PERSONAL DATA,1034,,
Revenue,Childrens Services,Children's & Education Services,Children Looked After,5105631020,28.04.2017,Adoption Costs,Support Children,168.39,REDACTED PERSONAL DATA,1035,,
Revenue,Resources,Central Services,Support Services,5105628765,19.04.2017,ICT Contracts,Computer Maintenance,780.00,CADLINE LTD,1036,,
Revenue,Childrens Services,Children's & Education Services,Children Looked After,5105629162,12.04.2017,NHS Funded Placements,Charges from Independent Providers,"1,995.66",CAMBIAN ASPERGER SYNDROME SERVICES LTD,1037,,
Revenue,Childrens Services,Children's & Education Services,Management & Support Services,5105629164,12.04.2017,Pre 16 Independ. & Non-Maint. Special Schls & Independ. Specialist Provision,Charges from Independent Providers,"57,262.67",CAMBIAN ASPERGER SYNDROME SERVICES LTD,1038,,
Revenue,Childrens Services,Children's & Education Services,Children Looked After,5105629162,12.04.2017,Purchased Residential,Charges from Independent Providers,"19,280.01",CAMBIAN ASPERGER SYNDROME SERVICES LTD,1039,,
Revenue,Childrens Services,Children's & Education Services,Post-16 Provision,5105629162,12.04.2017,Post 16 Independ. & Non-Maint. Special Schls & Independ. Specialist Provision,Charges from Independent Providers,"21,275.66",CAMBIAN ASPERGER SYNDROME SERVICES LTD,1040,,
Revenue,Childrens Services,Children's & Education Services,Post-16 Provision,5105629161,12.04.2017,Post 16 Independ. & Non-Maint. Special Schls & Independ. Specialist Provision,Charges from Independent Providers,"40,551.47",CAMBIAN ASPERGER SYNDROME SERVICES LTD,1041,,
Revenue,Childrens Services,Children's & Education Services,Children Looked After,5105630811,26.04.2017,Purchased Residential,Charges from Independent Providers,"13,548.90",CAMBIAN CHILDCARE LTD,1042,,
Revenue,Place,Central Services,Support Services,5105629225,12.04.2017,Print Unit,Photocopying Costs,"1,538.18",CANON (UK) LTD,1043,,
Revenue,Childrens Services,Children's & Education Services,Other Education and Community Budget,5105630843,26.04.2017,Children's Services Strategic Management,Licences,"88,785.13",CAPITA BUSINESS SERVICES LTD,1044,,
Revenue,Childrens Services,Children's & Education Services,Other Education and Community Budget,5105630843,26.04.2017,Children's Services Strategic Management,Licences,"15,242.00",CAPITA BUSINESS SERVICES LTD,1045,,
Revenue,Childrens Services,Children's & Education Services,Other Education and Community Budget,5105630843,26.04.2017,Children's Services Strategic Management,Licences,"2,500.00",CAPITA BUSINESS SERVICES LTD,1046,,
Revenue,Childrens Services,Children's & Education Services,Other Education and Community Budget,5105630843,26.04.2017,Children's Services Strategic Management,Licences,"12,378.00",CAPITA BUSINESS SERVICES LTD,1047,,
Revenue,Childrens Services,Children's & Education Services,Children Looked After,5105628787,07.04.2017,Support for Looked After Children - Disabled Childrens Team,Charges from Independent Providers,196.80,CAREWATCH (SOUTHAMPTON NEW FOREST & IOW),1048,,
Revenue,Childrens Services,Children's & Education Services,Management & Support Services,5105628671,05.04.2017,Pre 16 Independ. & Non-Maint. Special Schls & Independ. Specialist Provision,Transport of Clients,0.00,CAREWATCH (SOUTHAMPTON NEW FOREST & IOW),1049,,
Revenue,Childrens Services,Children's & Education Services,Management & Support Services,5105631223,28.04.2017,Pre 16 Independ. & Non-Maint. Special Schls & Independ. Specialist Provision,Transport of Clients,339.10,CAREWATCH (SOUTHAMPTON NEW FOREST & IOW),1050,,
Revenue,Childrens Services,Children's & Education Services,Children Looked After,5105630782,26.04.2017,Beaulieu House,Agency staff,808.15,CAREWATCH (SOUTHAMPTON NEW FOREST & IOW),1051,,
Revenue,Resources,Central Services,Support Services,5105630594,21.04.2017,Staff Benefits,Payment to Private Contractors,150.00,CARISBROOKE CLEVER CLOGGS DAY CARE,1053,,
Revenue,Resources,Central Services,Support Services,5105630594,21.04.2017,Staff Benefits,Payment to Private Contractors,243.00,CARISBROOKE CLEVER CLOGGS DAY CARE,1054,,
Revenue,Adult Services,Adult Social Care,Physical Support - older people (65+),5105629955,19.04.2017,Physical Support Residential 65+,Charges from Independent Providers,"1,554.28",CARNALEA LIMITED,1057,,
Revenue,Childrens Services,Children's & Education Services,Management & Support Services,5105628382,05.04.2017,Pre 16 Independ. & Non-Maint. Special Schls & Independ. Specialist Provision,Charges from Independent Providers,"2,615.40",CHANNELS AND CHOICES LTD,1060,,
Revenue,Childrens Services,Children's & Education Services,Management & Support Services,5105628997,26.04.2017,Pre 16 Independ. & Non-Maint. Special Schls & Independ. Specialist Provision,Charges from Independent Providers,"3,007.71",CHANNELS AND CHOICES LTD,1061,,
Revenue,Childrens Services,Children's & Education Services,Children Looked After,5105628381,05.04.2017,Purchased Residential,Charges from Independent Providers,"16,285.50",CHANNELS AND CHOICES LTD,1062,,
Revenue,Place,Cultural and Related Services,Library Service,5105629076,12.04.2017,East Cowes Library,Property Services - Day to day Maintenance,100.13,CHANT LOCK & SECURITY SERVICE,1063,,
Revenue,Adult Services,Adult Social Care,Central Codes (to be reallocated),5105631203,28.04.2017,Gouldings Resource Centre,Catering Purchases,362.60,CHAPEL NURSERIES,1064,,
Revenue,Adult Services,Adult Social Care,Learning Disab Supp (to be reallocated),5105628338,05.04.2017,Saxonbury,Catering Purchases,24.50,CHAPEL NURSERIES,1065,,
Revenue,Chief Executive,Central Services,Support Services,5105628315,12.04.2017,Media,Professional Services,"8,748.00",GOVDELIVERY,1066,,
Revenue,Chief Executive,Central Services,Support Services,5105628315,12.04.2017,Media,Professional Services,"3,000.00",GOVDELIVERY,1067,,
Revenue,Childrens Services,Children's & Education Services,Special Schools & Alternative Provision,5105629151,12.04.2017,Island Learning Centre,Schools Catering Contract,335.40,CHARTWELLS,1071,,
Revenue,Childrens Services,Children's & Education Services,Special Schools & Alternative Provision,5105629151,12.04.2017,Island Learning Centre,Schools Catering Contract,324.65,CHARTWELLS,1072,,
Revenue,Childrens Services,Children's & Education Services,Special Schools & Alternative Provision,5105629151,12.04.2017,Island Learning Centre,Schools Catering Contract,15.35,CHARTWELLS,1073,,
Revenue,Resources,Central Services,Support Services,5105630616,21.04.2017,Staff Benefits,Payment to Private Contractors,188.50,CHATTERBOX NURSERY LTD,1074,,
Revenue,Resources,Central Services,Support Services,5105630616,21.04.2017,Staff Benefits,Payment to Private Contractors,243.00,CHATTERBOX NURSERY LTD,1075,,
Revenue,Resources,Central Services,Support Services,5105630616,21.04.2017,Staff Benefits,Payment to Private Contractors,124.00,CHATTERBOX NURSERY LTD,1076,,
Revenue,Resources,Central Services,Support Services,5105630616,21.04.2017,Staff Benefits,Payment to Private Contractors,150.00,CHATTERBOX NURSERY LTD,1077,,
Revenue,Resources,Central Services,Support Services,5105630616,21.04.2017,Staff Benefits,Payment to Private Contractors,243.00,CHATTERBOX NURSERY LTD,1078,,
Revenue,Resources,Central Services,Support Services,5105630616,21.04.2017,Staff Benefits,Payment to Private Contractors,188.50,CHATTERBOX NURSERY LTD,1079,,
Revenue,Resources,Central Services,Support Services,5105630616,21.04.2017,Staff Benefits,Payment to Private Contractors,243.00,CHATTERBOX NURSERY LTD,1080,,
Revenue,Adult Services,Adult Social Care,Support - Memory /Cognition-older people (65+),5105630227,19.04.2017,Memory & Cognition Residential 65+,Charges from Independent Providers,"3,000.20",CHD CARE LTD,1081,,
Revenue,Adult Services,Adult Social Care,Support - Memory /Cognition-older people (65+),5105630227,19.04.2017,Memory & Cognition Residential 65+,Charges from Independent Providers,405.16,CHD CARE LTD,1082,,
Revenue,Place,Cultural and Related Services,Culture and Heritage,5105630741,26.04.2017,Dinosaur Isle Museum (Sandown Geology),Stock Purchases,350.36,CHEATWELL GAMES,1083,,
Revenue,Place,Cultural and Related Services,Culture and Heritage,5105631208,28.04.2017,Dinosaur Isle Museum (Sandown Geology),Stock Purchases,-15.00,CHEATWELL GAMES,1084,,
Revenue,Adult Services,Adult Social Care,Mental Health Support-older people (65+),5105629510,19.04.2017,Mental Health Residential 65+,Charges from Independent Providers,"2,240.56",CHERRY TREES I.W. LTD,1085,,
Revenue,Adult Services,Adult Social Care,Support - Memory /Cognition-older people (65+),5105629510,19.04.2017,Memory & Cognition Residential 65+,Charges from Independent Providers,"1,819.72",CHERRY TREES I.W. LTD,1086,,
Revenue,Adult Services,Adult Social Care,Physical Support - older people (65+),5105629510,19.04.2017,Physical Support Residential 65+,Charges from Independent Providers,"1,905.96",CHERRY TREES I.W. LTD,1087,,
Revenue,Adult Services,Adult Social Care,Physical Support - older people (65+),5105629510,19.04.2017,Physical Support Residential 65+,Charges from Independent Providers,"1,819.72",CHERRY TREES I.W. LTD,1088,,
Revenue,Adult Services,Adult Social Care,Physical Support - older people (65+),5105629456,19.04.2017,Physical Support Residential 65+,Charges from Independent Providers,"3,335.43",CHERRY TREES I.W. LTD,1089,,
Revenue,Adult Services,Adult Social Care,Physical Support - older people (65+),5105629510,19.04.2017,Physical Support Residential 65+,Charges from Independent Providers,"2,240.56",CHERRY TREES I.W. LTD,1090,,
Revenue,Adult Services,Adult Social Care,Physical Support - older people (65+),5105629510,19.04.2017,Physical Support Residential 65+,Charges from Independent Providers,"1,819.72",CHERRY TREES I.W. LTD,1091,,
Revenue,Adult Services,Adult Social Care,Physical Support - older people (65+),5105629510,19.04.2017,Physical Support Residential 65+,Charges from Independent Providers,"1,819.72",CHERRY TREES I.W. LTD,1092,,
Revenue,Adult Services,Adult Social Care,Physical Support - older people (65+),5105629510,19.04.2017,Physical Support Residential 65+,Charges from Independent Providers,"1,819.72",CHERRY TREES I.W. LTD,1093,,
Revenue,Adult Services,Adult Social Care,Physical Support - older people (65+),5105629510,19.04.2017,Physical Support Residential 65+,Charges from Independent Providers,"2,240.56",CHERRY TREES I.W. LTD,1094,,
Revenue,Place,Cultural and Related Services,Open Spaces,5105628531,05.04.2017,Tree Felling / Replacement,Payment to Private Contractors,30.76,CHICHESTER TREES & SHRUBS LTD,1095,,
Revenue,Place,Cultural and Related Services,Open Spaces,5105628531,05.04.2017,Tree Felling / Replacement,Operational Equipment,307.60,CHICHESTER TREES & SHRUBS LTD,1096,,
Revenue,Place,Cultural and Related Services,Culture and Heritage,5105630935,26.04.2017,Dinosaur Isle Museum (Sandown Geology),Stock Purchases,86.70,CHILD'S PLAY (INTERNATIONAL) LTD,1097,,
Revenue,Resources,Central Services,Support Services,5105630596,21.04.2017,Staff Benefits,Payment to Private Contractors,5.00,CHILLERTON & ROOKLEY CP SCHOOL,1099,,
Revenue,Resources,Central Services,Support Services,5105630596,21.04.2017,Staff Benefits,Payment to Private Contractors,40.00,CHILLERTON & ROOKLEY CP SCHOOL,1100,,
Revenue,Resources,Central Services,Support Services,5105630596,21.04.2017,Staff Benefits,Payment to Private Contractors,72.00,CHILLERTON & ROOKLEY CP SCHOOL,1101,,
Revenue,Adult Services,Adult Social Care,Learning Disability Suppt-adults (18-64),5105630131,19.04.2017,Learning Disability Residential 18-64,Charges from Independent Providers,"6,701.24",CHOICE LTD,1102,,
Revenue,Adult Services,Adult Social Care,Mental Health Support-older people (65+),5105629496,19.04.2017,Mental Health Residential 65+,Charges from Independent Providers,"2,898.00",CHOICE SUPPORT,1103,,
Revenue,Adult Services,Adult Social Care,Mental Health Support - adults (18-64),5105629496,19.04.2017,Mental Health Residential 18-64,Charges from Independent Providers,"2,898.00",CHOICE SUPPORT,1104,,
Revenue,Resources,Central Services,Support Services,5105630896,26.04.2017,Financial Management Overheads,Professional Subscriptions,"8,100.00",CIPFA BUSINESS LTD,1106,,
Revenue,Resources,Central Services,Support Services,5105630894,26.04.2017,Financial Management Overheads,Publications,"5,890.00",CIPFA BUSINESS LTD,1107,,
Revenue,Resources,Central Services,Support Services,5105630550,21.04.2017,Financial Management Overheads,Professional Subscriptions,"17,914.75",CIPFA BUSINESS LTD,1108,,
Revenue,Childrens Services,Children's & Education Services,Other Education and Community Budget,5105629102,12.04.2017,Adult Community Learning,Licences,16.00,CITY AND GUILDS,1109,,
Revenue,Childrens Services,Children's & Education Services,Other Education and Community Budget,5105630264,19.04.2017,Adult Community Learning,Licences,12.50,CITY AND GUILDS,1110,,
Revenue,Childrens Services,Children's & Education Services,Other Education and Community Budget,5105629078,12.04.2017,Core Programmes,Training,364.00,CITY AND GUILDS,1111,,
Revenue,Resources,Central Services,Central Services to the Public,5105628691,05.04.2017,Revenues & Benefits Operational Support,Office Equipment,"7,505.00",CIVICA UK LTD,1112,,
Revenue,Place,Cultural and Related Services,Library Service,5105630851,26.04.2017,Public Libraries Central,Stationery,6.05,CIVICA UK LTD,1113,,
Revenue,Place,Fire & Rescue Services,Fire fighting and Rescue Operations,5105628636,05.04.2017,Fire Technical Support,Vehicle Maintenance Costs,90.00,CLARK MASTS (TECHNICAL SERVICES)LTD,1114,,
Revenue,Resources,Central Services,Support Services,5105630753,26.04.2017,Litigation Costs,Legal Fees - Other Parties,495.00,CLARKE WILLMOTT LLP,1115,,
Capital,Childrens Services,Capital,Capital,5105628623,05.04.2017,Administration and Inspection Schemes,Payment to Contractors - Capital,"24,063.09",CLARKES MECHANICAL LTD,1116,,
Capital,Childrens Services,Capital,Capital,5105630821,26.04.2017,Administration and Inspection Schemes,Payment to Contractors - Capital,"4,173.35",CLARKES MECHANICAL LTD,1117,,
Revenue,Resources,Central Services,Support Services,5105630621,21.04.2017,Staff Benefits,Payment to Private Contractors,165.00,CLUB COOL C/O COWES PRIMARY SCHOOL,1118,,
Revenue,Resources,Central Services,Support Services,5105630621,21.04.2017,Staff Benefits,Payment to Private Contractors,100.00,CLUB COOL C/O COWES PRIMARY SCHOOL,1119,,
Revenue,Adult Services,Adult Social Care,Support - Memory /Cognition-older people (65+),5105630084,19.04.2017,Memory & Cognition Residential 65+,Charges from Independent Providers,"2,347.80",REDACTED PERSONAL DATA,1120,,
Revenue,Place,Cultural and Related Services,Open Spaces,5105628595,05.04.2017,Play Areas Health & Safety work,Payment to Private Contractors,"1,689.75",C N SERVICES,1121,,
Revenue,Place,Cultural and Related Services,Recreation and Sport,5105628634,05.04.2017,Play Development,Hire of facilities,70.00,COMMUNITY ACTION ISLE OF WIGHT,1122,,
Revenue,Childrens Services,Children's & Education Services,Services for Young People,5105629452,19.04.2017,Youth Commissioning,Payments to Voluntary and Other Associations,"11,250.00",COMMUNITY ACTION ISLE OF WIGHT,1123,,
Revenue,Childrens Services,Children's & Education Services,Family Support Services,5105628624,05.04.2017,Short Breaks,Charges from Independent Providers,713.12,COMMUNITY ACTION ISLE OF WIGHT,1124,,
Revenue,Childrens Services,Children's & Education Services,Family Support Services,5105628637,05.04.2017,Short Breaks,Charges from Independent Providers,713.12,COMMUNITY ACTION ISLE OF WIGHT,1125,,
Revenue,Place,Cultural and Related Services,Recreation and Sport,5105629138,12.04.2017,The Heights,Operational Equipment,260.00,COMPLETE POOL CONTROLS LTD,1126,,
Revenue,Place,Cultural and Related Services,Recreation and Sport,5105630933,26.04.2017,The Heights,Consumable Cleaning Materials,"1,599.42",COMPLETE POOL CONTROLS LTD,1127,,
Revenue,Childrens Services,Children's & Education Services,Management & Support Services,5105630738,26.04.2017,Special Discretionary Grants,Maintenance of Operational Equipment,117.00,CONNEVANS LTD,1128,,
Revenue,Childrens Services,Children's & Education Services,Management & Support Services,5105630738,26.04.2017,Special Discretionary Grants,Maintenance of Operational Equipment,13.45,CONNEVANS LTD,1129,,
Revenue,Place,Environmental & Regulatory Services,Regulatory Services,5105630208,21.04.2017,Environmental Health - Environmental Regulation & Protection,Professional Services,"1,059.50",CO-OPERATIVE FUNERALCARE LTD,1130,,
Revenue,Childrens Services,Children's & Education Services,Children Looked After,5105628774,12.04.2017,In-house Fostering,Professional Services,"3,317.00",CORAM ACADEMY LTD,1131,,
Revenue,Childrens Services,Children's & Education Services,Children Looked After,5105628682,05.04.2017,In-house Fostering,Professional Services,648.00,CORAM CHILDREN'S LEGAL CENTRE LTD,1132,,
Revenue,Adult Services,Adult Social Care,Support - Memory /Cognition-older people (65+),5105629544,19.04.2017,Memory & Cognition Residential 65+,Charges from Independent Providers,"2,240.56",CORNELIA HEIGHTS CARE HOME,1133,,
Revenue,Adult Services,Adult Social Care,Support - Memory /Cognition-older people (65+),5105629544,19.04.2017,Memory & Cognition Residential 65+,Charges from Independent Providers,"1,819.72",CORNELIA HEIGHTS CARE HOME,1134,,
Revenue,Adult Services,Adult Social Care,Support - Memory /Cognition-older people (65+),5105629544,19.04.2017,Memory & Cognition Residential 65+,Charges from Independent Providers,"1,905.96",CORNELIA HEIGHTS CARE HOME,1135,,
Revenue,Adult Services,Adult Social Care,Physical Support - older people (65+),5105629544,19.04.2017,Physical Support Residential 65+,Charges from Independent Providers,"1,819.72",CORNELIA HEIGHTS CARE HOME,1136,,
Revenue,Adult Services,Adult Social Care,Physical Support - older people (65+),5105629544,19.04.2017,Physical Support Residential 65+,Charges from Independent Providers,"1,905.96",CORNELIA HEIGHTS CARE HOME,1137,,
Revenue,Adult Services,Adult Social Care,Physical Support - older people (65+),5105630221,19.04.2017,Physical Support Residential 65+,Charges from Independent Providers,"1,760.44",CORNELIA HEIGHTS CARE HOME,1138,,
Revenue,Adult Services,Adult Social Care,Mental Health Support - adults (18-64),5105630221,19.04.2017,Mental Health Residential 18-64,Charges from Independent Providers,"1,104.83",CORNELIA HEIGHTS CARE HOME,1139,,
Revenue,Adult Services,Adult Social Care,Mental Health Support - adults (18-64),5105630221,19.04.2017,Mental Health Residential 18-64,Charges from Independent Providers,"1,819.72",CORNELIA HEIGHTS CARE HOME,1140,,
Revenue,Adult Services,Adult Social Care,Physical Support - older people (65+),5105629544,19.04.2017,Physical Support Residential 65+,Charges from Independent Providers,"1,905.96",CORNELIA HEIGHTS CARE HOME,1141,,
Revenue,Adult Services,Adult Social Care,Physical Support - older people (65+),5105631230,28.04.2017,Physical Support Residential 65+,Charges from Independent Providers,"6,693.97",CORNELIA HEIGHTS CARE HOME,1142,,
Revenue,Adult Services,Adult Social Care,Physical Support - older people (65+),5105629544,19.04.2017,Physical Support Residential 65+,Charges from Independent Providers,"1,905.96",CORNELIA HEIGHTS CARE HOME,1143,,
Revenue,Adult Services,Adult Social Care,Physical Support - older people (65+),5105629544,19.04.2017,Physical Support Residential 65+,Charges from Independent Providers,"2,240.56",CORNELIA HEIGHTS CARE HOME,1144,,
Revenue,Adult Services,Adult Social Care,Physical Support - older people (65+),5105629544,19.04.2017,Physical Support Residential 65+,Charges from Independent Providers,"1,819.72",CORNELIA HEIGHTS CARE HOME,1145,,
Revenue,Adult Services,Adult Social Care,Physical Support - older people (65+),5105629544,19.04.2017,Physical Support Residential 65+,Charges from Independent Providers,"1,905.96",CORNELIA HEIGHTS CARE HOME,1146,,
Revenue,Adult Services,Adult Social Care,Physical Support - older people (65+),5105629544,19.04.2017,Physical Support Residential 65+,Charges from Independent Providers,"1,819.72",CORNELIA HEIGHTS CARE HOME,1147,,
Revenue,Adult Services,Adult Social Care,Support - Memory /Cognition-older people (65+),5105630186,19.04.2017,Memory & Cognition Residential 65+,Charges from Independent Providers,"2,240.56",CORNELIA MANOR,1148,,
Revenue,Adult Services,Adult Social Care,Sensory Support - older people (65+),5105629244,13.04.2017,Sensory Support Residential 65+,Charges from Independent Providers,"8,123.75",CORNELIA MANOR,1149,,
Revenue,Adult Services,Adult Social Care,Support - Memory /Cognition-older people (65+),5105629542,19.04.2017,Memory & Cognition Residential 65+,Charges from Independent Providers,"1,905.96",CORNELIA MANOR,1150,,
Revenue,Adult Services,Adult Social Care,Social Support - Social Isolation/Other,5105629542,19.04.2017,Social Isolation/Other Residential,Charges from Independent Providers,974.85,CORNELIA MANOR,1151,,
Revenue,Adult Services,Adult Social Care,Sensory Support - older people (65+),5105629542,19.04.2017,Sensory Support Residential 65+,Charges from Independent Providers,"1,819.72",CORNELIA MANOR,1152,,
Revenue,Adult Services,Adult Social Care,Support - Memory /Cognition-older people (65+),5105629542,19.04.2017,Memory & Cognition Residential 65+,Charges from Independent Providers,"2,240.56",CORNELIA MANOR,1153,,
Revenue,Adult Services,Adult Social Care,Mental Health Support-older people (65+),5105629542,19.04.2017,Mental Health Residential 65+,Charges from Independent Providers,"1,819.72",CORNELIA MANOR,1154,,
Revenue,Adult Services,Adult Social Care,Physical Support - older people (65+),5105629542,19.04.2017,Physical Support Residential 65+,Charges from Independent Providers,"1,819.72",CORNELIA MANOR,1155,,
Revenue,Adult Services,Adult Social Care,Physical Support - older people (65+),5105629542,19.04.2017,Physical Support Residential 65+,Charges from Independent Providers,"1,905.96",CORNELIA MANOR,1156,,
Revenue,Adult Services,Adult Social Care,Physical Support - older people (65+),5105629542,19.04.2017,Physical Support Residential 65+,Charges from Independent Providers,"1,819.72",CORNELIA MANOR,1157,,
Revenue,Adult Services,Adult Social Care,Physical Support - older people (65+),5105629542,19.04.2017,Physical Support Residential 65+,Charges from Independent Providers,204.21,CORNELIA MANOR,1158,,
Revenue,Adult Services,Adult Social Care,Physical Support - older people (65+),5105629542,19.04.2017,Physical Support Residential 65+,Charges from Independent Providers,"1,819.72",CORNELIA MANOR,1159,,
Revenue,Adult Services,Adult Social Care,Physical Support - older people (65+),5105629542,19.04.2017,Physical Support Residential 65+,Charges from Independent Providers,"2,240.56",CORNELIA MANOR,1160,,
Revenue,Adult Services,Adult Social Care,Physical Support - older people (65+),5105629542,19.04.2017,Physical Support Residential 65+,Charges from Independent Providers,"2,240.56",CORNELIA MANOR,1161,,
Revenue,Adult Services,Adult Social Care,Physical Support - older people (65+),5105629542,19.04.2017,Physical Support Residential 65+,Charges from Independent Providers,"2,240.56",CORNELIA MANOR,1162,,
Revenue,Adult Services,Adult Social Care,Physical Support - older people (65+),5105630186,19.04.2017,Physical Support Residential 65+,Charges from Independent Providers,"1,819.72",CORNELIA MANOR,1163,,
Revenue,Adult Services,Adult Social Care,Physical Support - older people (65+),5105629542,19.04.2017,Physical Support Residential 65+,Charges from Independent Providers,"1,819.72",CORNELIA MANOR,1164,,
Revenue,Adult Services,Adult Social Care,Physical Support - older people (65+),5105630705,26.04.2017,Physical Support Residential 65+,Charges from Independent Providers,136.14,CORNELIA MANOR,1165,,
Revenue,Adult Services,Adult Social Care,Physical Support - older people (65+),5105629542,19.04.2017,Physical Support Residential 65+,Charges from Independent Providers,"1,905.96",CORNELIA MANOR,1166,,
Revenue,Adult Services,Adult Social Care,Physical Support - older people (65+),5105629244,13.04.2017,Physical Support Residential 65+,Charges from Independent Providers,"4,401.10",CORNELIA MANOR,1167,,
Revenue,Adult Services,Adult Social Care,Support - Memory /Cognition-older people (65+),5105630057,19.04.2017,Memory & Cognition Nursing 65+,Charges from Independent Providers,"2,297.12",COSHAM COURT,1168,,
Revenue,Place,Highways and Transport Services,"Airports, Harbours & Toll Facilities",5105628422,05.04.2017,Newport Harbour Account,"Refuse Collection, Disposal and Recycling Costs",86.10,COWES HARBOUR COMMISSION,1170,,
Revenue,Childrens Services,Children's & Education Services,Other Education and Community Budget,5105629128,12.04.2017,I W College - Home to College Transport,Transport of Clients,625.00,COWES TAXIS,1172,,
Revenue,Childrens Services,Children's & Education Services,Management & Support Services,5105628365,05.04.2017,Pre 16 Independ. & Non-Maint. Special Schls & Independ. Specialist Provision,Charges from Independent Providers,"23,800.00",COXLEASE SCHOOL PRIORY,1173,,
Revenue,Childrens Services,Children's & Education Services,Children Looked After,5105628365,05.04.2017,NHS Funded Placements,Charges from Independent Providers,"10,200.00",COXLEASE SCHOOL PRIORY,1174,,
Revenue,Childrens Services,Children's & Education Services,Management & Support Services,5105628367,05.04.2017,Pre 16 Independ. & Non-Maint. Special Schls & Independ. Specialist Provision,Charges from Independent Providers,"22,597.24",COXLEASE SCHOOL PRIORY,1175,,
Revenue,Childrens Services,Children's & Education Services,Management & Support Services,5105628366,05.04.2017,Pre 16 Independ. & Non-Maint. Special Schls & Independ. Specialist Provision,Charges from Independent Providers,"21,593.33",COXLEASE SCHOOL PRIORY,1176,,
Revenue,Childrens Services,Children's & Education Services,Children Looked After,5105628367,05.04.2017,Purchased Residential,Charges from Independent Providers,"41,929.42",COXLEASE SCHOOL PRIORY,1177,,
Revenue,Place,Cultural and Related Services,Culture and Heritage,5105630243,19.04.2017,Museums & Collections Management,Advertising & Publicity,397.00,CROSSPRINT LTD,1178,,
Revenue,Childrens Services,Children's & Education Services,Family Support Services,5105629445,19.04.2017,Short Breaks,Printing Costs,584.00,CROSSPRINT LTD,1179,,
Revenue,Place,Cultural and Related Services,Recreation and Sport,5105630290,21.04.2017,Beach Safety & Inspection / Beach Awards,Rent of Buildings and Rooms,"1,366.00",CROWN ESTATE COMMISSIONERS,1180,,
Revenue,Place,Planning services,Economic Development,5105629435,13.04.2017,Cycle Hubs Sustainable Travel Trans Year,Consultants Fees,"2,500.00",CYCLEWIGHT,1183,,
Revenue,Childrens Services,Children's & Education Services,Children Looked After,5105631091,28.04.2017,Children placed with Family&Friends,Boarding Out Allowances,234.52,REDACTED PERSONAL DATA,1184,,
Revenue,Childrens Services,Children's & Education Services,Children Looked After,5105631091,28.04.2017,Children placed with Family&Friends,Boarding Out Allowances,214.43,REDACTED PERSONAL DATA,1185,,
Revenue,Childrens Services,Children's & Education Services,Children Looked After,5105631091,28.04.2017,Children placed with Family&Friends,Boarding Out Allowances,234.52,REDACTED PERSONAL DATA,1186,,
Revenue,Childrens Services,Children's & Education Services,Children Looked After,5105630406,21.04.2017,Children placed with Family&Friends,Boarding Out Allowances,234.52,REDACTED PERSONAL DATA,1187,,
Revenue,Childrens Services,Children's & Education Services,Children Looked After,5105630406,21.04.2017,Children placed with Family&Friends,Boarding Out Allowances,214.43,REDACTED PERSONAL DATA,1188,,
Revenue,Childrens Services,Children's & Education Services,Children Looked After,5105630406,21.04.2017,Children placed with Family&Friends,Boarding Out Allowances,234.52,REDACTED PERSONAL DATA,1189,,
Revenue,Childrens Services,Children's & Education Services,Children Looked After,5105628921,07.04.2017,Children placed with Family&Friends,Boarding Out Allowances,214.43,REDACTED PERSONAL DATA,1190,,
Revenue,Childrens Services,Children's & Education Services,Children Looked After,5105628921,07.04.2017,Children placed with Family&Friends,Boarding Out Allowances,234.52,REDACTED PERSONAL DATA,1191,,
Revenue,Childrens Services,Children's & Education Services,Children Looked After,5105629360,13.04.2017,Children placed with Family&Friends,Boarding Out Allowances,234.52,REDACTED PERSONAL DATA,1192,,
Revenue,Childrens Services,Children's & Education Services,Children Looked After,5105629360,13.04.2017,Children placed with Family&Friends,Boarding Out Allowances,214.43,REDACTED PERSONAL DATA,1193,,
Revenue,Childrens Services,Children's & Education Services,Children Looked After,5105629360,13.04.2017,Children placed with Family&Friends,Boarding Out Allowances,234.52,REDACTED PERSONAL DATA,1194,,
Revenue,Childrens Services,Children's & Education Services,Children Looked After,5105628921,07.04.2017,Children placed with Family&Friends,Boarding Out Allowances,234.52,REDACTED PERSONAL DATA,1195,,
Revenue,Childrens Services,Children's & Education Services,Children Looked After,5105631083,28.04.2017,Children placed with Family&Friends,Boarding Out Allowances,234.52,REDACTED PERSONAL DATA,1200,,
Revenue,Childrens Services,Children's & Education Services,Children Looked After,5105630398,21.04.2017,Children placed with Family&Friends,Boarding Out Allowances,234.52,REDACTED PERSONAL DATA,1201,,
Revenue,Childrens Services,Children's & Education Services,Children Looked After,5105631083,28.04.2017,Leaving Care Costs,Support Children,120.89,REDACTED PERSONAL DATA,1202,,
Revenue,Childrens Services,Children's & Education Services,Children Looked After,5105631083,28.04.2017,Leaving Care Costs,Support Children,68.50,REDACTED PERSONAL DATA,1203,,
Revenue,Childrens Services,Children's & Education Services,Children Looked After,5105630398,21.04.2017,Leaving Care Costs,Support Children,120.89,REDACTED PERSONAL DATA,1204,,
Revenue,Childrens Services,Children's & Education Services,Children Looked After,5105630398,21.04.2017,Leaving Care Costs,Support Children,68.50,REDACTED PERSONAL DATA,1205,,
Revenue,Childrens Services,Children's & Education Services,Children Looked After,5105628913,07.04.2017,Children placed with Family&Friends,Boarding Out Allowances,234.52,REDACTED PERSONAL DATA,1206,,
Revenue,Childrens Services,Children's & Education Services,Children Looked After,5105629352,13.04.2017,Children placed with Family&Friends,Boarding Out Allowances,234.52,REDACTED PERSONAL DATA,1207,,
Revenue,Childrens Services,Children's & Education Services,Children Looked After,5105629352,13.04.2017,Leaving Care Costs,Support Children,120.89,REDACTED PERSONAL DATA,1208,,
Revenue,Childrens Services,Children's & Education Services,Children Looked After,5105629352,13.04.2017,Leaving Care Costs,Support Children,68.50,REDACTED PERSONAL DATA,1209,,
Revenue,Childrens Services,Children's & Education Services,Children Looked After,5105628913,07.04.2017,Leaving Care Costs,Support Children,120.89,REDACTED PERSONAL DATA,1210,,
Revenue,Childrens Services,Children's & Education Services,Children Looked After,5105628913,07.04.2017,Leaving Care Costs,Support Children,68.50,REDACTED PERSONAL DATA,1211,,
Revenue,Place,Housing Services,Homelessness,5105630559,21.04.2017,Leaseholds by LA,Accommodation Costs - Leaseholder Payments,859.95,REDACTED PERSONAL DATA,1216,,
Revenue,Childrens Services,Children's & Education Services,Children Looked After,5105630789,26.04.2017,In-house Fostering,Support Children,400.00,REDACTED PERSONAL DATA,1222,,
Revenue,Adult Services,Adult Social Care,Learning Disability Suppt-adults (18-64),5105628783,07.04.2017,No-Barriers,Client Expenses,60.00,REDACTED PERSONAL DATA,1223,,
Revenue,Childrens Services,Children's & Education Services,Children Looked After,5105628825,07.04.2017,Adoption Costs,Support Children,168.39,REDACTED PERSONAL DATA,1231,,
Revenue,Childrens Services,Children's & Education Services,Children Looked After,5105628825,07.04.2017,Adoption Costs,Support Children,168.39,REDACTED PERSONAL DATA,1232,,
Revenue,Childrens Services,Children's & Education Services,Children Looked After,5105629264,13.04.2017,Adoption Costs,Support Children,168.39,REDACTED PERSONAL DATA,1233,,
Revenue,Childrens Services,Children's & Education Services,Children Looked After,5105629264,13.04.2017,Adoption Costs,Support Children,168.39,REDACTED PERSONAL DATA,1234,,
Revenue,Childrens Services,Children's & Education Services,Children Looked After,5105630311,21.04.2017,Adoption Costs,Support Children,168.39,REDACTED PERSONAL DATA,1235,,
Revenue,Childrens Services,Children's & Education Services,Children Looked After,5105630311,21.04.2017,Adoption Costs,Support Children,168.39,REDACTED PERSONAL DATA,1236,,
Revenue,Childrens Services,Children's & Education Services,Children Looked After,5105630997,28.04.2017,Adoption Costs,Support Children,168.39,REDACTED PERSONAL DATA,1237,,
Revenue,Childrens Services,Children's & Education Services,Children Looked After,5105630997,28.04.2017,Adoption Costs,Support Children,168.39,REDACTED PERSONAL DATA,1238,,
Revenue,Place,Housing Services,Homelessness,5105630562,21.04.2017,Leaseholds by LA,Accommodation Costs - Leaseholder Payments,788.67,REDACTED PERSONAL DATA,1241,,
Revenue,Childrens Services,Children's & Education Services,Children Looked After,5105628810,07.04.2017,Adoption Costs,Support Children,71.70,REDACTED PERSONAL DATA,1242,,
Revenue,Childrens Services,Children's & Education Services,Children Looked After,5105629249,13.04.2017,Adoption Costs,Support Children,71.70,REDACTED PERSONAL DATA,1243,,
Revenue,Childrens Services,Children's & Education Services,Children Looked After,5105629249,13.04.2017,Adoption Costs,Support Children,168.39,REDACTED PERSONAL DATA,1244,,
Revenue,Childrens Services,Children's & Education Services,Children Looked After,5105628810,07.04.2017,Adoption Costs,Support Children,168.39,REDACTED PERSONAL DATA,1245,,
Revenue,Childrens Services,Children's & Education Services,Children Looked After,5105630296,21.04.2017,Adoption Costs,Support Children,71.70,REDACTED PERSONAL DATA,1246,,
Revenue,Childrens Services,Children's & Education Services,Children Looked After,5105630296,21.04.2017,Adoption Costs,Support Children,168.39,REDACTED PERSONAL DATA,1247,,
Revenue,Childrens Services,Children's & Education Services,Children Looked After,5105630982,28.04.2017,Adoption Costs,Support Children,71.70,REDACTED PERSONAL DATA,1248,,
Revenue,Childrens Services,Children's & Education Services,Children Looked After,5105630982,28.04.2017,Adoption Costs,Support Children,168.39,REDACTED PERSONAL DATA,1249,,
Revenue,Childrens Services,Children's & Education Services,Children Looked After,5105630296,21.04.2017,Special Guardianship Order Costs,Support Children,228.53,REDACTED PERSONAL DATA,1250,,
Revenue,Childrens Services,Children's & Education Services,Children Looked After,5105628810,07.04.2017,Special Guardianship Order Costs,Support Children,228.53,REDACTED PERSONAL DATA,1251,,
Revenue,Childrens Services,Children's & Education Services,Children Looked After,5105629249,13.04.2017,Special Guardianship Order Costs,Support Children,228.53,REDACTED PERSONAL DATA,1252,,
Revenue,Childrens Services,Children's & Education Services,Children Looked After,5105630982,28.04.2017,Special Guardianship Order Costs,Support Children,228.53,REDACTED PERSONAL DATA,1253,,
Revenue,Childrens Services,Children's & Education Services,Children Looked After,5105630982,28.04.2017,In-house Fostering,Boarding Out Allowances,214.43,REDACTED PERSONAL DATA,1254,,
Revenue,Childrens Services,Children's & Education Services,Children Looked After,5105630982,28.04.2017,In-house Fostering,Boarding Out Allowances,214.43,REDACTED PERSONAL DATA,1255,,
Revenue,Childrens Services,Children's & Education Services,Children Looked After,5105630296,21.04.2017,In-house Fostering,Boarding Out Allowances,214.43,REDACTED PERSONAL DATA,1256,,
Revenue,Childrens Services,Children's & Education Services,Children Looked After,5105630296,21.04.2017,In-house Fostering,Boarding Out Allowances,214.43,REDACTED PERSONAL DATA,1257,,
Revenue,Childrens Services,Children's & Education Services,Children Looked After,5105628810,07.04.2017,In-house Fostering,Boarding Out Allowances,214.43,REDACTED PERSONAL DATA,1258,,
Revenue,Childrens Services,Children's & Education Services,Children Looked After,5105629425,13.04.2017,In-house Fostering,Boarding Out Allowances,214.43,REDACTED PERSONAL DATA,1259,,
Revenue,Childrens Services,Children's & Education Services,Children Looked After,5105629249,13.04.2017,In-house Fostering,Boarding Out Allowances,214.43,REDACTED PERSONAL DATA,1260,,
Revenue,Childrens Services,Children's & Education Services,Children Looked After,5105628810,07.04.2017,In-house Fostering,Boarding Out Allowances,214.43,REDACTED PERSONAL DATA,1261,,
Revenue,Childrens Services,Children's & Education Services,Children Looked After,5105628810,07.04.2017,In-house Fostering,Boarding Out Allowances,214.43,REDACTED PERSONAL DATA,1262,,
Revenue,Place,Housing Services,Homelessness,5105630581,21.04.2017,Leaseholds by LA,Accommodation Costs - Leaseholder Payments,678.90,REDACTED PERSONAL DATA,1263,,
Revenue,Place,Housing Services,Homelessness,5105630561,21.04.2017,Leaseholds by LA,Accommodation Costs - Leaseholder Payments,888.33,REDACTED PERSONAL DATA,1268,,
Revenue,Place,Housing Services,Homelessness,5105630561,21.04.2017,Leaseholds by LA,Accommodation Costs - Leaseholder Payments,814.71,REDACTED PERSONAL DATA,1269,,
